Workbook

Sheet Brief
C1: Brief | G1: Strona internetowa
B3: Działalność firmy
B4: Opisz krótko charakterystykę firmy.
B5: Co oferujecie klientom?
B6: Grupa docelowa
B7: Kto jest docelowym odbiorcą usług/produktów?
B8: Co jest najważniejsze dla Twoich klientów?
B9: Konkurencja
B10: Kto jest Twoją konkurencją?
B11: Czy czymś się wyróżniacie? (klienci Was chwalą za coś?) Czym chcecie się wyróżnić?
B12: Strona www
B13: Czy na kimś mamy się wzorować? Podaj przykłady firm i strony www.
B14: Struktura stron | M14: Wartość checkboxa | N14: Wartość liczbowa checkboxa
G15: Strona główna | H15: notatka | M15: FALSE | N15: =M15*1 -> 0
G16: O nas | M16: FALSE | N16: =M16*1 -> 0
G17: Historia | M17: FALSE | N17: 0
G18: Zespół | M18: FALSE | N18: 0
G19: Współpraca | M19: FALSE | N19: 0
G20: Misja | M20: FALSE | N20: 0
G21: Wartości | M21: FALSE | N21: 0
G22: Aktualności | M22: FALSE | N22: 0
G23: Blog | M23: FALSE | N23: 0
G24: Porady | M24: FALSE | N24: 0
G25: Przepisy | M25: FALSE | N25: 0
G26: Akademia | M26: FALSE | N26: 0
G27: Publikacje | M27: FALSE | N27: 0
G28: Oferta | M28: FALSE | N28: 0
G29: Produkty | M29: FALSE | N29: 0
G30: Usługi | M30: FALSE | N30: 0
B31: Wpisz listę zakładek (podstron), które chcesz mieć? | G31: Cennik | M31: FALSE | N31: 0
G32: Gdzie kupię | M32: FALSE | N32: 0
G33: Serwis | M33: FALSE | N33: 0
G34: Gwarancja | M34: FALSE | N34: 0
G35: Galeria | M35: FALSE | N35: 0
G36: Realizacje | M36: FALSE | N36: 0
G37: Case study | M37: FALSE | N37: 0
G38: Inspiracje | M38: FALSE | N38: 0
G39: Projekty | M39: FALSE | N39: 0
G40: Technologie | M40: FALSE | N40: 0
G41: Opinie / Referencje | M41: FALSE | N41: 0
G42: Do pobrania | M42: FALSE | N42: 0
G43: Kariera / Oferty pracy | M43: FALSE | N43: 0
G44: Kontakt | M44: FALSE | N44: 0
F45: =IF(ISBLANK(G45)," Uzupełnij samodzielnie","") -> Uzupełnij samodzielnie | M45: =ISBLANK(G45) -> TRUE | N45: =IF(M45*1=1,0,1) -> 0
F46: =IF(ISBLANK(G46)," Uzupełnij samodzielnie","") -> Uzupełnij samodzielnie | M46: TRUE | N46: =IF(M46*1=1,0,1) -> 0
F47: =IF(ISBLANK(G47)," Uzupełnij samodzielnie","") -> Uzupełnij samodzielnie | M47: TRUE | N47: =IF(M47*1=1,0,1) -> 0
F48: =IF(ISBLANK(G48)," Uzupełnij samodzielnie","") -> Uzupełnij samodzielnie | M48: TRUE | N48: =IF(M48*1=1,0,1) -> 0
F49: =IF(ISBLANK(G49)," Uzupełnij samodzielnie","") -> Uzupełnij samodzielnie | M49: TRUE | N49: =IF(M49*1=1,0,1) -> 0
F50: =IF(ISBLANK(G50)," Uzupełnij samodzielnie","") -> Uzupełnij samodzielnie | M50: TRUE | N50: =IF(M50*1=1,0,1) -> 0
F51: Uzupełnij samodzielnie | M51: TRUE | N51: 0
F52: Uzupełnij samodzielnie | M52: TRUE | N52: 0
F53: Uzupełnij samodzielnie | M53: TRUE | N53: 0
F54: Uzupełnij samodzielnie | M54: TRUE | N54: 0
F55: Uzupełnij samodzielnie | M55: TRUE | N55: 0
F56: Uzupełnij samodzielnie | M56: TRUE | N56: 0
F57: Uzupełnij samodzielnie | M57: TRUE | N57: 0
F58: Uzupełnij samodzielnie | M58: TRUE | N58: 0
F59: Uzupełnij samodzielnie | M59: TRUE | N59: 0
F60: Uzupełnij samodzielnie | M60: TRUE | N60: 0
F61: Uzupełnij samodzielnie | M61: TRUE | N61: 0
F62: Uzupełnij samodzielnie | M62: TRUE | N62: 0
F63: Uzupełnij samodzielnie | M63: TRUE | N63: 0
F64: Uzupełnij samodzielnie | M64: TRUE | N64: 0
F65: Uzupełnij samodzielnie | M65: TRUE | N65: 0
F66: Uzupełnij samodzielnie | M66: TRUE | N66: 0
F67: Uzupełnij samodzielnie | M67: TRUE | N67: 0
F68: Uzupełnij samodzielnie | M68: TRUE | N68: 0
F69: Uzupełnij samodzielnie | M69: TRUE | N69: 0
F70: Uzupełnij samodzielnie | M70: TRUE | N70: 0
F71: Uzupełnij samodzielnie | M71: TRUE | N71: 0
F72: Uzupełnij samodzielnie | M72: TRUE | N72: 0
F73: Uzupełnij samodzielnie | M73: TRUE | N73: 0
F74: Uzupełnij samodzielnie | M74: TRUE | N74: 0
F75: Uzupełnij samodzielnie | M75: TRUE | N75: 0
F76: Uzupełnij samodzielnie | M76: TRUE | N76: 0
F77: Uzupełnij samodzielnie | M77: TRUE | N77: 0
F78: Uzupełnij samodzielnie | M78: TRUE | N78: 0
F79: Uzupełnij samodzielnie | M79: TRUE | N79: 0
F80: Uzupełnij samodzielnie | M80: TRUE | N80: 0
F81: Uzupełnij samodzielnie | M81: TRUE | N81: 0
F82: Uzupełnij samodzielnie | M82: TRUE | N82: 0
B83: Funkcjonalności | AF83: podświetlenie podstawy
B84: Wybierz moduły: | E84: Nazwa modułu lub usługi | J84: Ilość | K84: =IF(Kalkulacja!$F$2="x","Cena","") ->  | M84: Wartość checkboxa | N84: Powiązanie z podstronami | O84: Wyświetlanie | P84: Makro | Q84: Pozycja | T84: Drop-down menu | U84: Preferowana opcja | V84: Podświetlenie podstawy | AF84: wszystkie moduły | AG84: ukryte moduły
E85: =Kalkulacja!H3 -> Materiały | O85: =IF(COUNTIF(O86:O98,"x")>0,"x",0) -> 0 | P85: =IF(O85="x","TRUE","FALSE") -> FALSE | Q85: =MATCH(E85,Kalkulacja!$H$1:$H$459,0) -> 3 | T85: =U85 -> 0 | V85: =AG85 -> 0 | AA85: =G85 -> 0 | AF85: =IFERROR(INDEX(Kalkulacja!Q:Q,Q85),0) -> 0 | AG85: 0
D86: =IFERROR(IF(N86>0,"SUGEROWANE",IF((INDEX(Kalkulacja!B:B,MATCH(G86,Kalkulacja!H:H,0)))="x","USŁUGA","")),"") -> USŁUGA | E86: i | G86: =Kalkulacja!H4 -> Napisanie tekstu 1000 zzs (ok. 1/3 strony A4) | J86: =M86*1 -> 0 | K86: =IFERROR(IF(Kalkulacja!$F$2="x",INDEX(Kalkulacja!$R$1:$R$459,Q86),""),"") ->  | M86: FALSE | N86: =IFERROR(INDEX('Podświetlanie modułów'!H:H,MATCH(G86,'Podświetlanie modułów'!F:F,0)),0) -> 0 | O86: =IF(M86*1>0,"x",IF(INDEX(Kalkulacja!A:A,Q86)="x","x",0)) -> 0 | P86: =IF(O86="x","TRUE","FALSE") -> FALSE | Q86: =MATCH(G86,Kalkulacja!$H$1:$H$459,0) -> 4 | T86: =U86 -> 0 | V86: =AG86 -> 0 | AA86: =G86 -> Napisanie tekstu 1000 zzs (ok. 1/3 strony A4) | AF86: =IFERROR(INDEX(Kalkulacja!Q:Q,Q86),0) -> 0 | AG86: 0
D87: =IFERROR(IF(N87>0,"SUGEROWANE",IF((INDEX(Kalkulacja!B:B,MATCH(G87,Kalkulacja!H:H,0)))="x","USŁUGA","")),"") -> USŁUGA | E87: i | G87: =Kalkulacja!H5 -> Przepisywanie tekstu 1000 zzs | J87: =M87*1 -> 0 | K87: =IFERROR(IF(Kalkulacja!$F$2="x",INDEX(Kalkulacja!$R$1:$R$459,Q87),""),"") ->  | M87: FALSE | N87: =IFERROR(INDEX('Podświetlanie modułów'!H:H,MATCH(G87,'Podświetlanie modułów'!F:F,0)),0) -> 0 | O87: =IF(M87*1>0,"x",IF(INDEX(Kalkulacja!A:A,Q87)="x","x",0)) -> 0 | P87: FALSE | Q87: =MATCH(G87,Kalkulacja!$H$1:$H$459,0) -> 5 | T87: 0 | V87: 0 | AA87: Przepisywanie tekstu 1000 zzs | AF87: =IFERROR(INDEX(Kalkulacja!Q:Q,Q87),0) -> 0 | AG87: 0
D88: =IFERROR(IF(N88>0,"SUGEROWANE",IF((INDEX(Kalkulacja!B:B,MATCH(G88,Kalkulacja!H:H,0)))="x","USŁUGA","")),"") -> USŁUGA | E88: i | G88: =Kalkulacja!H6 -> Korekta błędów ortograficznych 1000 zzs | J88: 0 | K88: =IFERROR(IF(Kalkulacja!$F$2="x",INDEX(Kalkulacja!$R$1:$R$459,Q88),""),"") ->  | M88: FALSE | N88: =IFERROR(INDEX('Podświetlanie modułów'!H:H,MATCH(G88,'Podświetlanie modułów'!F:F,0)),0) -> 0 | O88: =IF(M88*1>0,"x",IF(INDEX(Kalkulacja!A:A,Q88)="x","x",0)) -> 0 | P88: FALSE | Q88: =MATCH(G88,Kalkulacja!$H$1:$H$459,0) -> 6 | T88: 0 | V88: 0 | AA88: Korekta błędów ortograficznych 1000 zzs | AF88: =IFERROR(INDEX(Kalkulacja!Q:Q,Q88),0) -> 0 | AG88: 0
D89: =IFERROR(IF(N89>0,"SUGEROWANE",IF((INDEX(Kalkulacja!B:B,MATCH(G89,Kalkulacja!H:H,0)))="x","USŁUGA","")),"") -> USŁUGA | E89: i | G89: =Kalkulacja!H7 -> Obróbka 1 zdjęcia (kadrowanie, kolory) | J89: 0 | K89: =IFERROR(IF(Kalkulacja!$F$2="x",INDEX(Kalkulacja!$R$1:$R$459,Q89),""),"") ->  | M89: FALSE | N89: =IFERROR(INDEX('Podświetlanie modułów'!H:H,MATCH(G89,'Podświetlanie modułów'!F:F,0)),0) -> 0 | O89: =IF(M89*1>0,"x",IF(INDEX(Kalkulacja!A:A,Q89)="x","x",0)) -> 0 | P89: FALSE | Q89: =MATCH(G89,Kalkulacja!$H$1:$H$459,0) -> 7 | T89: 0 | V89: 0 | AA89: Obróbka 1 zdjęcia (kadrowanie, kolory) | AF89: =IFERROR(INDEX(Kalkulacja!Q:Q,Q89),0) -> 0 | AG89: 0
D90: =IFERROR(IF(N90>0,"SUGEROWANE",IF((INDEX(Kalkulacja!B:B,MATCH(G90,Kalkulacja!H:H,0)))="x","USŁUGA","")),"") -> USŁUGA | E90: i | G90: =Kalkulacja!H8 -> Fotografia 1 szt z banku zdjęć | J90: 0 | K90: =IFERROR(IF(Kalkulacja!$F$2="x",INDEX(Kalkulacja!$R$1:$R$459,Q90),""),"") ->  | M90: FALSE | N90: =IFERROR(INDEX('Podświetlanie modułów'!H:H,MATCH(G90,'Podświetlanie modułów'!F:F,0)),0) -> 0 | O90: =IF(M90*1>0,"x",IF(INDEX(Kalkulacja!A:A,Q90)="x","x",0)) -> 0 | P90: FALSE | Q90: =MATCH(G90,Kalkulacja!$H$1:$H$459,0) -> 8 | T90: 0 | V90: 0 | AA90: Fotografia 1 szt z banku zdjęć | AF90: =IFERROR(INDEX(Kalkulacja!Q:Q,Q90),0) -> 0 | AG90: 0
D91: =IFERROR(IF(N91>0,"SUGEROWANE",IF((INDEX(Kalkulacja!B:B,MATCH(G91,Kalkulacja!H:H,0)))="x","USŁUGA","")),"") -> USŁUGA | E91: i | G91: =Kalkulacja!H9 -> Fotomontaż ze zdjęć 1 szt | J91: 0 | K91: =IFERROR(IF(Kalkulacja!$F$2="x",INDEX(Kalkulacja!$R$1:$R$459,Q91),""),"") ->  | M91: FALSE | N91: =IFERROR(INDEX('Podświetlanie modułów'!H:H,MATCH(G91,'Podświetlanie modułów'!F:F,0)),0) -> 0 | O91: =IF(M91*1>0,"x",IF(INDEX(Kalkulacja!A:A,Q91)="x","x",0)) -> 0 | P91: FALSE | Q91: =MATCH(G91,Kalkulacja!$H$1:$H$459,0) -> 9 | T91: 0 | V91: 0 | AA91: Fotomontaż ze zdjęć 1 szt | AF91: =IFERROR(INDEX(Kalkulacja!Q:Q,Q91),0) -> 0 | AG91: 0
D92: =IFERROR(IF(N92>0,"SUGEROWANE",IF((INDEX(Kalkulacja!B:B,MATCH(G92,Kalkulacja!H:H,0)))="x","USŁUGA","")),"") -> USŁUGA | E92: i | G92: =Kalkulacja!H10 -> Odrysowanie logo | J92: 0 | K92: =IFERROR(IF(Kalkulacja!$F$2="x",INDEX(Kalkulacja!$R$1:$R$459,Q92),""),"") ->  | M92: FALSE | N92: =IFERROR(INDEX('Podświetlanie modułów'!H:H,MATCH(G92,'Podświetlanie modułów'!F:F,0)),0) -> 0 | O92: =IF(M92*1>0,"x",IF(INDEX(Kalkulacja!A:A,Q92)="x","x",0)) -> 0 | P92: FALSE | Q92: =MATCH(G92,Kalkulacja!$H$1:$H$459,0) -> 10 | T92: 0 | V92: 0 | AA92: Odrysowanie logo | AF92: =IFERROR(INDEX(Kalkulacja!Q:Q,Q92),0) -> 0 | AG92: 0
D93: =IFERROR(IF(N93>0,"SUGEROWANE",IF((INDEX(Kalkulacja!B:B,MATCH(G93,Kalkulacja!H:H,0)))="x","USŁUGA","")),"") -> USŁUGA | E93: i | G93: =Kalkulacja!H11 -> Projekt nowego logo | J93: 0 | K93: =IFERROR(IF(Kalkulacja!$F$2="x",INDEX(Kalkulacja!$R$1:$R$459,Q93),""),"") ->  | M93: FALSE | N93: =IFERROR(INDEX('Podświetlanie modułów'!H:H,MATCH(G93,'Podświetlanie modułów'!F:F,0)),0) -> 0 | O93: =IF(M93*1>0,"x",IF(INDEX(Kalkulacja!A:A,Q93)="x","x",0)) -> 0 | P93: FALSE | Q93: =MATCH(G93,Kalkulacja!$H$1:$H$459,0) -> 11 | T93: 0 | V93: 0 | AA93: Projekt nowego logo | AF93: =IFERROR(INDEX(Kalkulacja!Q:Q,Q93),0) -> 0 | AG93: 0
D94: =IFERROR(IF(N94>0,"SUGEROWANE",IF((INDEX(Kalkulacja!B:B,MATCH(G94,Kalkulacja!H:H,0)))="x","USŁUGA","")),"") ->  | E94: i | G94: =Kalkulacja!H12 -> Dodatkowy moduł 1 | J94: 0 | K94: =IFERROR(IF(Kalkulacja!$F$2="x",INDEX(Kalkulacja!$R$1:$R$459,Q94),""),"") ->  | M94: FALSE | N94: =IFERROR(INDEX('Podświetlanie modułów'!H:H,MATCH(G94,'Podświetlanie modułów'!F:F,0)),0) -> 0 | O94: =IF(M94*1>0,"x",IF(INDEX(Kalkulacja!A:A,Q94)="x","x",0)) -> 0 | P94: FALSE | Q94: =MATCH(G94,Kalkulacja!$H$1:$H$459,0) -> 12 | T94: 0 | V94: 0 | AA94: Dodatkowy moduł 1 | AF94: =IFERROR(INDEX(Kalkulacja!Q:Q,Q94),0) -> 0 | AG94: 0
D95: =IFERROR(IF(N95>0,"SUGEROWANE",IF((INDEX(Kalkulacja!B:B,MATCH(G95,Kalkulacja!H:H,0)))="x","USŁUGA","")),"") ->  | E95: i | G95: =Kalkulacja!H13 -> Dodatkowy moduł 2 | J95: 0 | K95: =IFERROR(IF(Kalkulacja!$F$2="x",INDEX(Kalkulacja!$R$1:$R$459,Q95),""),"") ->  | M95: FALSE | N95: =IFERROR(INDEX('Podświetlanie modułów'!H:H,MATCH(G95,'Podświetlanie modułów'!F:F,0)),0) -> 0 | O95: =IF(M95*1>0,"x",IF(INDEX(Kalkulacja!A:A,Q95)="x","x",0)) -> 0 | P95: FALSE | Q95: =MATCH(G95,Kalkulacja!$H$1:$H$459,0) -> 13 | T95: 0 | V95: 0 | AA95: Dodatkowy moduł 2 | AF95: =IFERROR(INDEX(Kalkulacja!Q:Q,Q95),0) -> 0 | AG95: 0
D96: =IFERROR(IF(N96>0,"SUGEROWANE",IF((INDEX(Kalkulacja!B:B,MATCH(G96,Kalkulacja!H:H,0)))="x","USŁUGA","")),"") ->  | E96: i | G96: =Kalkulacja!H14 -> Dodatkowy moduł 3 | J96: 0 | K96: =IFERROR(IF(Kalkulacja!$F$2="x",INDEX(Kalkulacja!$R$1:$R$459,Q96),""),"") ->  | M96: FALSE | N96: =IFERROR(INDEX('Podświetlanie modułów'!H:H,MATCH(G96,'Podświetlanie modułów'!F:F,0)),0) -> 0 | O96: =IF(M96*1>0,"x",IF(INDEX(Kalkulacja!A:A,Q96)="x","x",0)) -> 0 | P96: FALSE | Q96: =MATCH(G96,Kalkulacja!$H$1:$H$459,0) -> 14 | T96: 0 | V96: 0 | AA96: Dodatkowy moduł 3 | AF96: =IFERROR(INDEX(Kalkulacja!Q:Q,Q96),0) -> 0 | AG96: 0
D97: =IFERROR(IF(N97>0,"SUGEROWANE",IF((INDEX(Kalkulacja!B:B,MATCH(G97,Kalkulacja!H:H,0)))="x","USŁUGA","")),"") ->  | E97: i | G97: =Kalkulacja!H15 -> Dodatkowy moduł 4 | J97: 0 | K97: =IFERROR(IF(Kalkulacja!$F$2="x",INDEX(Kalkulacja!$R$1:$R$459,Q97),""),"") ->  | M97: FALSE | N97: =IFERROR(INDEX('Podświetlanie modułów'!H:H,MATCH(G97,'Podświetlanie modułów'!F:F,0)),0) -> 0 | O97: =IF(M97*1>0,"x",IF(INDEX(Kalkulacja!A:A,Q97)="x","x",0)) -> 0 | P97: FALSE | Q97: =MATCH(G97,Kalkulacja!$H$1:$H$459,0) -> 15 | T97: 0 | V97: 0 | AA97: Dodatkowy moduł 4 | AF97: =IFERROR(INDEX(Kalkulacja!Q:Q,Q97),0) -> 0 | AG97: 0
D98: =IFERROR(IF(N98>0,"SUGEROWANE",IF((INDEX(Kalkulacja!B:B,MATCH(G98,Kalkulacja!H:H,0)))="x","USŁUGA","")),"") ->  | E98: i | G98: =Kalkulacja!H16 -> Dodatkowy moduł 5 | J98: 0 | K98: =IFERROR(IF(Kalkulacja!$F$2="x",INDEX(Kalkulacja!$R$1:$R$459,Q98),""),"") ->  | M98: FALSE | N98: =IFERROR(INDEX('Podświetlanie modułów'!H:H,MATCH(G98,'Podświetlanie modułów'!F:F,0)),0) -> 0 | O98: =IF(M98*1>0,"x",IF(INDEX(Kalkulacja!A:A,Q98)="x","x",0)) -> 0 | P98: FALSE | Q98: =MATCH(G98,Kalkulacja!$H$1:$H$459,0) -> 16 | T98: 0 | V98: 0 | AA98: Dodatkowy moduł 5 | AF98: =IFERROR(INDEX(Kalkulacja!Q:Q,Q98),0) -> 0 | AG98: 0
D99: =IFERROR(IF(N99>0,"SUGEROWANE",IF((INDEX(Kalkulacja!B:B,MATCH(G99,Kalkulacja!H:H,0)))="x","USŁUGA","")),"") ->  | E99: =Kalkulacja!H17 -> Tylko Projekt graficzny www | N99: =IFERROR(INDEX('Podświetlanie modułów'!H:H,MATCH(G99,'Podświetlanie modułów'!F:F,0)),0) -> 0 | O99: =IF(COUNTIF(O100:O114,"x")>0,"x",0) -> 0 | P99: FALSE | Q99: =MATCH(E99,Kalkulacja!$H$1:$H$459,0) -> 17 | T99: 0 | V99: 0 | AA99: 0 | AF99: =IFERROR(INDEX(Kalkulacja!Q:Q,Q99),0) -> 0 | AG99: 0
D100: =IFERROR(IF(N100>0,"SUGEROWANE",IF((INDEX(Kalkulacja!B:B,MATCH(G100,Kalkulacja!H:H,0)))="x","USŁUGA","")),"") ->  | E100: i | G100: =INDEX(X100:$X$104,MATCH($T$100,$Y$100:$Y$104,0)) -> Projekt strony głównej 3 sekcje | J100: 0 | K100: =IFERROR(IF(Kalkulacja!$F$2="x",INDEX(Kalkulacja!$R$1:$R$459,Q100),""),"") ->  | M100: FALSE | N100: =IFERROR(INDEX('Podświetlanie modułów'!H:H,MATCH(G100,'Podświetlanie modułów'!F:F,0)),0) -> 0 | O100: =IF(M100*1>0,"x",IF(COUNTIF(Kalkulacja!$A$18:$A$22,"x")>0,"x",0)) -> 0 | P100: FALSE | Q100: =MATCH(G100,Kalkulacja!$H$1:$H$459,0) -> 18 | T100: 1 | U100: =IFERROR(INDEX($Y$100:$Y$104,MATCH("x",$Z$100:$Z$104,0)),1) -> 1 | V100: 0 | X100: =Kalkulacja!H18 -> Projekt strony głównej 3 sekcje | Y100: 1 | Z100: =INDEX(Kalkulacja!$C$18:$C$22,MATCH(X100,Kalkulacja!$H$18:$H$22,0)) -> 0 | AA100: Projekt strony głównej 3 sekcje | AF100: =IFERROR(INDEX(Kalkulacja!Q:Q,Q100),0) -> 0 | AG100: 0
D101: =IFERROR(IF(N101>0,"SUGEROWANE",IF((INDEX(Kalkulacja!B:B,MATCH(G101,Kalkulacja!H:H,0)))="x","USŁUGA","")),"") ->  | E101: i | G101: =Kalkulacja!H23 -> Strona 1 sekcja | J101: 0 | K101: =IFERROR(IF(Kalkulacja!$F$2="x",INDEX(Kalkulacja!$R$1:$R$459,Q101),""),"") ->  | M101: FALSE | N101: =IFERROR(INDEX('Podświetlanie modułów'!H:H,MATCH(G101,'Podświetlanie modułów'!F:F,0)),0) -> 0 | O101: =IF(M101*1>0,"x",IF(INDEX(Kalkulacja!A:A,Q101)="x","x",0)) -> 0 | P101: FALSE | Q101: =MATCH(G101,Kalkulacja!$H$1:$H$459,0) -> 23 | T101: 0 | V101: 0 | X101: =Kalkulacja!H19 -> Projekt strony głównej 5 sekcji | Y101: 2 | Z101: =INDEX(Kalkulacja!$C$18:$C$22,MATCH(X101,Kalkulacja!$H$18:$H$22,0)) -> 0 | AA101: Strona 1 sekcja | AF101: =IFERROR(INDEX(Kalkulacja!Q:Q,Q101),0) -> 0 | AG101: 0
D102: =IFERROR(IF(N102>0,"SUGEROWANE",IF((INDEX(Kalkulacja!B:B,MATCH(G102,Kalkulacja!H:H,0)))="x","USŁUGA","")),"") ->  | E102: i | F102: =IF(ISBLANK(G102)," Podaj szczegóły sekcji","") -> Podaj szczegóły sekcji | M102: =S102 -> 0 | N102: =IFERROR(INDEX('Podświetlanie modułów'!H:H,MATCH(G102,'Podświetlanie modułów'!F:F,0)),0) -> 0 | O102: =IF(O101="x","x",0) -> 0 | P102: FALSE | Q102: =MATCH(G102,Kalkulacja!$H$1:$H$459,0) ->  | T102: 0 | V102: 0 | X102: =Kalkulacja!H20 -> Projekt strony głównej 7 sekcji | Y102: 3 | Z102: =INDEX(Kalkulacja!$C$18:$C$22,MATCH(X102,Kalkulacja!$H$18:$H$22,0)) -> 0 | AA102: 0 | AF102: =IFERROR(INDEX(Kalkulacja!Q:Q,Q102),0) -> 0 | AG102: 0
D103: =IFERROR(IF(N103>0,"SUGEROWANE",IF((INDEX(Kalkulacja!B:B,MATCH(G103,Kalkulacja!H:H,0)))="x","USŁUGA","")),"") ->  | E103: i | G103: =Kalkulacja!H25 -> Strona 3 sekcje | J103: 0 | K103: =IFERROR(IF(Kalkulacja!$F$2="x",INDEX(Kalkulacja!$R$1:$R$459,Q103),""),"") ->  | M103: FALSE | N103: =IFERROR(INDEX('Podświetlanie modułów'!H:H,MATCH(G103,'Podświetlanie modułów'!F:F,0)),0) -> 0 | O103: =IF(M103*1>0,"x",IF(INDEX(Kalkulacja!A:A,Q103)="x","x",0)) -> 0 | P103: FALSE | Q103: =MATCH(G103,Kalkulacja!$H$1:$H$459,0) -> 25 | T103: 0 | V103: 0 | X103: =Kalkulacja!H21 -> Projekt strony głównej 10 sekcji | Y103: 4 | Z103: =INDEX(Kalkulacja!$C$18:$C$22,MATCH(X103,Kalkulacja!$H$18:$H$22,0)) -> 0 | AA103: Strona 3 sekcje | AF103: =IFERROR(INDEX(Kalkulacja!Q:Q,Q103),0) -> 0 | AG103: 0
D104: =IFERROR(IF(N104>0,"SUGEROWANE",IF((INDEX(Kalkulacja!B:B,MATCH(G104,Kalkulacja!H:H,0)))="x","USŁUGA","")),"") ->  | E104: i | F104: =IF(ISBLANK(G104)," Podaj szczegóły sekcji","") -> Podaj szczegóły sekcji | M104: 0 | N104: =IFERROR(INDEX('Podświetlanie modułów'!H:H,MATCH(G104,'Podświetlanie modułów'!F:F,0)),0) -> 0 | O104: =IF(O103="x","x",0) -> 0 | P104: FALSE | Q104: =MATCH(G104,Kalkulacja!$H$1:$H$459,0) ->  | T104: 0 | V104: 0 | X104: =Kalkulacja!H22 -> Projekt strony głównej 15 sekcji | Y104: 5 | Z104: =INDEX(Kalkulacja!$C$18:$C$22,MATCH(X104,Kalkulacja!$H$18:$H$22,0)) -> 0 | AA104: 0 | AF104: =IFERROR(INDEX(Kalkulacja!Q:Q,Q104),0) -> 0 | AG104: 0
D105: =IFERROR(IF(N105>0,"SUGEROWANE",IF((INDEX(Kalkulacja!B:B,MATCH(G105,Kalkulacja!H:H,0)))="x","USŁUGA","")),"") ->  | E105: i | G105: =Kalkulacja!H27 -> Strona 5 sekcji | J105: 0 | K105: =IFERROR(IF(Kalkulacja!$F$2="x",INDEX(Kalkulacja!$R$1:$R$459,Q105),""),"") ->  | M105: FALSE | N105: =IFERROR(INDEX('Podświetlanie modułów'!H:H,MATCH(G105,'Podświetlanie modułów'!F:F,0)),0) -> 0 | O105: =IF(M105*1>0,"x",IF(INDEX(Kalkulacja!A:A,Q105)="x","x",0)) -> 0 | P105: FALSE | Q105: =MATCH(G105,Kalkulacja!$H$1:$H$459,0) -> 27 | T105: 0 | V105: 0 | AA105: Strona 5 sekcji | AF105: =IFERROR(INDEX(Kalkulacja!Q:Q,Q105),0) -> 0 | AG105: 0
D106: =IFERROR(IF(N106>0,"SUGEROWANE",IF((INDEX(Kalkulacja!B:B,MATCH(G106,Kalkulacja!H:H,0)))="x","USŁUGA","")),"") ->  | E106: i | F106: =IF(ISBLANK(G106)," Podaj szczegóły sekcji","") -> Podaj szczegóły sekcji | M106: 0 | N106: =IFERROR(INDEX('Podświetlanie modułów'!H:H,MATCH(G106,'Podświetlanie modułów'!F:F,0)),0) -> 0 | O106: =IF(O105="x","x",0) -> 0 | P106: FALSE | Q106: =MATCH(G106,Kalkulacja!$H$1:$H$459,0) ->  | T106: 0 | V106: 0 | AA106: 0 | AF106: =IFERROR(INDEX(Kalkulacja!Q:Q,Q106),0) -> 0 | AG106: 0
D107: =IFERROR(IF(N107>0,"SUGEROWANE",IF((INDEX(Kalkulacja!B:B,MATCH(G107,Kalkulacja!H:H,0)))="x","USŁUGA","")),"") ->  | E107: i | G107: =Kalkulacja!H29 -> Strona 7 sekcji | J107: 0 | K107: =IFERROR(IF(Kalkulacja!$F$2="x",INDEX(Kalkulacja!$R$1:$R$459,Q107),""),"") ->  | M107: FALSE | N107: =IFERROR(INDEX('Podświetlanie modułów'!H:H,MATCH(G107,'Podświetlanie modułów'!F:F,0)),0) -> 0 | O107: =IF(M107*1>0,"x",IF(INDEX(Kalkulacja!A:A,Q107)="x","x",0)) -> 0 | P107: FALSE | Q107: =MATCH(G107,Kalkulacja!$H$1:$H$459,0) -> 29 | T107: 0 | V107: 0 | AA107: Strona 7 sekcji | AF107: =IFERROR(INDEX(Kalkulacja!Q:Q,Q107),0) -> 0 | AG107: 0
D108: =IFERROR(IF(N108>0,"SUGEROWANE",IF((INDEX(Kalkulacja!B:B,MATCH(G108,Kalkulacja!H:H,0)))="x","USŁUGA","")),"") ->  | E108: i | F108: =IF(ISBLANK(G108)," Podaj szczegóły sekcji","") -> Podaj szczegóły sekcji | M108: 0 | N108: =IFERROR(INDEX('Podświetlanie modułów'!H:H,MATCH(G108,'Podświetlanie modułów'!F:F,0)),0) -> 0 | O108: =IF(O107="x","x",0) -> 0 | P108: FALSE | Q108: =MATCH(G108,Kalkulacja!$H$1:$H$459,0) ->  | T108: 0 | V108: 0 | AA108: 0 | AF108: =IFERROR(INDEX(Kalkulacja!Q:Q,Q108),0) -> 0 | AG108: 0
D109: =IFERROR(IF(N109>0,"SUGEROWANE",IF((INDEX(Kalkulacja!B:B,MATCH(G109,Kalkulacja!H:H,0)))="x","USŁUGA","")),"") ->  | E109: i | G109: =Kalkulacja!H31 -> Strona 10 sekcji | J109: 0 | K109: =IFERROR(IF(Kalkulacja!$F$2="x",INDEX(Kalkulacja!$R$1:$R$459,Q109),""),"") ->  | M109: FALSE | N109: =IFERROR(INDEX('Podświetlanie modułów'!H:H,MATCH(G109,'Podświetlanie modułów'!F:F,0)),0) -> 0 | O109: =IF(M109*1>0,"x",IF(INDEX(Kalkulacja!A:A,Q109)="x","x",0)) -> 0 | P109: FALSE | Q109: =MATCH(G109,Kalkulacja!$H$1:$H$459,0) -> 31 | T109: 0 | V109: 0 | AA109: Strona 10 sekcji | AF109: =IFERROR(INDEX(Kalkulacja!Q:Q,Q109),0) -> 0 | AG109: 0
D110: =IFERROR(IF(N110>0,"SUGEROWANE",IF((INDEX(Kalkulacja!B:B,MATCH(G110,Kalkulacja!H:H,0)))="x","USŁUGA","")),"") ->  | E110: i | F110: =IF(ISBLANK(G110)," Podaj szczegóły sekcji","") -> Podaj szczegóły sekcji | M110: 0 | N110: =IFERROR(INDEX('Podświetlanie modułów'!H:H,MATCH(G110,'Podświetlanie modułów'!F:F,0)),0) -> 0 | O110: =IF(O109="x","x",0) -> 0 | P110: FALSE | Q110: =MATCH(G110,Kalkulacja!$H$1:$H$459,0) ->  | T110: 0 | V110: 0 | AA110: 0 | AF110: =IFERROR(INDEX(Kalkulacja!Q:Q,Q110),0) -> 0 | AG110: 0
D111: =IFERROR(IF(N111>0,"SUGEROWANE",IF((INDEX(Kalkulacja!B:B,MATCH(G111,Kalkulacja!H:H,0)))="x","USŁUGA","")),"") ->  | E111: i | G111: =Kalkulacja!H33 -> Dodatkowy moduł 6 | J111: 0 | K111: =IFERROR(IF(Kalkulacja!$F$2="x",INDEX(Kalkulacja!$R$1:$R$459,Q111),""),"") ->  | M111: FALSE | N111: =IFERROR(INDEX('Podświetlanie modułów'!H:H,MATCH(G111,'Podświetlanie modułów'!F:F,0)),0) -> 0 | O111: =IF(M111*1>0,"x",IF(INDEX(Kalkulacja!A:A,Q111)="x","x",0)) -> 0 | P111: FALSE | Q111: =MATCH(G111,Kalkulacja!$H$1:$H$459,0) -> 33 | T111: 0 | V111: 0 | AA111: Dodatkowy moduł 6 | AF111: =IFERROR(INDEX(Kalkulacja!Q:Q,Q111),0) -> 0 | AG111: 0
D112: =IFERROR(IF(N112>0,"SUGEROWANE",IF((INDEX(Kalkulacja!B:B,MATCH(G112,Kalkulacja!H:H,0)))="x","USŁUGA","")),"") ->  | E112: i | G112: =Kalkulacja!H34 -> Dodatkowy moduł 7 | J112: 0 | K112: =IFERROR(IF(Kalkulacja!$F$2="x",INDEX(Kalkulacja!$R$1:$R$459,MATCH(G112,Kalkulacja!$H$1:$H$459,0)),""),"") ->  | M112: FALSE | N112: =IFERROR(INDEX('Podświetlanie modułów'!H:H,MATCH(G112,'Podświetlanie modułów'!F:F,0)),0) -> 0 | O112: =IF(M112*1>0,"x",IF(INDEX(Kalkulacja!A:A,Q112)="x","x",0)) -> 0 | P112: FALSE | Q112: =MATCH(G112,Kalkulacja!$H$1:$H$459,0) -> 34 | T112: 0 | V112: 0 | AA112: Dodatkowy moduł 7 | AF112: =IFERROR(INDEX(Kalkulacja!Q:Q,Q112),0) -> 0 | AG112: 0
D113: =IFERROR(IF(N113>0,"SUGEROWANE",IF((INDEX(Kalkulacja!B:B,MATCH(G113,Kalkulacja!H:H,0)))="x","USŁUGA","")),"") ->  | E113: i | G113: =Kalkulacja!H35 -> Dodatkowy moduł 8 | J113: 0 | K113: =IFERROR(IF(Kalkulacja!$F$2="x",INDEX(Kalkulacja!$R$1:$R$459,MATCH(G113,Kalkulacja!$H$1:$H$459,0)),""),"") ->  | M113: FALSE | N113: =IFERROR(INDEX('Podświetlanie modułów'!H:H,MATCH(G113,'Podświetlanie modułów'!F:F,0)),0) -> 0 | O113: =IF(M113*1>0,"x",IF(INDEX(Kalkulacja!A:A,Q113)="x","x",0)) -> 0 | P113: FALSE | Q113: =MATCH(G113,Kalkulacja!$H$1:$H$459,0) -> 35 | T113: 0 | V113: 0 | X113: =Kalkulacja!H38 -> Lista wpisów prosta | Y113: 1 | Z113: =INDEX(Kalkulacja!$C$38:$C$39,MATCH(X113,Kalkulacja!$H$38:$H$39,0)) -> 0 | AA113: Dodatkowy moduł 8 | AF113: =IFERROR(INDEX(Kalkulacja!Q:Q,Q113),0) -> 0 | AG113: 0
D114: =IFERROR(IF(N114>0,"SUGEROWANE",IF((INDEX(Kalkulacja!B:B,MATCH(G114,Kalkulacja!H:H,0)))="x","USŁUGA","")),"") ->  | E114: i | G114: =Kalkulacja!H36 -> Dodatkowy moduł 9 | J114: 0 | K114: =IFERROR(IF(Kalkulacja!$F$2="x",INDEX(Kalkulacja!$R$1:$R$459,MATCH(G114,Kalkulacja!$H$1:$H$459,0)),""),"") ->  | M114: FALSE | N114: =IFERROR(INDEX('Podświetlanie modułów'!H:H,MATCH(G114,'Podświetlanie modułów'!F:F,0)),0) -> 0 | O114: =IF(M114*1>0,"x",IF(INDEX(Kalkulacja!A:A,Q114)="x","x",0)) -> 0 | P114: FALSE | Q114: =MATCH(G114,Kalkulacja!$H$1:$H$459,0) -> 36 | T114: 0 | V114: 0 | X114: =Kalkulacja!H39 -> Lista wpisów rozbudowana | Y114: 2 | Z114: =INDEX(Kalkulacja!$C$38:$C$39,MATCH(X114,Kalkulacja!$H$38:$H$39,0)) -> x | AA114: Dodatkowy moduł 9 | AF114: =IFERROR(INDEX(Kalkulacja!Q:Q,Q114),0) -> 0 | AG114: 0
D115: =IFERROR(IF(N115>0,"SUGEROWANE",IF((INDEX(Kalkulacja!B:B,MATCH(G115,Kalkulacja!H:H,0)))="x","USŁUGA","")),"") ->  | E115: =Kalkulacja!H37 -> Projekt bloga | N115: =IFERROR(INDEX('Podświetlanie modułów'!H:H,MATCH(G115,'Podświetlanie modułów'!F:F,0)),0) -> 0 | O115: =IF(COUNTIF(O116:O123,"x")>0,"x",0) -> 0 | P115: FALSE | Q115: =MATCH(E115,Kalkulacja!$H$1:$H$459,0) -> 37 | T115: 0 | V115: 0 | AA115: 0 | AF115: =IFERROR(INDEX(Kalkulacja!Q:Q,Q115),0) -> 0 | AG115: 0
D116: =IFERROR(IF(N116>0,"SUGEROWANE",IF((INDEX(Kalkulacja!B:B,MATCH(G116,Kalkulacja!H:H,0)))="x","USŁUGA","")),"") ->  | E116: i | F116: =IF(ISBLANK(G116)," Wybierz rodzaj listy wpisów","") ->  | G116: =INDEX(X$113:$X114,MATCH($T$116,$Y$113:$Y$114,0)) -> Lista wpisów rozbudowana | J116: 0 | K116: =IFERROR(IF(Kalkulacja!$F$2="x",INDEX(Kalkulacja!$R$1:$R$459,Q116),""),"") ->  | M116: FALSE | N116: =IFERROR(INDEX('Podświetlanie modułów'!H:H,MATCH(G116,'Podświetlanie modułów'!F:F,0)),0) -> 0 | O116: =IF(M116*1>0,"x",IF(COUNTIF(Kalkulacja!$A$38:$A$39,"x")>0,"x",0)) -> 0 | P116: FALSE | Q116: =MATCH(G116,Kalkulacja!$H$1:$H$459,0) -> 39 | T116: 2 | U116: =IFERROR(INDEX($Y$113:$Y$114,MATCH("x",$Z$113:$Z$114,0)),1) -> 2 | V116: 0 | AA116: Lista wpisów rozbudowana | AF116: =IFERROR(INDEX(Kalkulacja!Q:Q,Q116),0) -> 0 | AG116: 0
D117: =IFERROR(IF(N117>0,"SUGEROWANE",IF((INDEX(Kalkulacja!B:B,MATCH(G117,Kalkulacja!H:H,0)))="x","USŁUGA","")),"") ->  | E117: i | F117: =IF(ISBLANK(G117)," Wybierz typ wpisów","") ->  | G117: =INDEX(X$117:$X119,MATCH($T$117,$Y$117:$Y$119,0)) -> Wpis złożony | J117: 0 | K117: =IFERROR(IF(Kalkulacja!$F$2="x",INDEX(Kalkulacja!$R$1:$R$459,Q117),""),"") ->  | M117: FALSE | N117: =IFERROR(INDEX('Podświetlanie modułów'!H:H,MATCH(G117,'Podświetlanie modułów'!F:F,0)),0) -> 0 | O117: =IF(M117*1>0,"x",IF(COUNTIF(Kalkulacja!$A$40:$A$42,"x")>0,"x",0)) -> 0 | P117: FALSE | Q117: =MATCH(G117,Kalkulacja!$H$1:$H$459,0) -> 41 | T117: 2 | U117: =IFERROR(INDEX($Y$117:$Y$119,MATCH("x",$Z$117:$Z$119,0)),1) -> 2 | V117: 0 | X117: =Kalkulacja!H40 -> Wpis podstawowy | Y117: 1 | Z117: =INDEX(Kalkulacja!$C$40:$C$42,MATCH(X117,Kalkulacja!$H$40:$H$42,0)) -> 0 | AA117: Wpis złożony | AF117: =IFERROR(INDEX(Kalkulacja!Q:Q,Q117),0) -> 0 | AG117: 0
D118: =IFERROR(IF(N118>0,"SUGEROWANE",IF((INDEX(Kalkulacja!B:B,MATCH(G118,Kalkulacja!H:H,0)))="x","USŁUGA","")),"") ->  | E118: i | G118: =Kalkulacja!H43 -> Obrazek do popup (tylko grafika) | J118: 0 | K118: =IFERROR(IF(Kalkulacja!$F$2="x",INDEX(Kalkulacja!$R$1:$R$459,Q118),""),"") ->  | M118: FALSE | N118: =IFERROR(INDEX('Podświetlanie modułów'!H:H,MATCH(G118,'Podświetlanie modułów'!F:F,0)),0) -> 0 | O118: =IF(M118*1>0,"x",IF(INDEX(Kalkulacja!A:A,Q118)="x","x",0)) -> 0 | P118: FALSE | Q118: =MATCH(G118,Kalkulacja!$H$1:$H$459,0) -> 43 | T118: 0 | V118: 0 | X118: =Kalkulacja!H41 -> Wpis złożony | Y118: 2 | Z118: =INDEX(Kalkulacja!$C$40:$C$42,MATCH(X118,Kalkulacja!$H$40:$H$42,0)) -> x | AA118: Obrazek do popup (tylko grafika) | AF118: =IFERROR(INDEX(Kalkulacja!Q:Q,Q118),0) -> 0 | AG118: 0
D119: =IFERROR(IF(N119>0,"SUGEROWANE",IF((INDEX(Kalkulacja!B:B,MATCH(G119,Kalkulacja!H:H,0)))="x","USŁUGA","")),"") ->  | E119: i | G119: =Kalkulacja!H44 -> Dodatkowy moduł 10 | J119: 0 | K119: =IFERROR(IF(Kalkulacja!$F$2="x",INDEX(Kalkulacja!$R$1:$R$459,Q119),""),"") ->  | M119: 0 | N119: =IFERROR(INDEX('Podświetlanie modułów'!H:H,MATCH(G119,'Podświetlanie modułów'!F:F,0)),0) -> 0 | O119: =IF(M119*1>0,"x",IF(INDEX(Kalkulacja!A:A,Q119)="x","x",0)) -> 0 | P119: FALSE | Q119: =MATCH(G119,Kalkulacja!$H$1:$H$459,0) -> 44 | T119: 0 | V119: 0 | X119: =Kalkulacja!H42 -> Wpis rozbudowany | Y119: 3 | Z119: =INDEX(Kalkulacja!$C$40:$C$42,MATCH(X119,Kalkulacja!$H$40:$H$42,0)) -> 0 | AA119: Dodatkowy moduł 10 | AF119: =IFERROR(INDEX(Kalkulacja!Q:Q,Q119),0) -> 0 | AG119: 0
D120: =IFERROR(IF(N120>0,"SUGEROWANE",IF((INDEX(Kalkulacja!B:B,MATCH(G120,Kalkulacja!H:H,0)))="x","USŁUGA","")),"") ->  | E120: i | G120: =Kalkulacja!H45 -> Dodatkowy moduł 11 | J120: 0 | K120: =IFERROR(IF(Kalkulacja!$F$2="x",INDEX(Kalkulacja!$R$1:$R$459,Q120),""),"") ->  | M120: 0 | N120: =IFERROR(INDEX('Podświetlanie modułów'!H:H,MATCH(G120,'Podświetlanie modułów'!F:F,0)),0) -> 0 | O120: =IF(M120*1>0,"x",IF(INDEX(Kalkulacja!A:A,Q120)="x","x",0)) -> 0 | P120: FALSE | Q120: =MATCH(G120,Kalkulacja!$H$1:$H$459,0) -> 45 | T120: 0 | V120: 0 | AA120: Dodatkowy moduł 11 | AF120: =IFERROR(INDEX(Kalkulacja!Q:Q,Q120),0) -> 0 | AG120: 0
D121: =IFERROR(IF(N121>0,"SUGEROWANE",IF((INDEX(Kalkulacja!B:B,MATCH(G121,Kalkulacja!H:H,0)))="x","USŁUGA","")),"") ->  | E121: i | G121: =Kalkulacja!H46 -> Dodatkowy moduł 12 | J121: 0 | K121: =IFERROR(IF(Kalkulacja!$F$2="x",INDEX(Kalkulacja!$R$1:$R$459,Q121),""),"") ->  | M121: 0 | N121: =IFERROR(INDEX('Podświetlanie modułów'!H:H,MATCH(G121,'Podświetlanie modułów'!F:F,0)),0) -> 0 | O121: =IF(M121*1>0,"x",IF(INDEX(Kalkulacja!A:A,Q121)="x","x",0)) -> 0 | P121: FALSE | Q121: =MATCH(G121,Kalkulacja!$H$1:$H$459,0) -> 46 | T121: 0 | V121: 0 | AA121: Dodatkowy moduł 12 | AF121: =IFERROR(INDEX(Kalkulacja!Q:Q,Q121),0) -> 0 | AG121: 0
D122: =IFERROR(IF(N122>0,"SUGEROWANE",IF((INDEX(Kalkulacja!B:B,MATCH(G122,Kalkulacja!H:H,0)))="x","USŁUGA","")),"") ->  | E122: i | G122: =Kalkulacja!H47 -> Dodatkowy moduł 13 | J122: 0 | K122: =IFERROR(IF(Kalkulacja!$F$2="x",INDEX(Kalkulacja!$R$1:$R$459,Q122),""),"") ->  | M122: 0 | N122: =IFERROR(INDEX('Podświetlanie modułów'!H:H,MATCH(G122,'Podświetlanie modułów'!F:F,0)),0) -> 0 | O122: =IF(M122*1>0,"x",IF(INDEX(Kalkulacja!A:A,Q122)="x","x",0)) -> 0 | P122: FALSE | Q122: =MATCH(G122,Kalkulacja!$H$1:$H$459,0) -> 47 | T122: 0 | V122: 0 | AA122: Dodatkowy moduł 13 | AF122: =IFERROR(INDEX(Kalkulacja!Q:Q,Q122),0) -> 0 | AG122: 0
D123: =IFERROR(IF(N123>0,"SUGEROWANE",IF((INDEX(Kalkulacja!B:B,MATCH(G123,Kalkulacja!H:H,0)))="x","USŁUGA","")),"") ->  | E123: i | G123: =Kalkulacja!H48 -> Dodatkowy moduł 14 | J123: 0 | K123: =IFERROR(IF(Kalkulacja!$F$2="x",INDEX(Kalkulacja!$R$1:$R$459,Q123),""),"") ->  | M123: 0 | N123: =IFERROR(INDEX('Podświetlanie modułów'!H:H,MATCH(G123,'Podświetlanie modułów'!F:F,0)),0) -> 0 | O123: =IF(M123*1>0,"x",IF(INDEX(Kalkulacja!A:A,Q123)="x","x",0)) -> 0 | P123: FALSE | Q123: =MATCH(G123,Kalkulacja!$H$1:$H$459,0) -> 48 | T123: 0 | V123: 0 | AA123: Dodatkowy moduł 14 | AF123: =IFERROR(INDEX(Kalkulacja!Q:Q,Q123),0) -> 0 | AG123: 0
D124: =IFERROR(IF(N124>0,"SUGEROWANE",IF((INDEX(Kalkulacja!B:B,MATCH(G124,Kalkulacja!H:H,0)))="x","USŁUGA","")),"") ->  | E124: =Kalkulacja!H49 -> Projekt sklepu | N124: =IFERROR(INDEX('Podświetlanie modułów'!H:H,MATCH(G124,'Podświetlanie modułów'!F:F,0)),0) -> 0 | O124: =IF(COUNTIF(O125:O135,"x")>0,"x",0) -> 0 | P124: FALSE | Q124: =MATCH(E124,Kalkulacja!$H$1:$H$459,0) -> 49 | T124: 0 | V124: 0 | AA124: 0 | AF124: =IFERROR(INDEX(Kalkulacja!Q:Q,Q124),0) -> 0 | AG124: 0
D125: =IFERROR(IF(N125>0,"SUGEROWANE",IF((INDEX(Kalkulacja!B:B,MATCH(G125,Kalkulacja!H:H,0)))="x","USŁUGA","")),"") ->  | E125: i | F125: =IF(ISBLANK(G125)," Wybierz typ strony","") ->  | G125: =INDEX(X$125:$X127,MATCH($T$125,$Y$125:$Y$127,0)) -> Strona produkt + 6 sekcji | J125: 0 | K125: =IFERROR(IF(Kalkulacja!$F$2="x",INDEX(Kalkulacja!$R$1:$R$459,Q125),""),"") ->  | M125: FALSE | N125: =IFERROR(INDEX('Podświetlanie modułów'!H:H,MATCH(G125,'Podświetlanie modułów'!F:F,0)),0) -> 0 | O125: =IF(M125*1>0,"x",IF(COUNTIF(Kalkulacja!$A$50:$A$52,"x")>0,"x",0)) -> 0 | P125: FALSE | Q125: =MATCH(G125,Kalkulacja!$H$1:$H$459,0) -> 52 | T125: 3 | U125: =IFERROR(INDEX($Y$125:$Y$127,MATCH("x",$Z$125:$Z$127,0)),1) -> 3 | V125: 0 | X125: =Kalkulacja!H50 -> Strona produkt prosty | Y125: 1 | Z125: =INDEX(Kalkulacja!$C$50:$C$52,MATCH(X125,Kalkulacja!$H$50:$H$52,0)) -> 0 | AA125: Strona produkt + 6 sekcji | AF125: =IFERROR(INDEX(Kalkulacja!Q:Q,Q125),0) -> 0 | AG125: 0
D126: =IFERROR(IF(N126>0,"SUGEROWANE",IF((INDEX(Kalkulacja!B:B,MATCH(G126,Kalkulacja!H:H,0)))="x","USŁUGA","")),"") ->  | E126: i | G126: =Kalkulacja!H53 -> Kategoria produktów prosta | J126: 0 | K126: =IFERROR(IF(Kalkulacja!$F$2="x",INDEX(Kalkulacja!$R$1:$R$459,Q126),""),"") ->  | M126: FALSE | N126: =IFERROR(INDEX('Podświetlanie modułów'!H:H,MATCH(G126,'Podświetlanie modułów'!F:F,0)),0) -> 0 | O126: =IF(M126*1>0,"x",IF(INDEX(Kalkulacja!A:A,Q126)="x","x",0)) -> 0 | P126: FALSE | Q126: =MATCH(G126,Kalkulacja!$H$1:$H$459,0) -> 53 | T126: 0 | V126: 0 | X126: =Kalkulacja!H51 -> Strona produkt + 3 sekcje | Y126: 2 | Z126: =INDEX(Kalkulacja!$C$50:$C$52,MATCH(X126,Kalkulacja!$H$50:$H$52,0)) -> 0 | AA126: Kategoria produktów prosta | AF126: =IFERROR(INDEX(Kalkulacja!Q:Q,Q126),0) -> 0 | AG126: 0
D127: =IFERROR(IF(N127>0,"SUGEROWANE",IF((INDEX(Kalkulacja!B:B,MATCH(G127,Kalkulacja!H:H,0)))="x","USŁUGA","")),"") ->  | E127: i | G127: =Kalkulacja!H54 -> Kategoria produktów rozbudowana | J127: 0 | K127: =IFERROR(IF(Kalkulacja!$F$2="x",INDEX(Kalkulacja!$R$1:$R$459,Q127),""),"") ->  | M127: FALSE | N127: =IFERROR(INDEX('Podświetlanie modułów'!H:H,MATCH(G127,'Podświetlanie modułów'!F:F,0)),0) -> 0 | O127: =IF(M127*1>0,"x",IF(INDEX(Kalkulacja!A:A,Q127)="x","x",0)) -> 0 | P127: FALSE | Q127: =MATCH(G127,Kalkulacja!$H$1:$H$459,0) -> 54 | T127: 0 | V127: 0 | X127: =Kalkulacja!H52 -> Strona produkt + 6 sekcji | Y127: 3 | Z127: =INDEX(Kalkulacja!$C$50:$C$52,MATCH(X127,Kalkulacja!$H$50:$H$52,0)) -> x | AA127: Kategoria produktów rozbudowana | AF127: =IFERROR(INDEX(Kalkulacja!Q:Q,Q127),0) -> 0 | AG127: 0
D128: =IFERROR(IF(N128>0,"SUGEROWANE",IF((INDEX(Kalkulacja!B:B,MATCH(G128,Kalkulacja!H:H,0)))="x","USŁUGA","")),"") ->  | E128: i | G128: =Kalkulacja!H55 -> Koszyk | J128: 0 | K128: =IFERROR(IF(Kalkulacja!$F$2="x",INDEX(Kalkulacja!$R$1:$R$459,Q128),""),"") ->  | M128: FALSE | N128: =IFERROR(INDEX('Podświetlanie modułów'!H:H,MATCH(G128,'Podświetlanie modułów'!F:F,0)),0) -> 0 | O128: =IF(M128*1>0,"x",IF(INDEX(Kalkulacja!A:A,Q128)="x","x",0)) -> 0 | P128: FALSE | Q128: =MATCH(G128,Kalkulacja!$H$1:$H$459,0) -> 55 | T128: 0 | V128: 0 | AA128: Koszyk | AF128: =IFERROR(INDEX(Kalkulacja!Q:Q,Q128),0) -> 0 | AG128: 0
D129: =IFERROR(IF(N129>0,"SUGEROWANE",IF((INDEX(Kalkulacja!B:B,MATCH(G129,Kalkulacja!H:H,0)))="x","USŁUGA","")),"") ->  | E129: i | G129: =Kalkulacja!H56 -> Zamówienie | J129: 0 | K129: =IFERROR(IF(Kalkulacja!$F$2="x",INDEX(Kalkulacja!$R$1:$R$459,Q129),""),"") ->  | M129: FALSE | N129: =IFERROR(INDEX('Podświetlanie modułów'!H:H,MATCH(G129,'Podświetlanie modułów'!F:F,0)),0) -> 0 | O129: =IF(M129*1>0,"x",IF(INDEX(Kalkulacja!A:A,Q129)="x","x",0)) -> 0 | P129: FALSE | Q129: =MATCH(G129,Kalkulacja!$H$1:$H$459,0) -> 56 | T129: 0 | V129: 0 | AA129: Zamówienie | AF129: =IFERROR(INDEX(Kalkulacja!Q:Q,Q129),0) -> 0 | AG129: 0
D130: =IFERROR(IF(N130>0,"SUGEROWANE",IF((INDEX(Kalkulacja!B:B,MATCH(G130,Kalkulacja!H:H,0)))="x","USŁUGA","")),"") ->  | E130: i | G130: =Kalkulacja!H57 -> Podsumowanie | J130: 0 | K130: =IFERROR(IF(Kalkulacja!$F$2="x",INDEX(Kalkulacja!$R$1:$R$459,Q130),""),"") ->  | M130: FALSE | N130: =IFERROR(INDEX('Podświetlanie modułów'!H:H,MATCH(G130,'Podświetlanie modułów'!F:F,0)),0) -> 0 | O130: =IF(M130*1>0,"x",IF(INDEX(Kalkulacja!A:A,Q130)="x","x",0)) -> 0 | P130: FALSE | Q130: =MATCH(G130,Kalkulacja!$H$1:$H$459,0) -> 57 | T130: 0 | V130: 0 | AA130: Podsumowanie | AF130: =IFERROR(INDEX(Kalkulacja!Q:Q,Q130),0) -> 0 | AG130: 0
D131: =IFERROR(IF(N131>0,"SUGEROWANE",IF((INDEX(Kalkulacja!B:B,MATCH(G131,Kalkulacja!H:H,0)))="x","USŁUGA","")),"") ->  | E131: i | G131: =Kalkulacja!H58 -> Dodatkowy moduł 15 | J131: 0 | K131: =IFERROR(IF(Kalkulacja!$F$2="x",INDEX(Kalkulacja!$R$1:$R$459,Q131),""),"") ->  | M131: 0 | N131: =IFERROR(INDEX('Podświetlanie modułów'!H:H,MATCH(G131,'Podświetlanie modułów'!F:F,0)),0) -> 0 | O131: =IF(M131*1>0,"x",IF(INDEX(Kalkulacja!A:A,Q131)="x","x",0)) -> 0 | P131: FALSE | Q131: =MATCH(G131,Kalkulacja!$H$1:$H$459,0) -> 58 | T131: 0 | V131: 0 | AA131: Dodatkowy moduł 15 | AF131: =IFERROR(INDEX(Kalkulacja!Q:Q,Q131),0) -> 0 | AG131: 0
D132: =IFERROR(IF(N132>0,"SUGEROWANE",IF((INDEX(Kalkulacja!B:B,MATCH(G132,Kalkulacja!H:H,0)))="x","USŁUGA","")),"") ->  | E132: i | G132: =Kalkulacja!H59 -> Dodatkowy moduł 16 | J132: 0 | K132: =IFERROR(IF(Kalkulacja!$F$2="x",INDEX(Kalkulacja!$R$1:$R$459,Q132),""),"") ->  | M132: 0 | N132: =IFERROR(INDEX('Podświetlanie modułów'!H:H,MATCH(G132,'Podświetlanie modułów'!F:F,0)),0) -> 0 | O132: =IF(M132*1>0,"x",IF(INDEX(Kalkulacja!A:A,Q132)="x","x",0)) -> 0 | P132: FALSE | Q132: =MATCH(G132,Kalkulacja!$H$1:$H$459,0) -> 59 | T132: 0 | V132: 0 | AA132: Dodatkowy moduł 16 | AF132: =IFERROR(INDEX(Kalkulacja!Q:Q,Q132),0) -> 0 | AG132: 0
D133: =IFERROR(IF(N133>0,"SUGEROWANE",IF((INDEX(Kalkulacja!B:B,MATCH(G133,Kalkulacja!H:H,0)))="x","USŁUGA","")),"") ->  | E133: i | G133: =Kalkulacja!H60 -> Dodatkowy moduł 17 | J133: 0 | K133: =IFERROR(IF(Kalkulacja!$F$2="x",INDEX(Kalkulacja!$R$1:$R$459,Q133),""),"") ->  | M133: 0 | N133: =IFERROR(INDEX('Podświetlanie modułów'!H:H,MATCH(G133,'Podświetlanie modułów'!F:F,0)),0) -> 0 | O133: =IF(M133*1>0,"x",IF(INDEX(Kalkulacja!A:A,Q133)="x","x",0)) -> 0 | P133: FALSE | Q133: =MATCH(G133,Kalkulacja!$H$1:$H$459,0) -> 60 | T133: 0 | V133: 0 | AA133: Dodatkowy moduł 17 | AF133: =IFERROR(INDEX(Kalkulacja!Q:Q,Q133),0) -> 0 | AG133: 0
D134: =IFERROR(IF(N134>0,"SUGEROWANE",IF((INDEX(Kalkulacja!B:B,MATCH(G134,Kalkulacja!H:H,0)))="x","USŁUGA","")),"") ->  | E134: i | G134: =Kalkulacja!H61 -> Dodatkowy moduł 18 | J134: 0 | K134: =IFERROR(IF(Kalkulacja!$F$2="x",INDEX(Kalkulacja!$R$1:$R$459,Q134),""),"") ->  | M134: 0 | N134: =IFERROR(INDEX('Podświetlanie modułów'!H:H,MATCH(G134,'Podświetlanie modułów'!F:F,0)),0) -> 0 | O134: =IF(M134*1>0,"x",IF(INDEX(Kalkulacja!A:A,Q134)="x","x",0)) -> 0 | P134: FALSE | Q134: =MATCH(G134,Kalkulacja!$H$1:$H$459,0) -> 61 | T134: 0 | V134: 0 | AA134: Dodatkowy moduł 18 | AF134: =IFERROR(INDEX(Kalkulacja!Q:Q,Q134),0) -> 0 | AG134: 0
D135: =IFERROR(IF(N135>0,"SUGEROWANE",IF((INDEX(Kalkulacja!B:B,MATCH(G135,Kalkulacja!H:H,0)))="x","USŁUGA","")),"") ->  | E135: i | G135: =Kalkulacja!H62 -> Dodatkowy moduł 19 | J135: 0 | K135: =IFERROR(IF(Kalkulacja!$F$2="x",INDEX(Kalkulacja!$R$1:$R$459,Q135),""),"") ->  | M135: 0 | N135: =IFERROR(INDEX('Podświetlanie modułów'!H:H,MATCH(G135,'Podświetlanie modułów'!F:F,0)),0) -> 0 | O135: =IF(M135*1>0,"x",IF(INDEX(Kalkulacja!A:A,Q135)="x","x",0)) -> 0 | P135: FALSE | Q135: =MATCH(G135,Kalkulacja!$H$1:$H$459,0) -> 62 | T135: 0 | V135: 0 | AA135: Dodatkowy moduł 19 | AF135: =IFERROR(INDEX(Kalkulacja!Q:Q,Q135),0) -> 0 | AG135: 0
D136: =IFERROR(IF(N136>0,"SUGEROWANE",IF((INDEX(Kalkulacja!B:B,MATCH(G136,Kalkulacja!H:H,0)))="x","USŁUGA","")),"") ->  | E136: =Kalkulacja!H63 -> Moduły i usługi strony www | N136: =IFERROR(INDEX('Podświetlanie modułów'!H:H,MATCH(G136,'Podświetlanie modułów'!F:F,0)),0) -> 0 | O136: =IF(COUNTIF(O137:O247,"x")>0,"x",0) -> x | P136: TRUE | Q136: =MATCH(E136,Kalkulacja!$H$1:$H$459,0) -> 63 | T136: 0 | V136: 0 | AA136: 0 | AF136: =IFERROR(INDEX(Kalkulacja!Q:Q,Q136),0) -> 0 | AG136: 0
D137: =IFERROR(IF(N137>0,"SUGEROWANE",IF((INDEX(Kalkulacja!B:B,MATCH(G137,Kalkulacja!H:H,0)))="x","USŁUGA","")),"") ->  | E137: =Kalkulacja!H64 -> Moduły podstawowe | N137: =IFERROR(INDEX('Podświetlanie modułów'!H:H,MATCH(G137,'Podświetlanie modułów'!F:F,0)),0) -> 0 | O137: =IF(COUNTIF(O138:O202,"x")>0,"x",0) -> x | P137: TRUE | Q137: =MATCH(E137,Kalkulacja!$H$1:$H$459,0) -> 64 | T137: 0 | V137: 0 | AA137: 0 | AF137: =IFERROR(INDEX(Kalkulacja!Q:Q,Q137),0) -> 0 | AG137: 0
D138: =IFERROR(IF(N138>0,"SUGEROWANE",IF((INDEX(Kalkulacja!B:B,MATCH(G138,Kalkulacja!H:H,0)))="x","USŁUGA","")),"") ->  | E138: i | G138: =Kalkulacja!H65 -> Edytor Elementor (Drag & Drop) | J138: =M138*1 -> 0 | K138: =IFERROR(IF(Kalkulacja!$F$2="x",INDEX(Kalkulacja!$R$1:$R$459,Q138),""),"") ->  | M138: FALSE | N138: =IFERROR(INDEX('Podświetlanie modułów'!H:H,MATCH(G138,'Podświetlanie modułów'!F:F,0)),0) -> 0 | O138: =IF(M138*1>0,"x",IF(INDEX(Kalkulacja!A:A,Q138)="x","x",0)) -> 0 | P138: FALSE | Q138: =MATCH(G138,Kalkulacja!$H$1:$H$459,0) -> 65 | T138: 0 | V138: 0 | AA138: Edytor Elementor (Drag & Drop) | AF138: =IFERROR(INDEX(Kalkulacja!Q:Q,Q138),0) -> 0 | AG138: 0
D139: =IFERROR(IF(N139>0,"SUGEROWANE",IF((INDEX(Kalkulacja!B:B,MATCH(G139,Kalkulacja!H:H,0)))="x","USŁUGA","")),"") ->  | E139: i | F139: =IF(ISBLANK(G139)," Wybierz liczbę sekcji strony głównej","") ->  | G139: =INDEX(X$139:$X143,MATCH($T$139,$Y$139:$Y$143,0)) -> Strona główna 3 sekcje (projekt + kodowanie) | J139: 0 | K139: =IFERROR(IF(Kalkulacja!$F$2="x",INDEX(Kalkulacja!$R$1:$R$459,Q139),""),"") ->  | M139: FALSE | N139: =IFERROR(INDEX('Podświetlanie modułów'!H:H,MATCH(G139,'Podświetlanie modułów'!F:F,0)),0) -> 0 | O139: =IF(M139*1>0,"x",IF(COUNTIF(Kalkulacja!$A$66:$A$70,"x")>0,"x",0)) -> x | P139: TRUE | Q139: =MATCH(G139,Kalkulacja!$H$1:$H$459,0) -> 66 | T139: 1 | U139: =IFERROR(INDEX($Y$139:$Y$143,MATCH("x",$Z$139:$Z$143,0)),1) -> 1 | V139: 0 | X139: =Kalkulacja!H66 -> Strona główna 3 sekcje (projekt + kodowanie) | Y139: 1 | Z139: =INDEX(Kalkulacja!$C$66:$C$70,MATCH(X139,Kalkulacja!$H$66:$H$70,0)) -> 0 | AA139: Strona główna 3 sekcje (projekt + kodowanie) | AF139: =IFERROR(INDEX(Kalkulacja!Q:Q,Q139),0) -> x | AG139: 0
D140: =IFERROR(IF(N140>0,"SUGEROWANE",IF((INDEX(Kalkulacja!B:B,MATCH(G140,Kalkulacja!H:H,0)))="x","USŁUGA","")),"") ->  | E140: i | F140: =IF(ISBLANK(G140)," Wybierz liczbę sekcji strony","") ->  | G140: =Kalkulacja!H71 -> Strona 1 sekcja (projekt + kodowanie) | J140: 0 | K140: =IFERROR(IF(Kalkulacja!$F$2="x",INDEX(Kalkulacja!$R$1:$R$459,Q140),""),"") ->  | M140: FALSE | N140: =IFERROR(INDEX('Podświetlanie modułów'!H:H,MATCH(G140,'Podświetlanie modułów'!F:F,0)),0) -> 0 | O140: =IF(M140*1>0,"x",IF(INDEX(Kalkulacja!A:A,Q140)="x","x",0)) -> 0 | P140: FALSE | Q140: =MATCH(G140,Kalkulacja!$H$1:$H$459,0) -> 71 | T140: 0 | V140: 0 | X140: =Kalkulacja!H67 -> Strona główna 5 sekcji (projekt + kodowanie) | Y140: 2 | Z140: =INDEX(Kalkulacja!$C$66:$C$70,MATCH(X140,Kalkulacja!$H$66:$H$70,0)) -> 0 | AA140: Strona 1 sekcja (projekt + kodowanie) | AF140: =IFERROR(INDEX(Kalkulacja!Q:Q,Q140),0) -> 0 | AG140: 0
D141: =IFERROR(IF(N141>0,"SUGEROWANE",IF((INDEX(Kalkulacja!B:B,MATCH(G141,Kalkulacja!H:H,0)))="x","USŁUGA","")),"") ->  | E141: i | F141: =IF(ISBLANK(#REF!)," Podaj szczegóły sekcji","") ->  | M141: 0 | N141: =IFERROR(INDEX('Podświetlanie modułów'!H:H,MATCH(G141,'Podświetlanie modułów'!F:F,0)),0) -> 0 | O141: =IF(O140="x","x",0) -> 0 | P141: FALSE | Q141: =MATCH(G141,Kalkulacja!$H$1:$H$459,0) ->  | T141: 0 | V141: 0 | X141: =Kalkulacja!H68 -> Strona główna 7 sekcji (projekt + kodowanie) | Y141: 3 | Z141: =INDEX(Kalkulacja!$C$66:$C$70,MATCH(X141,Kalkulacja!$H$66:$H$70,0)) -> 0 | AA141: 0 | AF141: =IFERROR(INDEX(Kalkulacja!Q:Q,Q141),0) -> 0 | AG141: 0
D142: =IFERROR(IF(N142>0,"SUGEROWANE",IF((INDEX(Kalkulacja!B:B,MATCH(G142,Kalkulacja!H:H,0)))="x","USŁUGA","")),"") ->  | E142: i | G142: =Kalkulacja!H73 -> Strona 2 sekcje (projekt + kodowanie) | J142: =M142*1 -> 0 | K142: =IFERROR(IF(Kalkulacja!$F$2="x",INDEX(Kalkulacja!$R$1:$R$459,Q142),""),"") ->  | M142: FALSE | N142: =IFERROR(INDEX('Podświetlanie modułów'!H:H,MATCH(G142,'Podświetlanie modułów'!F:F,0)),0) -> 0 | O142: =IF(M142*1>0,"x",IF(INDEX(Kalkulacja!A:A,Q142)="x","x",0)) -> 0 | P142: FALSE | Q142: =MATCH(G142,Kalkulacja!$H$1:$H$459,0) -> 73 | T142: 0 | V142: 0 | X142: =Kalkulacja!H69 -> Strona główna 10 sekcji (projekt + kodowanie) | Y142: 4 | Z142: =INDEX(Kalkulacja!$C$66:$C$70,MATCH(X142,Kalkulacja!$H$66:$H$70,0)) -> 0 | AA142: Strona 2 sekcje (projekt + kodowanie) | AF142: =IFERROR(INDEX(Kalkulacja!Q:Q,Q142),0) -> 0 | AG142: 0
D143: =IFERROR(IF(N143>0,"SUGEROWANE",IF((INDEX(Kalkulacja!B:B,MATCH(G143,Kalkulacja!H:H,0)))="x","USŁUGA","")),"") ->  | E143: i | M143: 0 | N143: =IFERROR(INDEX('Podświetlanie modułów'!H:H,MATCH(G143,'Podświetlanie modułów'!F:F,0)),0) -> 0 | O143: =IF(O142="x","x",0) -> 0 | P143: FALSE | Q143: =MATCH(G143,Kalkulacja!$H$1:$H$459,0) ->  | T143: 0 | V143: 0 | X143: =Kalkulacja!H70 -> Strona główna 15 sekcji (projekt + kodowanie) | Y143: 5 | Z143: =INDEX(Kalkulacja!$C$66:$C$70,MATCH(X143,Kalkulacja!$H$66:$H$70,0)) -> 0 | AA143: 0 | AF143: =IFERROR(INDEX(Kalkulacja!Q:Q,Q143),0) -> 0 | AG143: 0
D144: =IFERROR(IF(N144>0,"SUGEROWANE",IF((INDEX(Kalkulacja!B:B,MATCH(G144,Kalkulacja!H:H,0)))="x","USŁUGA","")),"") ->  | E144: i | G144: =Kalkulacja!H75 -> Strona 3 sekcje (projekt + kodowanie) | J144: =M144*1 -> 0 | K144: =IFERROR(IF(Kalkulacja!$F$2="x",INDEX(Kalkulacja!$R$1:$R$459,Q144),""),"") ->  | M144: FALSE | N144: =IFERROR(INDEX('Podświetlanie modułów'!H:H,MATCH(G144,'Podświetlanie modułów'!F:F,0)),0) -> 0 | O144: =IF(M144*1>0,"x",IF(INDEX(Kalkulacja!A:A,Q144)="x","x",0)) -> 0 | P144: FALSE | Q144: =MATCH(G144,Kalkulacja!$H$1:$H$459,0) -> 75 | T144: 0 | V144: 0 | AA144: Strona 3 sekcje (projekt + kodowanie) | AF144: =IFERROR(INDEX(Kalkulacja!Q:Q,Q144),0) -> 0 | AG144: 0
D145: =IFERROR(IF(N145>0,"SUGEROWANE",IF((INDEX(Kalkulacja!B:B,MATCH(G145,Kalkulacja!H:H,0)))="x","USŁUGA","")),"") ->  | E145: i | F145: =IF(ISBLANK(#REF!)," Podaj szczegóły sekcji","") ->  | M145: 0 | N145: =IFERROR(INDEX('Podświetlanie modułów'!H:H,MATCH(G145,'Podświetlanie modułów'!F:F,0)),0) -> 0 | O145: =IF(O144="x","x",0) -> 0 | P145: FALSE | Q145: =MATCH(G145,Kalkulacja!$H$1:$H$459,0) ->  | T145: 0 | V145: 0 | AA145: 0 | AF145: =IFERROR(INDEX(Kalkulacja!Q:Q,Q145),0) -> 0 | AG145: 0
D146: =IFERROR(IF(N146>0,"SUGEROWANE",IF((INDEX(Kalkulacja!B:B,MATCH(G146,Kalkulacja!H:H,0)))="x","USŁUGA","")),"") ->  | E146: i | G146: =Kalkulacja!H77 -> Strona 4 sekcje (projekt + kodowanie) | J146: =M146*1 -> 0 | K146: =IFERROR(IF(Kalkulacja!$F$2="x",INDEX(Kalkulacja!$R$1:$R$459,Q146),""),"") ->  | M146: FALSE | N146: =IFERROR(INDEX('Podświetlanie modułów'!H:H,MATCH(G146,'Podświetlanie modułów'!F:F,0)),0) -> 0 | O146: =IF(M146*1>0,"x",IF(INDEX(Kalkulacja!A:A,Q146)="x","x",0)) -> 0 | P146: FALSE | Q146: =MATCH(G146,Kalkulacja!$H$1:$H$459,0) -> 77 | T146: 0 | V146: 0 | AA146: Strona 4 sekcje (projekt + kodowanie) | AF146: =IFERROR(INDEX(Kalkulacja!Q:Q,Q146),0) -> 0 | AG146: 0
D147: =IFERROR(IF(N147>0,"SUGEROWANE",IF((INDEX(Kalkulacja!B:B,MATCH(G147,Kalkulacja!H:H,0)))="x","USŁUGA","")),"") ->  | E147: i | M147: 0 | N147: =IFERROR(INDEX('Podświetlanie modułów'!H:H,MATCH(G147,'Podświetlanie modułów'!F:F,0)),0) -> 0 | O147: =IF(O146="x","x",0) -> 0 | P147: FALSE | Q147: =MATCH(G147,Kalkulacja!$H$1:$H$459,0) ->  | T147: 0 | V147: 0 | AA147: 0 | AF147: =IFERROR(INDEX(Kalkulacja!Q:Q,Q147),0) -> 0 | AG147: 0
D148: =IFERROR(IF(N148>0,"SUGEROWANE",IF((INDEX(Kalkulacja!B:B,MATCH(G148,Kalkulacja!H:H,0)))="x","USŁUGA","")),"") ->  | E148: i | G148: =Kalkulacja!H79 -> Strona 5 sekcji (projekt + kodowanie) | J148: =M148*1 -> 0 | K148: =IFERROR(IF(Kalkulacja!$F$2="x",INDEX(Kalkulacja!$R$1:$R$459,Q148),""),"") ->  | M148: FALSE | N148: =IFERROR(INDEX('Podświetlanie modułów'!H:H,MATCH(G148,'Podświetlanie modułów'!F:F,0)),0) -> 0 | O148: =IF(M148*1>0,"x",IF(INDEX(Kalkulacja!A:A,Q148)="x","x",0)) -> 0 | P148: FALSE | Q148: =MATCH(G148,Kalkulacja!$H$1:$H$459,0) -> 79 | T148: 0 | V148: 0 | AA148: Strona 5 sekcji (projekt + kodowanie) | AF148: =IFERROR(INDEX(Kalkulacja!Q:Q,Q148),0) -> 0 | AG148: 0
D149: =IFERROR(IF(N149>0,"SUGEROWANE",IF((INDEX(Kalkulacja!B:B,MATCH(G149,Kalkulacja!H:H,0)))="x","USŁUGA","")),"") ->  | E149: i | F149: =IF(ISBLANK(#REF!)," Podaj szczegóły sekcji","") ->  | M149: 0 | N149: =IFERROR(INDEX('Podświetlanie modułów'!H:H,MATCH(G149,'Podświetlanie modułów'!F:F,0)),0) -> 0 | O149: =IF(O148="x","x",0) -> 0 | P149: FALSE | Q149: =MATCH(G149,Kalkulacja!$H$1:$H$459,0) ->  | T149: 0 | V149: 0 | AA149: 0 | AF149: =IFERROR(INDEX(Kalkulacja!Q:Q,Q149),0) -> 0 | AG149: 0
D150: =IFERROR(IF(N150>0,"SUGEROWANE",IF((INDEX(Kalkulacja!B:B,MATCH(G150,Kalkulacja!H:H,0)))="x","USŁUGA","")),"") ->  | E150: i | G150: =Kalkulacja!H81 -> Strona 6 sekcji (projekt + kodowanie) | J150: =M150*1 -> 0 | K150: =IFERROR(IF(Kalkulacja!$F$2="x",INDEX(Kalkulacja!$R$1:$R$459,Q150),""),"") ->  | M150: FALSE | N150: =IFERROR(INDEX('Podświetlanie modułów'!H:H,MATCH(G150,'Podświetlanie modułów'!F:F,0)),0) -> 0 | O150: =IF(M150*1>0,"x",IF(INDEX(Kalkulacja!A:A,Q150)="x","x",0)) -> 0 | P150: FALSE | Q150: =MATCH(G150,Kalkulacja!$H$1:$H$459,0) -> 81 | T150: =U150 -> 0 | V150: =AG150 -> 0 | AA150: =G150 -> Strona 6 sekcji (projekt + kodowanie) | AF150: =IFERROR(INDEX(Kalkulacja!Q:Q,Q150),0) -> 0 | AG150: 0
D151: =IFERROR(IF(N151>0,"SUGEROWANE",IF((INDEX(Kalkulacja!B:B,MATCH(G151,Kalkulacja!H:H,0)))="x","USŁUGA","")),"") ->  | E151: i | M151: 0 | N151: =IFERROR(INDEX('Podświetlanie modułów'!H:H,MATCH(G151,'Podświetlanie modułów'!F:F,0)),0) -> 0 | O151: =IF(O150="x","x",0) -> 0 | P151: FALSE | Q151: =MATCH(G151,Kalkulacja!$H$1:$H$459,0) ->  | T151: 0 | V151: 0 | AA151: 0 | AF151: =IFERROR(INDEX(Kalkulacja!Q:Q,Q151),0) -> 0 | AG151: 0
D152: =IFERROR(IF(N152>0,"SUGEROWANE",IF((INDEX(Kalkulacja!B:B,MATCH(G152,Kalkulacja!H:H,0)))="x","USŁUGA","")),"") ->  | E152: i | G152: =Kalkulacja!H83 -> Strona 7 sekcji (projekt + kodowanie) | J152: =M152*1 -> 0 | K152: =IFERROR(IF(Kalkulacja!$F$2="x",INDEX(Kalkulacja!$R$1:$R$459,Q152),""),"") ->  | M152: FALSE | N152: =IFERROR(INDEX('Podświetlanie modułów'!H:H,MATCH(G152,'Podświetlanie modułów'!F:F,0)),0) -> 0 | O152: =IF(M152*1>0,"x",IF(INDEX(Kalkulacja!A:A,Q152)="x","x",0)) -> 0 | P152: FALSE | Q152: =MATCH(G152,Kalkulacja!$H$1:$H$459,0) -> 83 | T152: 0 | V152: 0 | AA152: Strona 7 sekcji (projekt + kodowanie) | AF152: =IFERROR(INDEX(Kalkulacja!Q:Q,Q152),0) -> 0 | AG152: 0
D153: =IFERROR(IF(N153>0,"SUGEROWANE",IF((INDEX(Kalkulacja!B:B,MATCH(G153,Kalkulacja!H:H,0)))="x","USŁUGA","")),"") ->  | E153: i | F153: =IF(ISBLANK(#REF!)," Podaj szczegóły sekcji","") ->  | M153: 0 | N153: =IFERROR(INDEX('Podświetlanie modułów'!H:H,MATCH(G153,'Podświetlanie modułów'!F:F,0)),0) -> 0 | O153: =IF(O152="x","x",0) -> 0 | P153: FALSE | Q153: =MATCH(G153,Kalkulacja!$H$1:$H$459,0) ->  | T153: 0 | V153: 0 | AA153: 0 | AF153: =IFERROR(INDEX(Kalkulacja!Q:Q,Q153),0) -> 0 | AG153: 0
D154: =IFERROR(IF(N154>0,"SUGEROWANE",IF((INDEX(Kalkulacja!B:B,MATCH(G154,Kalkulacja!H:H,0)))="x","USŁUGA","")),"") ->  | E154: i | G154: =Kalkulacja!H85 -> Strona 8 sekcji (projekt + kodowanie) | J154: =M154*1 -> 0 | K154: =IFERROR(IF(Kalkulacja!$F$2="x",INDEX(Kalkulacja!$R$1:$R$459,Q154),""),"") ->  | M154: FALSE | N154: =IFERROR(INDEX('Podświetlanie modułów'!H:H,MATCH(G154,'Podświetlanie modułów'!F:F,0)),0) -> 0 | O154: =IF(M154*1>0,"x",IF(INDEX(Kalkulacja!A:A,Q154)="x","x",0)) -> 0 | P154: FALSE | Q154: =MATCH(G154,Kalkulacja!$H$1:$H$459,0) -> 85 | T154: 0 | V154: 0 | AA154: Strona 8 sekcji (projekt + kodowanie) | AF154: =IFERROR(INDEX(Kalkulacja!Q:Q,Q154),0) -> 0 | AG154: 0
D155: =IFERROR(IF(N155>0,"SUGEROWANE",IF((INDEX(Kalkulacja!B:B,MATCH(G155,Kalkulacja!H:H,0)))="x","USŁUGA","")),"") ->  | E155: i | M155: 0 | N155: =IFERROR(INDEX('Podświetlanie modułów'!H:H,MATCH(G155,'Podświetlanie modułów'!F:F,0)),0) -> 0 | O155: =IF(O154="x","x",0) -> 0 | P155: FALSE | Q155: =MATCH(G155,Kalkulacja!$H$1:$H$459,0) ->  | T155: 0 | V155: 0 | AA155: 0 | AF155: =IFERROR(INDEX(Kalkulacja!Q:Q,Q155),0) -> 0 | AG155: 0
D156: =IFERROR(IF(N156>0,"SUGEROWANE",IF((INDEX(Kalkulacja!B:B,MATCH(G156,Kalkulacja!H:H,0)))="x","USŁUGA","")),"") ->  | E156: i | G156: =Kalkulacja!H87 -> Strona 9 sekcji (projekt + kodowanie) | J156: =M156*1 -> 0 | K156: =IFERROR(IF(Kalkulacja!$F$2="x",INDEX(Kalkulacja!$R$1:$R$459,Q156),""),"") ->  | M156: FALSE | N156: =IFERROR(INDEX('Podświetlanie modułów'!H:H,MATCH(G156,'Podświetlanie modułów'!F:F,0)),0) -> 0 | O156: =IF(M156*1>0,"x",IF(INDEX(Kalkulacja!A:A,Q156)="x","x",0)) -> 0 | P156: FALSE | Q156: =MATCH(G156,Kalkulacja!$H$1:$H$459,0) -> 87 | T156: 0 | V156: 0 | AA156: Strona 9 sekcji (projekt + kodowanie) | AF156: =IFERROR(INDEX(Kalkulacja!Q:Q,Q156),0) -> 0 | AG156: 0
D157: =IFERROR(IF(N157>0,"SUGEROWANE",IF((INDEX(Kalkulacja!B:B,MATCH(G157,Kalkulacja!H:H,0)))="x","USŁUGA","")),"") ->  | E157: i | M157: 0 | N157: =IFERROR(INDEX('Podświetlanie modułów'!H:H,MATCH(G157,'Podświetlanie modułów'!F:F,0)),0) -> 0 | O157: =IF(O156="x","x",0) -> 0 | P157: FALSE | Q157: =MATCH(G157,Kalkulacja!$H$1:$H$459,0) ->  | T157: 0 | V157: 0 | AA157: 0 | AF157: =IFERROR(INDEX(Kalkulacja!Q:Q,Q157),0) -> 0 | AG157: 0
D158: =IFERROR(IF(N158>0,"SUGEROWANE",IF((INDEX(Kalkulacja!B:B,MATCH(G158,Kalkulacja!H:H,0)))="x","USŁUGA","")),"") ->  | E158: i | G158: =Kalkulacja!H89 -> Strona 10 sekcji (projekt + kodowanie) | J158: =M158*1 -> 0 | K158: =IFERROR(IF(Kalkulacja!$F$2="x",INDEX(Kalkulacja!$R$1:$R$459,Q158),""),"") ->  | M158: FALSE | N158: =IFERROR(INDEX('Podświetlanie modułów'!H:H,MATCH(G158,'Podświetlanie modułów'!F:F,0)),0) -> 0 | O158: =IF(M158*1>0,"x",IF(INDEX(Kalkulacja!A:A,Q158)="x","x",0)) -> 0 | P158: FALSE | Q158: =MATCH(G158,Kalkulacja!$H$1:$H$459,0) -> 89 | T158: 0 | V158: 0 | AA158: Strona 10 sekcji (projekt + kodowanie) | AF158: =IFERROR(INDEX(Kalkulacja!Q:Q,Q158),0) -> 0 | AG158: 0
D159: =IFERROR(IF(N159>0,"SUGEROWANE",IF((INDEX(Kalkulacja!B:B,MATCH(G159,Kalkulacja!H:H,0)))="x","USŁUGA","")),"") ->  | E159: i | F159: =IF(ISBLANK(#REF!)," Podaj szczegóły sekcji","") ->  | M159: 0 | N159: =IFERROR(INDEX('Podświetlanie modułów'!H:H,MATCH(G159,'Podświetlanie modułów'!F:F,0)),0) -> 0 | O159: =IF(O158="x","x",0) -> 0 | P159: FALSE | Q159: =MATCH(G159,Kalkulacja!$H$1:$H$459,0) ->  | T159: 0 | V159: 0 | AA159: 0 | AF159: =IFERROR(INDEX(Kalkulacja!Q:Q,Q159),0) -> 0 | AG159: 0
D160: =IFERROR(IF(N160>0,"SUGEROWANE",IF((INDEX(Kalkulacja!B:B,MATCH(G160,Kalkulacja!H:H,0)))="x","USŁUGA","")),"") ->  | E160: i | F160: =IF(ISBLANK(G160)," Wybierz liczbę sekcji strony","") ->  | G160: =Kalkulacja!H91 -> Strona 1 sekcja (utworzenie i uzupełnianie) | J160: =M160*1 -> 0 | K160: =IFERROR(IF(Kalkulacja!$F$2="x",INDEX(Kalkulacja!$R$1:$R$459,Q160),""),"") ->  | M160: FALSE | N160: =IFERROR(INDEX('Podświetlanie modułów'!H:H,MATCH(G160,'Podświetlanie modułów'!F:F,0)),0) -> 0 | O160: =IF(M160*1>0,"x",IF(COUNTIF(Kalkulacja!$A$91:$A$109,"x")>0,"x",0)) -> 0 | P160: =IF(O160="x","TRUE","FALSE") -> FALSE | Q160: =MATCH(G160,Kalkulacja!$H$1:$H$459,0) -> 91 | T160: 1 | U160: =IFERROR(INDEX($Y$160:$Y$182,MATCH("x",$Z$160:$Z$182,0)),1) -> 1 | V160: 0 | AA160: Strona 1 sekcja (utworzenie i uzupełnianie) | AF160: =IFERROR(INDEX(Kalkulacja!Q:Q,Q160),0) -> 0 | AG160: 0
D161: =IFERROR(IF(N161>0,"SUGEROWANE",IF((INDEX(Kalkulacja!B:B,MATCH(G161,Kalkulacja!H:H,0)))="x","USŁUGA","")),"") ->  | E161: i | F161: =IF(ISBLANK(#REF!)," Podaj szczegóły sekcji","") ->  | M161: =S161 -> 0 | N161: =IFERROR(INDEX('Podświetlanie modułów'!H:H,MATCH(G161,'Podświetlanie modułów'!F:F,0)),0) -> 0 | O161: =IF(O160="x","x",0) -> 0 | P161: FALSE | Q161: =MATCH(G161,Kalkulacja!$H$1:$H$459,0) ->  | T161: 0 | V161: 0 | AA161: 0 | AF161: =IFERROR(INDEX(Kalkulacja!Q:Q,Q161),0) -> 0 | AG161: 0
D162: =IFERROR(IF(N162>0,"SUGEROWANE",IF((INDEX(Kalkulacja!B:B,MATCH(G162,Kalkulacja!H:H,0)))="x","USŁUGA","")),"") ->  | E162: i | F162: =IF(ISBLANK(G162)," Wybierz liczbę sekcji strony","") ->  | G162: =Kalkulacja!H93 -> Strona 2 sekcje (utworzenie i uzupełnianie) | J162: =M162*1 -> 0 | K162: =IFERROR(IF(Kalkulacja!$F$2="x",INDEX(Kalkulacja!$R$1:$R$459,Q162),""),"") ->  | M162: FALSE | N162: =IFERROR(INDEX('Podświetlanie modułów'!H:H,MATCH(G162,'Podświetlanie modułów'!F:F,0)),0) -> 0 | O162: =IF(M162*1>0,"x",IF(INDEX(Kalkulacja!A:A,Q162)="x","x",0)) -> 0 | P162: FALSE | Q162: =MATCH(G162,Kalkulacja!$H$1:$H$459,0) -> 93 | T162: 0 | V162: 0 | AA162: Strona 2 sekcje (utworzenie i uzupełnianie) | AF162: =IFERROR(INDEX(Kalkulacja!Q:Q,Q162),0) -> 0 | AG162: 0
D163: =IFERROR(IF(N163>0,"SUGEROWANE",IF((INDEX(Kalkulacja!B:B,MATCH(G163,Kalkulacja!H:H,0)))="x","USŁUGA","")),"") ->  | E163: i | M163: 0 | N163: =IFERROR(INDEX('Podświetlanie modułów'!H:H,MATCH(G163,'Podświetlanie modułów'!F:F,0)),0) -> 0 | O163: =IF(O162="x","x",0) -> 0 | P163: FALSE | Q163: =MATCH(G163,Kalkulacja!$H$1:$H$459,0) ->  | T163: 0 | V163: 0 | AA163: 0 | AF163: =IFERROR(INDEX(Kalkulacja!Q:Q,Q163),0) -> 0 | AG163: 0
D164: =IFERROR(IF(N164>0,"SUGEROWANE",IF((INDEX(Kalkulacja!B:B,MATCH(G164,Kalkulacja!H:H,0)))="x","USŁUGA","")),"") ->  | E164: i | F164: =IF(ISBLANK(G164)," Wybierz liczbę sekcji strony","") ->  | G164: =Kalkulacja!H95 -> Strona 3 sekcje (utworzenie i uzupełnianie) | J164: =M164*1 -> 0 | K164: =IFERROR(IF(Kalkulacja!$F$2="x",INDEX(Kalkulacja!$R$1:$R$459,Q164),""),"") ->  | M164: FALSE | N164: =IFERROR(INDEX('Podświetlanie modułów'!H:H,MATCH(G164,'Podświetlanie modułów'!F:F,0)),0) -> 0 | O164: =IF(M164*1>0,"x",IF(INDEX(Kalkulacja!A:A,Q164)="x","x",0)) -> 0 | P164: =IF(O164="x","TRUE","FALSE") -> FALSE | Q164: =MATCH(G164,Kalkulacja!$H$1:$H$459,0) -> 95 | T164: 0 | V164: 0 | AA164: Strona 3 sekcje (utworzenie i uzupełnianie) | AF164: =IFERROR(INDEX(Kalkulacja!Q:Q,Q164),0) -> 0 | AG164: 0
D165: =IFERROR(IF(N165>0,"SUGEROWANE",IF((INDEX(Kalkulacja!B:B,MATCH(G165,Kalkulacja!H:H,0)))="x","USŁUGA","")),"") ->  | E165: i | M165: 0 | N165: =IFERROR(INDEX('Podświetlanie modułów'!H:H,MATCH(G165,'Podświetlanie modułów'!F:F,0)),0) -> 0 | O165: =IF(O164="x","x",0) -> 0 | P165: FALSE | Q165: =MATCH(G165,Kalkulacja!$H$1:$H$459,0) ->  | T165: 0 | V165: 0 | AA165: 0 | AF165: =IFERROR(INDEX(Kalkulacja!Q:Q,Q165),0) -> 0 | AG165: 0
D166: =IFERROR(IF(N166>0,"SUGEROWANE",IF((INDEX(Kalkulacja!B:B,MATCH(G166,Kalkulacja!H:H,0)))="x","USŁUGA","")),"") ->  | E166: i | F166: =IF(ISBLANK(G166)," Wybierz liczbę sekcji strony","") ->  | G166: =Kalkulacja!H97 -> Strona 4 sekcje (utworzenie i uzupełnianie) | J166: =M166*1 -> 0 | K166: =IFERROR(IF(Kalkulacja!$F$2="x",INDEX(Kalkulacja!$R$1:$R$459,Q166),""),"") ->  | M166: FALSE | N166: =IFERROR(INDEX('Podświetlanie modułów'!H:H,MATCH(G166,'Podświetlanie modułów'!F:F,0)),0) -> 0 | O166: =IF(M166*1>0,"x",IF(INDEX(Kalkulacja!A:A,Q166)="x","x",0)) -> 0 | P166: FALSE | Q166: =MATCH(G166,Kalkulacja!$H$1:$H$459,0) -> 97 | T166: 0 | V166: 0 | AA166: Strona 4 sekcje (utworzenie i uzupełnianie) | AF166: =IFERROR(INDEX(Kalkulacja!Q:Q,Q166),0) -> 0 | AG166: 0
D167: =IFERROR(IF(N167>0,"SUGEROWANE",IF((INDEX(Kalkulacja!B:B,MATCH(G167,Kalkulacja!H:H,0)))="x","USŁUGA","")),"") ->  | E167: i | M167: 0 | N167: =IFERROR(INDEX('Podświetlanie modułów'!H:H,MATCH(G167,'Podświetlanie modułów'!F:F,0)),0) -> 0 | O167: =IF(O166="x","x",0) -> 0 | P167: FALSE | Q167: =MATCH(G167,Kalkulacja!$H$1:$H$459,0) ->  | T167: 0 | V167: 0 | AA167: 0 | AF167: =IFERROR(INDEX(Kalkulacja!Q:Q,Q167),0) -> 0 | AG167: 0
D168: =IFERROR(IF(N168>0,"SUGEROWANE",IF((INDEX(Kalkulacja!B:B,MATCH(G168,Kalkulacja!H:H,0)))="x","USŁUGA","")),"") ->  | E168: i | F168: =IF(ISBLANK(G168)," Wybierz liczbę sekcji strony","") ->  | G168: =Kalkulacja!H99 -> Strona 5 sekcji (utworzenie i uzupełnianie) | J168: =M168*1 -> 0 | K168: =IFERROR(IF(Kalkulacja!$F$2="x",INDEX(Kalkulacja!$R$1:$R$459,Q168),""),"") ->  | M168: FALSE | N168: =IFERROR(INDEX('Podświetlanie modułów'!H:H,MATCH(G168,'Podświetlanie modułów'!F:F,0)),0) -> 0 | O168: =IF(M168*1>0,"x",IF(INDEX(Kalkulacja!A:A,Q168)="x","x",0)) -> 0 | P168: FALSE | Q168: =MATCH(G168,Kalkulacja!$H$1:$H$459,0) -> 99 | T168: 0 | V168: 0 | AA168: Strona 5 sekcji (utworzenie i uzupełnianie) | AF168: =IFERROR(INDEX(Kalkulacja!Q:Q,Q168),0) -> 0 | AG168: 0
D169: =IFERROR(IF(N169>0,"SUGEROWANE",IF((INDEX(Kalkulacja!B:B,MATCH(G169,Kalkulacja!H:H,0)))="x","USŁUGA","")),"") ->  | E169: i | M169: 0 | N169: =IFERROR(INDEX('Podświetlanie modułów'!H:H,MATCH(G169,'Podświetlanie modułów'!F:F,0)),0) -> 0 | O169: =IF(O168="x","x",0) -> 0 | P169: FALSE | Q169: =MATCH(G169,Kalkulacja!$H$1:$H$459,0) ->  | T169: 0 | V169: 0 | AA169: 0 | AF169: =IFERROR(INDEX(Kalkulacja!Q:Q,Q169),0) -> 0 | AG169: 0
D170: =IFERROR(IF(N170>0,"SUGEROWANE",IF((INDEX(Kalkulacja!B:B,MATCH(G170,Kalkulacja!H:H,0)))="x","USŁUGA","")),"") ->  | E170: i | F170: =IF(ISBLANK(G170)," Wybierz liczbę sekcji strony","") ->  | G170: =Kalkulacja!H101 -> Strona 6 sekcji (utworzenie i uzupełnianie) | J170: =M170*1 -> 0 | K170: =IFERROR(IF(Kalkulacja!$F$2="x",INDEX(Kalkulacja!$R$1:$R$459,Q170),""),"") ->  | M170: FALSE | N170: =IFERROR(INDEX('Podświetlanie modułów'!H:H,MATCH(G170,'Podświetlanie modułów'!F:F,0)),0) -> 0 | O170: =IF(M170*1>0,"x",IF(INDEX(Kalkulacja!A:A,Q170)="x","x",0)) -> 0 | P170: FALSE | Q170: =MATCH(G170,Kalkulacja!$H$1:$H$459,0) -> 101 | T170: 0 | V170: 0 | AA170: Strona 6 sekcji (utworzenie i uzupełnianie) | AF170: =IFERROR(INDEX(Kalkulacja!Q:Q,Q170),0) -> 0 | AG170: 0
D171: =IFERROR(IF(N171>0,"SUGEROWANE",IF((INDEX(Kalkulacja!B:B,MATCH(G171,Kalkulacja!H:H,0)))="x","USŁUGA","")),"") ->  | E171: i | M171: 0 | N171: =IFERROR(INDEX('Podświetlanie modułów'!H:H,MATCH(G171,'Podświetlanie modułów'!F:F,0)),0) -> 0 | O171: =IF(O170="x","x",0) -> 0 | P171: FALSE | Q171: =MATCH(G171,Kalkulacja!$H$1:$H$459,0) ->  | T171: 0 | V171: 0 | AA171: 0 | AF171: =IFERROR(INDEX(Kalkulacja!Q:Q,Q171),0) -> 0 | AG171: 0
D172: =IFERROR(IF(N172>0,"SUGEROWANE",IF((INDEX(Kalkulacja!B:B,MATCH(G172,Kalkulacja!H:H,0)))="x","USŁUGA","")),"") ->  | E172: i | F172: =IF(ISBLANK(G172)," Wybierz liczbę sekcji strony","") ->  | G172: =Kalkulacja!H103 -> Strona 7 sekcji (utworzenie i uzupełnianie) | J172: =M172*1 -> 0 | K172: =IFERROR(IF(Kalkulacja!$F$2="x",INDEX(Kalkulacja!$R$1:$R$459,Q172),""),"") ->  | M172: FALSE | N172: =IFERROR(INDEX('Podświetlanie modułów'!H:H,MATCH(G172,'Podświetlanie modułów'!F:F,0)),0) -> 0 | O172: =IF(M172*1>0,"x",IF(INDEX(Kalkulacja!A:A,Q172)="x","x",0)) -> 0 | P172: FALSE | Q172: =MATCH(G172,Kalkulacja!$H$1:$H$459,0) -> 103 | T172: 0 | V172: 0 | AA172: Strona 7 sekcji (utworzenie i uzupełnianie) | AF172: =IFERROR(INDEX(Kalkulacja!Q:Q,Q172),0) -> 0 | AG172: 0
D173: =IFERROR(IF(N173>0,"SUGEROWANE",IF((INDEX(Kalkulacja!B:B,MATCH(G173,Kalkulacja!H:H,0)))="x","USŁUGA","")),"") ->  | E173: i | M173: 0 | N173: =IFERROR(INDEX('Podświetlanie modułów'!H:H,MATCH(G173,'Podświetlanie modułów'!F:F,0)),0) -> 0 | O173: =IF(O172="x","x",0) -> 0 | P173: FALSE | Q173: =MATCH(G173,Kalkulacja!$H$1:$H$459,0) ->  | T173: 0 | V173: 0 | AA173: 0 | AF173: =IFERROR(INDEX(Kalkulacja!Q:Q,Q173),0) -> 0 | AG173: 0
D174: =IFERROR(IF(N174>0,"SUGEROWANE",IF((INDEX(Kalkulacja!B:B,MATCH(G174,Kalkulacja!H:H,0)))="x","USŁUGA","")),"") ->  | E174: i | F174: =IF(ISBLANK(G174)," Wybierz liczbę sekcji strony","") ->  | G174: =Kalkulacja!H105 -> Strona 8 sekcji (utworzenie i uzupełnianie) | J174: =M174*1 -> 0 | K174: =IFERROR(IF(Kalkulacja!$F$2="x",INDEX(Kalkulacja!$R$1:$R$459,Q174),""),"") ->  | M174: FALSE | N174: =IFERROR(INDEX('Podświetlanie modułów'!H:H,MATCH(G174,'Podświetlanie modułów'!F:F,0)),0) -> 0 | O174: =IF(M174*1>0,"x",IF(INDEX(Kalkulacja!A:A,Q174)="x","x",0)) -> 0 | P174: FALSE | Q174: =MATCH(G174,Kalkulacja!$H$1:$H$459,0) -> 105 | T174: 0 | V174: 0 | AA174: Strona 8 sekcji (utworzenie i uzupełnianie) | AF174: =IFERROR(INDEX(Kalkulacja!Q:Q,Q174),0) -> 0 | AG174: 0
D175: =IFERROR(IF(N175>0,"SUGEROWANE",IF((INDEX(Kalkulacja!B:B,MATCH(G175,Kalkulacja!H:H,0)))="x","USŁUGA","")),"") ->  | E175: i | M175: 0 | N175: =IFERROR(INDEX('Podświetlanie modułów'!H:H,MATCH(G175,'Podświetlanie modułów'!F:F,0)),0) -> 0 | O175: =IF(O174="x","x",0) -> 0 | P175: FALSE | Q175: =MATCH(G175,Kalkulacja!$H$1:$H$459,0) ->  | T175: 0 | V175: 0 | AA175: 0 | AF175: =IFERROR(INDEX(Kalkulacja!Q:Q,Q175),0) -> 0 | AG175: 0
D176: =IFERROR(IF(N176>0,"SUGEROWANE",IF((INDEX(Kalkulacja!B:B,MATCH(G176,Kalkulacja!H:H,0)))="x","USŁUGA","")),"") ->  | E176: i | F176: =IF(ISBLANK(G176)," Wybierz liczbę sekcji strony","") ->  | G176: =Kalkulacja!H107 -> Strona 9 sekcji (utworzenie i uzupełnianie) | J176: =M176*1 -> 0 | K176: =IFERROR(IF(Kalkulacja!$F$2="x",INDEX(Kalkulacja!$R$1:$R$459,Q176),""),"") ->  | M176: FALSE | N176: =IFERROR(INDEX('Podświetlanie modułów'!H:H,MATCH(G176,'Podświetlanie modułów'!F:F,0)),0) -> 0 | O176: =IF(M176*1>0,"x",IF(INDEX(Kalkulacja!A:A,Q176)="x","x",0)) -> 0 | P176: FALSE | Q176: =MATCH(G176,Kalkulacja!$H$1:$H$459,0) -> 107 | T176: 0 | V176: 0 | AA176: Strona 9 sekcji (utworzenie i uzupełnianie) | AF176: =IFERROR(INDEX(Kalkulacja!Q:Q,Q176),0) -> 0 | AG176: 0
D177: =IFERROR(IF(N177>0,"SUGEROWANE",IF((INDEX(Kalkulacja!B:B,MATCH(G177,Kalkulacja!H:H,0)))="x","USŁUGA","")),"") ->  | E177: i | M177: 0 | N177: =IFERROR(INDEX('Podświetlanie modułów'!H:H,MATCH(G177,'Podświetlanie modułów'!F:F,0)),0) -> 0 | O177: =IF(O176="x","x",0) -> 0 | P177: FALSE | Q177: =MATCH(G177,Kalkulacja!$H$1:$H$459,0) ->  | T177: 0 | V177: 0 | AA177: 0 | AF177: =IFERROR(INDEX(Kalkulacja!Q:Q,Q177),0) -> 0 | AG177: 0
D178: =IFERROR(IF(N178>0,"SUGEROWANE",IF((INDEX(Kalkulacja!B:B,MATCH(G178,Kalkulacja!H:H,0)))="x","USŁUGA","")),"") ->  | E178: i | F178: =IF(ISBLANK(G178)," Wybierz liczbę sekcji strony","") ->  | G178: =Kalkulacja!H109 -> Strona 10 sekcji (utworzenie i uzupełnianie) | J178: =M178*1 -> 0 | K178: =IFERROR(IF(Kalkulacja!$F$2="x",INDEX(Kalkulacja!$R$1:$R$459,Q178),""),"") ->  | M178: FALSE | N178: =IFERROR(INDEX('Podświetlanie modułów'!H:H,MATCH(G178,'Podświetlanie modułów'!F:F,0)),0) -> 0 | O178: =IF(M178*1>0,"x",IF(INDEX(Kalkulacja!A:A,Q178)="x","x",0)) -> 0 | P178: FALSE | Q178: =MATCH(G178,Kalkulacja!$H$1:$H$459,0) -> 109 | T178: 0 | V178: 0 | AA178: Strona 10 sekcji (utworzenie i uzupełnianie) | AF178: =IFERROR(INDEX(Kalkulacja!Q:Q,Q178),0) -> 0 | AG178: 0
D179: =IFERROR(IF(N179>0,"SUGEROWANE",IF((INDEX(Kalkulacja!B:B,MATCH(G179,Kalkulacja!H:H,0)))="x","USŁUGA","")),"") ->  | E179: i | M179: 0 | N179: =IFERROR(INDEX('Podświetlanie modułów'!H:H,MATCH(G179,'Podświetlanie modułów'!F:F,0)),0) -> 0 | O179: =IF(O178="x","x",0) -> 0 | P179: FALSE | Q179: =MATCH(G179,Kalkulacja!$H$1:$H$459,0) ->  | T179: 0 | V179: 0 | AA179: 0 | AF179: =IFERROR(INDEX(Kalkulacja!Q:Q,Q179),0) -> 0 | AG179: 0
D180: =IFERROR(IF(N180>0,"SUGEROWANE",IF((INDEX(Kalkulacja!B:B,MATCH(G180,Kalkulacja!H:H,0)))="x","USŁUGA","")),"") ->  | E180: i | F180: =IF(ISBLANK(G180)," Wybierz rodzaj menu","") ->  | G180: =INDEX(X$187:$X189,MATCH($T$180,$Y$187:$Y$189,0)) -> Menu nawigacyjne proste | J180: =M180*1 -> 0 | K180: =IFERROR(IF(Kalkulacja!$F$2="x",INDEX(Kalkulacja!$R$1:$R$459,Q180),""),"") ->  | M180: FALSE | N180: =IFERROR(INDEX('Podświetlanie modułów'!H:H,MATCH(G180,'Podświetlanie modułów'!F:F,0)),0) -> 0 | O180: =IF(M180*1>0,"x",IF(COUNTIF(Kalkulacja!$A$111:$A$113,"x")>0,"x",0)) -> x | P180: TRUE | Q180: =MATCH(G180,Kalkulacja!$H$1:$H$459,0) -> 111 | T180: 1 | U180: =IFERROR(INDEX($Y$187:$Y$189,MATCH("x",$Z$187:$Z$189,0)),1) -> 1 | V180: 0 | AA180: Menu nawigacyjne proste | AF180: =IFERROR(INDEX(Kalkulacja!Q:Q,Q180),0) -> x | AG180: 0
D181: =IFERROR(IF(N181>0,"SUGEROWANE",IF((INDEX(Kalkulacja!B:B,MATCH(G181,Kalkulacja!H:H,0)))="x","USŁUGA","")),"") ->  | E181: i | G181: =Kalkulacja!H114 -> Submenu OnePage do wybranej podstrony | J181: 0 | K181: =IFERROR(IF(Kalkulacja!$F$2="x",INDEX(Kalkulacja!$R$1:$R$459,Q181),""),"") ->  | M181: FALSE | N181: =IFERROR(INDEX('Podświetlanie modułów'!H:H,MATCH(G181,'Podświetlanie modułów'!F:F,0)),0) -> 0 | O181: =IF(M181*1>0,"x",IF(INDEX(Kalkulacja!A:A,Q181)="x","x",0)) -> 0 | P181: FALSE | Q181: =MATCH(G181,Kalkulacja!$H$1:$H$459,0) -> 114 | T181: 0 | V181: 0 | AA181: Submenu OnePage do wybranej podstrony | AF181: =IFERROR(INDEX(Kalkulacja!Q:Q,Q181),0) -> 0 | AG181: 0
D182: =IFERROR(IF(N182>0,"SUGEROWANE",IF((INDEX(Kalkulacja!B:B,MATCH(G182,Kalkulacja!H:H,0)))="x","USŁUGA","")),"") ->  | E182: i | G182: =Kalkulacja!H115 -> Baner/wideo na stronie głównej (bez zmiany slajdów) | J182: 0 | K182: =IFERROR(IF(Kalkulacja!$F$2="x",INDEX(Kalkulacja!$R$1:$R$459,Q182),""),"") ->  | M182: FALSE | N182: =IFERROR(INDEX('Podświetlanie modułów'!H:H,MATCH(G182,'Podświetlanie modułów'!F:F,0)),0) -> 0 | O182: =IF(M182*1>0,"x",IF(INDEX(Kalkulacja!A:A,Q182)="x","x",0)) -> x | P182: TRUE | Q182: =MATCH(G182,Kalkulacja!$H$1:$H$459,0) -> 115 | T182: 0 | V182: 0 | AA182: Baner/wideo na stronie głównej (bez zmiany slajdów) | AF182: =IFERROR(INDEX(Kalkulacja!Q:Q,Q182),0) -> x | AG182: 0
D183: =IFERROR(IF(N183>0,"SUGEROWANE",IF((INDEX(Kalkulacja!B:B,MATCH(G183,Kalkulacja!H:H,0)))="x","USŁUGA","")),"") ->  | E183: i | G183: =Kalkulacja!H116 -> Domyślny slider na stronie głównej (1 szt) | J183: 0 | K183: =IFERROR(IF(Kalkulacja!$F$2="x",INDEX(Kalkulacja!$R$1:$R$459,Q183),""),"") ->  | M183: FALSE | N183: =IFERROR(INDEX('Podświetlanie modułów'!H:H,MATCH(G183,'Podświetlanie modułów'!F:F,0)),0) -> 0 | O183: =IF(M183*1>0,"x",IF(INDEX(Kalkulacja!A:A,Q183)="x","x",0)) -> x | P183: TRUE | Q183: =MATCH(G183,Kalkulacja!$H$1:$H$459,0) -> 116 | T183: 0 | V183: 0 | AA183: Domyślny slider na stronie głównej (1 szt) | AF183: =IFERROR(INDEX(Kalkulacja!Q:Q,Q183),0) -> x | AG183: 0
D184: =IFERROR(IF(N184>0,"SUGEROWANE",IF((INDEX(Kalkulacja!B:B,MATCH(G184,Kalkulacja!H:H,0)))="x","USŁUGA","")),"") -> USŁUGA | E184: i | G184: =Kalkulacja!H117 -> Utworzenie kolejnego slajdu na slider (1 szt) | J184: 0 | K184: =IFERROR(IF(Kalkulacja!$F$2="x",INDEX(Kalkulacja!$R$1:$R$459,Q184),""),"") ->  | M184: FALSE | N184: =IFERROR(INDEX('Podświetlanie modułów'!H:H,MATCH(G184,'Podświetlanie modułów'!F:F,0)),0) -> 0 | O184: =IF(M184*1>0,"x",IF(INDEX(Kalkulacja!A:A,Q184)="x","x",0)) -> x | P184: TRUE | Q184: =MATCH(G184,Kalkulacja!$H$1:$H$459,0) -> 117 | T184: 0 | V184: 0 | AA184: Utworzenie kolejnego slajdu na slider (1 szt) | AF184: =IFERROR(INDEX(Kalkulacja!Q:Q,Q184),0) -> x | AG184: 0
D185: =IFERROR(IF(N185>0,"SUGEROWANE",IF((INDEX(Kalkulacja!B:B,MATCH(G185,Kalkulacja!H:H,0)))="x","USŁUGA","")),"") ->  | E185: i | G185: =Kalkulacja!H118 -> Slider szyty na miarę | J185: 0 | K185: =IFERROR(IF(Kalkulacja!$F$2="x",INDEX(Kalkulacja!$R$1:$R$459,Q185),""),"") ->  | M185: FALSE | N185: =IFERROR(INDEX('Podświetlanie modułów'!H:H,MATCH(G185,'Podświetlanie modułów'!F:F,0)),0) -> 0 | O185: =IF(M185*1>0,"x",IF(INDEX(Kalkulacja!A:A,Q185)="x","x",0)) -> x | P185: TRUE | Q185: =MATCH(G185,Kalkulacja!$H$1:$H$459,0) -> 118 | T185: 0 | V185: 0 | AA185: Slider szyty na miarę | AF185: =IFERROR(INDEX(Kalkulacja!Q:Q,Q185),0) -> 0 | AG185: 0
D186: =IFERROR(IF(N186>0,"SUGEROWANE",IF((INDEX(Kalkulacja!B:B,MATCH(G186,Kalkulacja!H:H,0)))="x","USŁUGA","")),"") ->  | E186: i | G186: =Kalkulacja!H119 -> Slider w treści (Elementor) | J186: 0 | K186: =IFERROR(IF(Kalkulacja!$F$2="x",INDEX(Kalkulacja!$R$1:$R$459,Q186),""),"") ->  | M186: 0 | N186: =IFERROR(INDEX('Podświetlanie modułów'!H:H,MATCH(G186,'Podświetlanie modułów'!F:F,0)),0) -> 0 | O186: =IF(M186*1>0,"x",IF(INDEX(Kalkulacja!A:A,Q186)="x","x",0)) -> 0 | P186: FALSE | Q186: =MATCH(G186,Kalkulacja!$H$1:$H$459,0) -> 119 | T186: 0 | V186: 0 | AA186: Slider w treści (Elementor) | AF186: =IFERROR(INDEX(Kalkulacja!Q:Q,Q186),0) -> 0 | AG186: 0
D187: =IFERROR(IF(N187>0,"SUGEROWANE",IF((INDEX(Kalkulacja!B:B,MATCH(G187,Kalkulacja!H:H,0)))="x","USŁUGA","")),"") ->  | E187: i | G187: =Kalkulacja!H120 -> Galeria zdjęć (podstawowa w WordPress) | J187: 0 | K187: =IFERROR(IF(Kalkulacja!$F$2="x",INDEX(Kalkulacja!$R$1:$R$459,Q187),""),"") ->  | M187: FALSE | N187: =IFERROR(INDEX('Podświetlanie modułów'!H:H,MATCH(G187,'Podświetlanie modułów'!F:F,0)),0) -> 0 | O187: =IF(M187*1>0,"x",IF(INDEX(Kalkulacja!A:A,Q187)="x","x",0)) -> x | P187: TRUE | Q187: =MATCH(G187,Kalkulacja!$H$1:$H$459,0) -> 120 | T187: 0 | V187: 0 | X187: =Kalkulacja!H111 -> Menu nawigacyjne proste | Y187: 1 | Z187: =INDEX(Kalkulacja!$C$111:$C$113,MATCH(X187,Kalkulacja!$H$111:$H$113,0)) -> x | AA187: Galeria zdjęć (podstawowa w WordPress) | AF187: =IFERROR(INDEX(Kalkulacja!Q:Q,Q187),0) -> x | AG187: 0
D188: =IFERROR(IF(N188>0,"SUGEROWANE",IF((INDEX(Kalkulacja!B:B,MATCH(G188,Kalkulacja!H:H,0)))="x","USŁUGA","")),"") ->  | E188: i | G188: =Kalkulacja!H121 -> Galeria zdjęć (Elementor) | J188: 0 | K188: =IFERROR(IF(Kalkulacja!$F$2="x",INDEX(Kalkulacja!$R$1:$R$459,Q188),""),"") ->  | M188: FALSE | N188: =IFERROR(INDEX('Podświetlanie modułów'!H:H,MATCH(G188,'Podświetlanie modułów'!F:F,0)),0) -> 0 | O188: =IF(M188*1>0,"x",IF(INDEX(Kalkulacja!A:A,Q188)="x","x",0)) -> x | P188: TRUE | Q188: =MATCH(G188,Kalkulacja!$H$1:$H$459,0) -> 121 | T188: 0 | V188: 0 | X188: =Kalkulacja!H112 -> Menu nawigacyjne 2 poziomowe | Y188: 2 | Z188: =INDEX(Kalkulacja!$C$111:$C$113,MATCH(X188,Kalkulacja!$H$111:$H$113,0)) -> 0 | AA188: Galeria zdjęć (Elementor) | AF188: =IFERROR(INDEX(Kalkulacja!Q:Q,Q188),0) -> 0 | AG188: 0
D189: =IFERROR(IF(N189>0,"SUGEROWANE",IF((INDEX(Kalkulacja!B:B,MATCH(G189,Kalkulacja!H:H,0)))="x","USŁUGA","")),"") ->  | E189: i | G189: =Kalkulacja!H122 -> Galeria zdjęć ACF (nietypowy układ, karuzela) | J189: 0 | K189: =IFERROR(IF(Kalkulacja!$F$2="x",INDEX(Kalkulacja!$R$1:$R$459,Q189),""),"") ->  | M189: 0 | N189: =IFERROR(INDEX('Podświetlanie modułów'!H:H,MATCH(G189,'Podświetlanie modułów'!F:F,0)),0) -> 0 | O189: =IF(M189*1>0,"x",IF(INDEX(Kalkulacja!A:A,Q189)="x","x",0)) -> 0 | P189: FALSE | Q189: =MATCH(G189,Kalkulacja!$H$1:$H$459,0) -> 122 | T189: 0 | V189: 0 | X189: =Kalkulacja!H113 -> Mega nawigacyjne 3 poziomowe | Y189: 3 | Z189: =INDEX(Kalkulacja!$C$111:$C$113,MATCH(X189,Kalkulacja!$H$111:$H$113,0)) -> 0 | AA189: Galeria zdjęć ACF (nietypowy układ, karuzela) | AF189: =IFERROR(INDEX(Kalkulacja!Q:Q,Q189),0) -> 0 | AG189: 0
D190: =IFERROR(IF(N190>0,"SUGEROWANE",IF((INDEX(Kalkulacja!B:B,MATCH(G190,Kalkulacja!H:H,0)))="x","USŁUGA","")),"") ->  | E190: i | G190: =Kalkulacja!H123 -> Biblioteka mediów | J190: 0 | K190: =IFERROR(IF(Kalkulacja!$F$2="x",INDEX(Kalkulacja!$R$1:$R$459,Q190),""),"") ->  | M190: FALSE | N190: =IFERROR(INDEX('Podświetlanie modułów'!H:H,MATCH(G190,'Podświetlanie modułów'!F:F,0)),0) -> 0 | O190: =IF(M190*1>0,"x",IF(INDEX(Kalkulacja!A:A,Q190)="x","x",0)) -> x | P190: TRUE | Q190: =MATCH(G190,Kalkulacja!$H$1:$H$459,0) -> 123 | T190: 0 | V190: 0 | AA190: Biblioteka mediów | AF190: =IFERROR(INDEX(Kalkulacja!Q:Q,Q190),0) -> x | AG190: 0
D191: =IFERROR(IF(N191>0,"SUGEROWANE",IF((INDEX(Kalkulacja!B:B,MATCH(G191,Kalkulacja!H:H,0)))="x","USŁUGA","")),"") ->  | E191: i | G191: =Kalkulacja!H124 -> Foldery w bibliotece mediów | J191: 0 | K191: =IFERROR(IF(Kalkulacja!$F$2="x",INDEX(Kalkulacja!$R$1:$R$459,Q191),""),"") ->  | M191: 0 | N191: =IFERROR(INDEX('Podświetlanie modułów'!H:H,MATCH(G191,'Podświetlanie modułów'!F:F,0)),0) -> 0 | O191: =IF(M191*1>0,"x",IF(INDEX(Kalkulacja!A:A,Q191)="x","x",0)) -> 0 | P191: FALSE | Q191: =MATCH(G191,Kalkulacja!$H$1:$H$459,0) -> 124 | T191: 0 | V191: 0 | AA191: Foldery w bibliotece mediów | AF191: =IFERROR(INDEX(Kalkulacja!Q:Q,Q191),0) -> 0 | AG191: 0
D192: =IFERROR(IF(N192>0,"SUGEROWANE",IF((INDEX(Kalkulacja!B:B,MATCH(G192,Kalkulacja!H:H,0)))="x","USŁUGA","")),"") ->  | E192: i | F192: =IF(ISBLANK(G192)," Wybierz rodzaj mapy","") ->  | G192: =INDEX(X$192:$X196,MATCH($T$192,$Y$192:$Y$196,0)) -> Mapa prosta Google Mapy | J192: 0 | K192: =IFERROR(IF(Kalkulacja!$F$2="x",INDEX(Kalkulacja!$R$1:$R$459,Q192),""),"") ->  | M192: FALSE | N192: =IFERROR(INDEX('Podświetlanie modułów'!H:H,MATCH(G192,'Podświetlanie modułów'!F:F,0)),0) -> 0 | O192: =IF(M192*1>0,"x",IF(COUNTIF(Kalkulacja!$A$125:$A$129,"x")>0,"x",0)) -> x | P192: TRUE | Q192: =MATCH(G192,Kalkulacja!$H$1:$H$459,0) -> 126 | T192: 2 | U192: =IFERROR(INDEX($Y$192:$Y$196,MATCH("x",$Z$192:$Z$196,0)),1) -> 2 | V192: 0 | X192: =Kalkulacja!H125 -> Mapa jako obrazek z Google Mapy (bez interaktywności) | Y192: 1 | Z192: =INDEX(Kalkulacja!$C$125:$C$129,MATCH(X192,Kalkulacja!$H$125:$H$129,0)) -> 0 | AA192: Mapa prosta Google Mapy | AF192: =IFERROR(INDEX(Kalkulacja!Q:Q,Q192),0) -> x | AG192: 0
D193: =IFERROR(IF(N193>0,"SUGEROWANE",IF((INDEX(Kalkulacja!B:B,MATCH(G193,Kalkulacja!H:H,0)))="x","USŁUGA","")),"") ->  | E193: i | F193: =IF(ISBLANK(G193)," Wybierz rodzaj wyszukiwarki","") ->  | G193: =INDEX(X$198:$X200,MATCH($T$193,$Y$198:$Y$200,0)) -> Wyszukiwarka podstawowa z obrazkami | J193: 0 | K193: =IFERROR(IF(Kalkulacja!$F$2="x",INDEX(Kalkulacja!$R$1:$R$459,Q193),""),"") ->  | M193: FALSE | N193: =IFERROR(INDEX('Podświetlanie modułów'!H:H,MATCH(G193,'Podświetlanie modułów'!F:F,0)),0) -> 0 | O193: =IF(M193*1>0,"x",IF(COUNTIF(Kalkulacja!$A$130:$A$132,"x")>0,"x",0)) -> x | P193: TRUE | Q193: =MATCH(G193,Kalkulacja!$H$1:$H$459,0) -> 131 | T193: 2 | U193: =IFERROR(INDEX($Y$198:$Y$200,MATCH("x",$Z$198:$Z$200,0)),1) -> 2 | V193: 0 | X193: =Kalkulacja!H126 -> Mapa prosta Google Mapy | Y193: 2 | Z193: =INDEX(Kalkulacja!$C$125:$C$129,MATCH(X193,Kalkulacja!$H$125:$H$129,0)) -> x | AA193: Wyszukiwarka podstawowa z obrazkami | AF193: =IFERROR(INDEX(Kalkulacja!Q:Q,Q193),0) -> x | AG193: 0
D194: =IFERROR(IF(N194>0,"SUGEROWANE",IF((INDEX(Kalkulacja!B:B,MATCH(G194,Kalkulacja!H:H,0)))="x","USŁUGA","")),"") ->  | E194: i | G194: =Kalkulacja!H133 -> Formularz kontaktowy (5 pól) | J194: 0 | K194: =IFERROR(IF(Kalkulacja!$F$2="x",INDEX(Kalkulacja!$R$1:$R$459,Q194),""),"") ->  | M194: FALSE | N194: =IFERROR(INDEX('Podświetlanie modułów'!H:H,MATCH(G194,'Podświetlanie modułów'!F:F,0)),0) -> 0 | O194: =IF(M194*1>0,"x",IF(INDEX(Kalkulacja!A:A,Q194)="x","x",0)) -> x | P194: TRUE | Q194: =MATCH(G194,Kalkulacja!$H$1:$H$459,0) -> 133 | T194: 0 | V194: 0 | X194: =Kalkulacja!H127 -> Mapa interaktywna z autorskimi kolorami Google Mapy (API) | Y194: 3 | Z194: =INDEX(Kalkulacja!$C$125:$C$129,MATCH(X194,Kalkulacja!$H$125:$H$129,0)) -> 0 | AA194: Formularz kontaktowy (5 pól) | AF194: =IFERROR(INDEX(Kalkulacja!Q:Q,Q194),0) -> x | AG194: 0
D195: =IFERROR(IF(N195>0,"SUGEROWANE",IF((INDEX(Kalkulacja!B:B,MATCH(G195,Kalkulacja!H:H,0)))="x","USŁUGA","")),"") ->  | E195: i | G195: =Kalkulacja!H134 -> Formularz kontaktowy (10 pól) | J195: 0 | K195: =IFERROR(IF(Kalkulacja!$F$2="x",INDEX(Kalkulacja!$R$1:$R$459,Q195),""),"") ->  | M195: 0 | N195: =IFERROR(INDEX('Podświetlanie modułów'!H:H,MATCH(G195,'Podświetlanie modułów'!F:F,0)),0) -> 0 | O195: =IF(M195*1>0,"x",IF(INDEX(Kalkulacja!A:A,Q195)="x","x",0)) -> 0 | P195: FALSE | Q195: =MATCH(G195,Kalkulacja!$H$1:$H$459,0) -> 134 | T195: 0 | V195: 0 | X195: =Kalkulacja!H128 -> Mapa graficzna (sytuacjna) | Y195: 4 | Z195: =INDEX(Kalkulacja!$C$125:$C$129,MATCH(X195,Kalkulacja!$H$125:$H$129,0)) -> 0 | AA195: Formularz kontaktowy (10 pól) | AF195: =IFERROR(INDEX(Kalkulacja!Q:Q,Q195),0) -> 0 | AG195: 0
D196: =IFERROR(IF(N196>0,"SUGEROWANE",IF((INDEX(Kalkulacja!B:B,MATCH(G196,Kalkulacja!H:H,0)))="x","USŁUGA","")),"") ->  | E196: i | G196: =Kalkulacja!H135 -> Formularz kontaktowy (15 pól) | J196: 0 | K196: =IFERROR(IF(Kalkulacja!$F$2="x",INDEX(Kalkulacja!$R$1:$R$459,Q196),""),"") ->  | M196: 0 | N196: =IFERROR(INDEX('Podświetlanie modułów'!H:H,MATCH(G196,'Podświetlanie modułów'!F:F,0)),0) -> 0 | O196: =IF(M196*1>0,"x",IF(INDEX(Kalkulacja!A:A,Q196)="x","x",0)) -> 0 | P196: FALSE | Q196: =MATCH(G196,Kalkulacja!$H$1:$H$459,0) -> 135 | T196: 0 | V196: 0 | X196: =Kalkulacja!H129 -> Mapa graficzna (sytuacyjna) + interaktywność | Y196: 5 | Z196: =INDEX(Kalkulacja!$C$125:$C$129,MATCH(X196,Kalkulacja!$H$125:$H$129,0)) -> 0 | AA196: Formularz kontaktowy (15 pól) | AF196: =IFERROR(INDEX(Kalkulacja!Q:Q,Q196),0) -> 0 | AG196: 0
D197: =IFERROR(IF(N197>0,"SUGEROWANE",IF((INDEX(Kalkulacja!B:B,MATCH(G197,Kalkulacja!H:H,0)))="x","USŁUGA","")),"") ->  | E197: i | G197: =Kalkulacja!H136 -> Formularz z załącznikami (5-15 pól) | J197: 0 | K197: =IFERROR(IF(Kalkulacja!$F$2="x",INDEX(Kalkulacja!$R$1:$R$459,Q197),""),"") ->  | M197: 0 | N197: =IFERROR(INDEX('Podświetlanie modułów'!H:H,MATCH(G197,'Podświetlanie modułów'!F:F,0)),0) -> 0 | O197: =IF(M197*1>0,"x",IF(INDEX(Kalkulacja!A:A,Q197)="x","x",0)) -> 0 | P197: FALSE | Q197: =MATCH(G197,Kalkulacja!$H$1:$H$459,0) -> 136 | T197: 0 | V197: 0 | AA197: Formularz z załącznikami (5-15 pól) | AF197: =IFERROR(INDEX(Kalkulacja!Q:Q,Q197),0) -> 0 | AG197: 0
D198: =IFERROR(IF(N198>0,"SUGEROWANE",IF((INDEX(Kalkulacja!B:B,MATCH(G198,Kalkulacja!H:H,0)))="x","USŁUGA","")),"") -> USŁUGA | E198: i | G198: =Kalkulacja!H137 -> Logotypy - rotator (do 10 szt) | J198: 0 | K198: =IFERROR(IF(Kalkulacja!$F$2="x",INDEX(Kalkulacja!$R$1:$R$459,Q198),""),"") ->  | M198: 0 | N198: =IFERROR(INDEX('Podświetlanie modułów'!H:H,MATCH(G198,'Podświetlanie modułów'!F:F,0)),0) -> 0 | O198: =IF(M198*1>0,"x",IF(INDEX(Kalkulacja!A:A,Q198)="x","x",0)) -> x | P198: TRUE | Q198: =MATCH(G198,Kalkulacja!$H$1:$H$459,0) -> 137 | T198: 0 | V198: 0 | X198: =Kalkulacja!H130 -> Wyszukiwarka podstawowa z wynikami tekstowymi | Y198: 1 | Z198: =INDEX(Kalkulacja!$C$130:$C$132,MATCH(X198,Kalkulacja!$H$130:$H$132,0)) -> 0 | AA198: Logotypy - rotator (do 10 szt) | AF198: =IFERROR(INDEX(Kalkulacja!Q:Q,Q198),0) -> 0 | AG198: 0
D199: =IFERROR(IF(N199>0,"SUGEROWANE",IF((INDEX(Kalkulacja!B:B,MATCH(G199,Kalkulacja!H:H,0)))="x","USŁUGA","")),"") ->  | E199: i | G199: =Kalkulacja!H138 -> Dodatkowy moduł 20 | J199: 0 | K199: =IFERROR(IF(Kalkulacja!$F$2="x",INDEX(Kalkulacja!$R$1:$R$459,Q199),""),"") ->  | M199: 0 | N199: =IFERROR(INDEX('Podświetlanie modułów'!H:H,MATCH(G199,'Podświetlanie modułów'!F:F,0)),0) -> 0 | O199: =IF(M199*1>0,"x",IF(INDEX(Kalkulacja!A:A,Q199)="x","x",0)) -> 0 | P199: FALSE | Q199: =MATCH(G199,Kalkulacja!$H$1:$H$459,0) -> 138 | T199: 0 | V199: 0 | X199: =Kalkulacja!H131 -> Wyszukiwarka podstawowa z obrazkami | Y199: 2 | Z199: =INDEX(Kalkulacja!$C$130:$C$132,MATCH(X199,Kalkulacja!$H$130:$H$132,0)) -> x | AA199: Dodatkowy moduł 20 | AF199: =IFERROR(INDEX(Kalkulacja!Q:Q,Q199),0) -> 0 | AG199: 0
D200: =IFERROR(IF(N200>0,"SUGEROWANE",IF((INDEX(Kalkulacja!B:B,MATCH(G200,Kalkulacja!H:H,0)))="x","USŁUGA","")),"") ->  | E200: i | G200: =Kalkulacja!H139 -> Dodatkowy moduł 21 | J200: 0 | K200: =IFERROR(IF(Kalkulacja!$F$2="x",INDEX(Kalkulacja!$R$1:$R$459,Q200),""),"") ->  | M200: 0 | N200: =IFERROR(INDEX('Podświetlanie modułów'!H:H,MATCH(G200,'Podświetlanie modułów'!F:F,0)),0) -> 0 | O200: =IF(M200*1>0,"x",IF(INDEX(Kalkulacja!A:A,Q200)="x","x",0)) -> 0 | P200: FALSE | Q200: =MATCH(G200,Kalkulacja!$H$1:$H$459,0) -> 139 | T200: 0 | V200: 0 | X200: =Kalkulacja!H132 -> Wyszukiwarka z wynikami dynamicznymi | Y200: 3 | Z200: =INDEX(Kalkulacja!$C$130:$C$132,MATCH(X200,Kalkulacja!$H$130:$H$132,0)) -> 0 | AA200: Dodatkowy moduł 21 | AF200: =IFERROR(INDEX(Kalkulacja!Q:Q,Q200),0) -> 0 | AG200: 0
D201: =IFERROR(IF(N201>0,"SUGEROWANE",IF((INDEX(Kalkulacja!B:B,MATCH(G201,Kalkulacja!H:H,0)))="x","USŁUGA","")),"") ->  | E201: i | G201: =Kalkulacja!H140 -> Dodatkowy moduł 22 | J201: 0 | K201: =IFERROR(IF(Kalkulacja!$F$2="x",INDEX(Kalkulacja!$R$1:$R$459,Q201),""),"") ->  | M201: 0 | N201: =IFERROR(INDEX('Podświetlanie modułów'!H:H,MATCH(G201,'Podświetlanie modułów'!F:F,0)),0) -> 0 | O201: =IF(M201*1>0,"x",IF(INDEX(Kalkulacja!A:A,Q201)="x","x",0)) -> 0 | P201: FALSE | Q201: =MATCH(G201,Kalkulacja!$H$1:$H$459,0) -> 140 | T201: 0 | V201: 0 | AA201: Dodatkowy moduł 22 | AF201: =IFERROR(INDEX(Kalkulacja!Q:Q,Q201),0) -> 0 | AG201: 0
... 327 more rows

Sheet Sklep - szczegóły (hidden)
C1: Szczegóły do sklepu | G1: WooCommerce
B3: Produkty
B4: 1. Określ, co będziesz sprzedawać.
B5: 2. Wypisz nazwy kategorii w sklepie.
B6: 3. Czy sklep będzie posiadać dodatkową kategoryzację produktów np. Nowości, Promocje, Bestsellery
B7: 4. Przedstaw przykład strony produktu (możesz podać przykład sklepu konkurencji) | E7: Podaj przykłady i zaznacz X
B8: a | C8: Opis skrócony
B9: b | C9: Opis rozbudowany
B10: c | C10: Parametry techniczne / Specyfikacja / Instrukcje / Do pobrania
B11: d | C11: Warianty / atrybuty produktu np. rozmiar, kolor, inne atrybuty.
B12: e | C12: Zdjęcia/galerie
B13: f | C13: Wideo
B14: g | C14: Opinie / Gwarancja
B15: h | C15: Inne treści
B16: i | C16: Powiązane produkty (cross-selling)
B17: j | C17: Podobne lepsze produkty
B18: k | C18: Pakiety/grupy/zestawy produktów
B19: 5. Czy sklep oferuje produkty/usługi niestandardowe na indywidualne zamówienie?
B21: Dostawa, płatności
B22: 1. Ustal formy dostawy np.
C24: Przedpłata – Cena (wpisz cenę) | D24: Za pobraniem – Cena (wpisz cenę)
B25: Odbiór osobisty | C25: Przedpłata | D25: Płatność przy odbiorze (gotówka/karta?)
B26: Kurier np. DPD | C26: Przedpłata – 0 zł | D26: Za pobraniem – 0 zł
B27: Poczta Polska | C27: Przedpłata – 0 zł | D27: Za pobraniem – 0 zł
B28: Paczkomaty | C28: Przedpłata – 0 zł | D28: Za pobraniem – 0 zł
B29: Inny transport | C29: Przedpłata – 0 zł | D29: Za pobraniem – 0 zł
B30: (podaj nazwę)
B32: Ustal czy ceny wysyłki są stałe czy zmienne w zależności od ilości, rodzaju produktu itp.
B33: Są to niezbędne informacje w celu przygotowania klas wysyłkowych (stawka dla klasy).
B35: 2. Ustal metody płatności
B36: a | C36: Gotówka przy odbiorze osobistym
B37: b | C37: za pobraniem,
B38: c | C38: przelew na konto bankowe (przelew tradycyjny),
B39: d | C39: płatność online np. PAYU, Przelewy24, Dotpay, tPay, PayPal
B40: e | C40: karta płatnicza (operator ten sam czy wyżej przy płatności online).
B42: 3. Podpisz odpowiednie umowy / załóż konta z np.:
B43: a | C43: Kurierem np. DPD, DHL, UPS, Furgonetka,
B44: b | C44: Pocztą Polską,
B45: c | C45: InPost (paczkomaty)
B46: d | C46: Paczka w ruchu
B47: e | C47: Systemem płatności np. PAYU
B48: f | C48: Systemem płatności międzynarodowym np. PayPal
B50: Integracje
B51: 1. Magazyn – sklep WooCommerce posiada status magazynowy oraz automatyczny stan magazynowy, który zmienia się wraz ze sprzedażą produktów.
B52: Ustal czy chcesz stan magazynowy zintegrować z zewnętrznym systemem/programem magazynowym. Aktualne integracje z WooCommerce:
B53: a | C53: wFirma.pl
B54: b | C54: Subiekt GT / Subiekt nexo PRO
B55: c | C55: Sage Symfonia
B56: d | C56: Navireo
B57: e | C57: Asseco WAPRO WF-MAG
B58: f | C58: ZohoCRM
B59: g | C59: Pipedrive
B61: 2. Ustal czy będziesz sprzedawać na allegro i lub czy potrzebujesz integracji w wystawianiu w sklepie i allegro automatycznie. Zalecane tylko dla dużych sklepów.
B63: 3. Czy chcesz wystawiać produkty w serwisie OLX poprzez automatyczne wystawianie ogłoszeń z poziomu WordPress?
B65: Formalności
B66: 1. Przygotuj dane firmy i dane konta bankowego do płatności przelewem bankowym.
B68: 2. Przygotuj Regulamin sklepu oraz komplet dokumentów np. odstąpienie od umowy, formularz reklamacji, pouczenia i klauzule.
B69: Polecamy zlecić to kancelarii Prawnej wyspecjalizowanej w regulaminach sklepów i serwisów internetowych: https://solidnyregulamin.pl/#cennik
B71: 3. Określ e-mail sklepu, na który mają przychodzić zamówienia i wiadomości od klientów.
B72: Ten sam adres użyjemy jako e-mail wysyłający automatyczne powiadomienia dla klientów.
B74: Marketing
B75: 1. Czy sklep będzie reklamował się w Google Merchant Center (produkty w Google)?
B77: 2. Czy sklep będzie wysyłał newsletter?
B79: 3. Czy sklep chce oferować kupony rabatowe?
B81: 4. Czy sklep będzie miał darmową przesyłkę? Na jakiej zasadzie ma działać np.
B82: a) po przekroczeniu kwoty zamówienia (podaj kwotę)
B83: b) przy wpisaniu kuponu dającego darmową wysyłkę?

Sheet Istotne dane (hidden)
B1: Istotne dane
B3: Podstawowe dane
B4: Email do formularza
B5: Telefon główny do firmy
B6: Linki do Twoich kanałów social media
B8: FTP
B9: Host
B10: Login
B11: Hasło
B12: Port
B14: Istotne wymagania hostingowe do uruchomienia strony na WordPress:
B15: - PHP w wersji 7.4 lub wyższej - MySQL w wersji 5.6 lub wyższej, lub MariaDB w wersji 10.0 lub wyższej - Nginx lub Apache z modułem mod_rewrite - Wsparcie HTTPS
B17: MySQL
B18: Link do panelu phpMyAdmin
B19: Host
B20: Nazwa bazy
B21: Użytkownik
B22: Hasło
B24: Domena
B25: Link do panelu
B26: Login
B27: Hasło
B28: Hasło
B30: WordPress
B31: Login
B32: Hasło
B34: Google Analytics
B35: Wklej kod Google Analytics lub numer ID
B37: Pixel Facebook
B38: Wklej Pixel Facebooka
B40: Inny kod
B41: Wklej inny kod
B44: Potrzebna pomoc? Skontaktuj się z nami
C47: Przemysław Bazanowski
C48: tel. 514 266 111
C49: przemyslaw@studiokreacja.pl

Sheet Dostępy i kody (hidden)
B1: Dostępy i kody
B3: Panel serwera
B4: Link do panelu
B5: Login
B6: Hasło
B8: FTP
B9: Host
B10: Login
B11: Hasło
B12: Port
B14: Istotne wymagania hostingowe do uruchomienia strony na WordPress:
B15: - PHP w wersji 7.4 lub wyższej - MySQL w wersji 5.6 lub wyższej, lub MariaDB w wersji 10.0 lub wyższej - Nginx lub Apache z modułem mod_rewrite - Wsparcie HTTPS
B17: MySQL
B18: Link do panelu phpMyAdmin
B19: Host
B20: Nazwa bazy
B21: Użytkownik
B22: Hasło
B24: Domena
B25: Link do panelu
B26: Login
B27: Hasło
B28: Hasło
B30: WordPress
B31: Login
B32: Hasło
B34: Google Analytics
B35: Wklej kod Google Analytics lub numer ID
B37: Pixel Facebook
B38: Wklej Pixel Facebooka
B40: Inny kod
B41: Wklej inny kod
B44: Potrzebna pomoc? Skontaktuj się z nami
C47: Przemysław Bazanowski
C48: tel. 514 266 111
C49: przemyslaw@studiokreacja.pl

Sheet Dodatkowe usługi (hidden)
A1: Podstawa | B1: Usługa | C1: Moduł | E1: Czas projektu | F1: Cena projektu | G1: Czas projektu | H1: Cena Content Managera | I1: Czas programowania | J1: Cena programowania | K1: Ilość | L1: Na liście | M1: Razem cena | N1: Cena licencji | O1: Ilość | P1: Suma czasu projektu | Q1: Suma czasu Content Managera | R1: Suma czasu programowania | S1: Przykłady | U1: Wtyczka
E2: Stawka | F2: 120 | G2: Stawka | H2: 120 | I2: Stawka | J2: 150
C3: Materiały
B4: Usługa: | C4: Nazwa usługi / modułu | E4: 0 | F4: =E4*F2 -> 0 | G4: 0 | H4: =G4*H2 -> 0 | I4: 0 | J4: =I4*J2 -> 0 | K4: 1 | M4: =(F4+H4+J4)*K4 -> 0 | N4: 0 | O4: =K4 -> 1 | P4: =K4*E4 -> 0 | Q4: =K4*G4 -> 0 | R4: =K4*I4 -> 0

Sheet Harmonogram (hidden)
B1: Harmonogram realizacji
B3: Szczegółowe etapy realizacji | C3: Liczba dni roboczych | D3: Termin
B4: Podpisanie umowy - rozpoczęcie realizacji | D4: =DATE(2021,10,1) -> 2021-10-01
B5: Przesłanie materiałów przez Zamawiającego | C5: 2 | D5: =WORKDAY(D4,C5,Kalendarz!$A$1:$A$324) -> 2021-10-05
B6: Projektowanie grafiki strony | C6: =Kalkulacja!R463 -> 0 | D6: =WORKDAY(D5,C6,Kalendarz!$A$1:$A$324) -> 2021-10-05
B7: 1 seria poprawek Zamawiającego | C7: 3 | D7: =WORKDAY(D6,C7,Kalendarz!$A$1:$A$324) -> 2021-10-08
B8: 1 seria przesyłania poprawionych projektów | C8: 3 | D8: =WORKDAY(D7,C8,Kalendarz!$A$1:$A$324) -> 2021-10-13
B9: 2 seria poprawek Zamawiającego | C9: 3 | D9: =WORKDAY(D8,C9,Kalendarz!$A$1:$A$324) -> 2021-10-18
B10: 2 seria przesyłania poprawionych projektów | C10: 3 | D10: =WORKDAY(D9,C10,Kalendarz!$A$1:$A$324) -> 2021-10-21
B11: 3 seria poprawek Zamawiającego | C11: 3 | D11: =WORKDAY(D10,C11,Kalendarz!$A$1:$A$324) -> 2021-10-26
B12: 3 seria przesyłania poprawionych projektów | C12: 3 | D12: =WORKDAY(D11,C12,Kalendarz!$A$1:$A$324) -> 2021-10-29
B13: Kodowanie strony internetowej | C13: =Kalkulacja!R465 -> 0 | D13: =WORKDAY(D12,C13,Kalendarz!$A$1:$A$324) -> 2021-10-29
B14: 1 seria poprawek Zamawiającego | C14: 3 | D14: =WORKDAY(D13,C14,Kalendarz!$A$1:$A$324) -> 2021-11-04
B15: 1 seria aktualizacji strony | C15: 3 | D15: =WORKDAY(D14,C15,Kalendarz!$A$1:$A$324) -> 2021-11-09
B16: 2 seria poprawek Zamawiającego | C16: 3 | D16: =WORKDAY(D15,C16,Kalendarz!$A$1:$A$324) -> 2021-11-15
B17: 2 seria aktualizacji strony | C17: 3 | D17: =WORKDAY(D16,C17,Kalendarz!$A$1:$A$324) -> 2021-11-18
B18: 3 seria poprawek Zamawiającego | C18: 3 | D18: =WORKDAY(D17,C18,Kalendarz!$A$1:$A$324) -> 2021-11-23
B19: 3 seria aktualizacji strony | C19: 3 | D19: =WORKDAY(D18,C19,Kalendarz!$A$1:$A$324) -> 2021-11-26
B20: Uruchomienie strony w internecie | C20: 1 | D20: =WORKDAY(D19,C20,Kalendarz!$A$1:$A$324) -> 2021-11-29
B21: Zakończenie realizacji | D21: =WORKDAY(D20,C21,Kalendarz!$A$1:$A$324) -> 2021-11-29
B22: Łączna ilość dni podstawowej realizacji dla Studio Kreacja | C22: =C6+C13+C20 -> 1
B23: Łączna ilość dni na korekty dla Studio Kreacja | C23: =C8+C10+C12+C15+C17+C19 -> 18
B24: Łączna ilość dni na korekty dla Zamawiajacego | C24: =C7+C9+C11+C14+C16+C18 -> 18
B25: Łączna ilość dni roboczych całej realizacji | C25: =SUM(C5:C20) -> 39

Sheet Kalkulacja (hidden)
A1: Na liście | B1: Usługa | C1: Opcja preferowana | D1: Podświetlenie modułów dot. podstron | E1: Dodatkowy moduł | F1: Pokazywanie cen | G1: Pozycja modułu | H1: Moduł | I1: Przedział | J1: Czas projektu | K1: Cena projektu | L1: Czas content manager | M1: Cena content manager | N1: Czas programowania | O1: Cena programowania | P1: Ilość | Q1: Podstawa | R1: Razem cena | S1: Cena licencji | T1: Ilość | U1: Koszt licencji | V1: Suma czasu projektu | W1: Suma czasu content managera | X1: Suma czasu programowania | Y1: Przykład 1 | Z1: Przykład 2 | AB1: Wtyczka
D2: =IFERROR(INDEX('Podświetlanie modułów'!D:D,MATCH(H2,'Podświetlanie modułów'!B:B,0)),"") ->  | J2: Stawka | K2: 120 | L2: Stawka | M2: 120 | N2: Stawka | O2: 150 | Q2: Narzut | R2: 0.1 | U2: Bufor: | V2: 0.1 | W2: 0.1 | X2: 0.2
D3: =IFERROR(INDEX('Podświetlanie modułów'!D:D,MATCH(H3,'Podświetlanie modułów'!B:B,0)),"") ->  | H3: Materiały
B4: x | D4: =IFERROR(INDEX('Podświetlanie modułów'!D:D,MATCH(H4,'Podświetlanie modułów'!B:B,0)),"") ->  | E4: =LEFT(H4,15) -> Napisanie tekst | F4: =IF($F$2="x",R4,"") ->  | G4: =IFERROR(MATCH(H4,Brief!AA:AA,0),"") -> 86 | H4: Napisanie tekstu 1000 zzs (ok. 1/3 strony A4) | J4: 0.7 | K4: =J4*$K$2+(V2*(J4*$K$2)) -> 92.4 | P4: =IFERROR(INDEX(Brief!J:J,G4),0) -> 0 | R4: =ROUNDUP(P4*(K4+O4)*(1+$R$2),-1) -> 0 | S4: 0 | T4: 0 | V4: =P4*J4 -> 0
B5: x | D5: =IFERROR(INDEX('Podświetlanie modułów'!D:D,MATCH(H5,'Podświetlanie modułów'!B:B,0)),"") ->  | E5: Przepisywanie t | G5: =IFERROR(MATCH(H5,Brief!AA:AA,0),"") -> 87 | H5: Przepisywanie tekstu 1000 zzs | J5: 0.3 | K5: =J5*$K$2+(V2*(J5*$K$2)) -> 39.6 | P5: =IFERROR(INDEX(Brief!J:J,G5),0) -> 0 | R5: =ROUNDUP(P5*(K5+O5)*(1+$R$2),-1) -> 0 | T5: 0 | V5: 0
B6: x | D6: =IFERROR(INDEX('Podświetlanie modułów'!D:D,MATCH(H6,'Podświetlanie modułów'!B:B,0)),"") ->  | E6: Korekta błędów | G6: =IFERROR(MATCH(H6,Brief!AA:AA,0),"") -> 88 | H6: Korekta błędów ortograficznych 1000 zzs | J6: 0.3 | K6: =J6*$K$2+(V2*(J6*$K$2)) -> 39.6 | P6: =IFERROR(INDEX(Brief!J:J,G6),0) -> 0 | R6: 0 | T6: 0 | V6: 0
B7: x | D7: =IFERROR(INDEX('Podświetlanie modułów'!D:D,MATCH(H7,'Podświetlanie modułów'!B:B,0)),"") ->  | E7: Obróbka 1 zdjęc | G7: =IFERROR(MATCH(H7,Brief!AA:AA,0),"") -> 89 | H7: Obróbka 1 zdjęcia (kadrowanie, kolory) | J7: 0.3 | K7: =J7*$K$2+(V2*(J7*$K$2)) -> 39.6 | P7: =IFERROR(INDEX(Brief!J:J,G7),0) -> 0 | R7: 0 | T7: 0 | V7: 0
B8: x | D8: =IFERROR(INDEX('Podświetlanie modułów'!D:D,MATCH(H8,'Podświetlanie modułów'!B:B,0)),"") ->  | E8: Fotografia 1 sz | G8: =IFERROR(MATCH(H8,Brief!AA:AA,0),"") -> 90 | H8: Fotografia 1 szt z banku zdjęć | J8: 0.3 | K8: =J8*$K$2+(V2*(J8*$K$2)) -> 39.6 | P8: =IFERROR(INDEX(Brief!J:J,G8),0) -> 0 | R8: 0 | T8: 0 | V8: 0
B9: x | D9: =IFERROR(INDEX('Podświetlanie modułów'!D:D,MATCH(H9,'Podświetlanie modułów'!B:B,0)),"") -> 0 | E9: Fotomontaż ze z | G9: =IFERROR(MATCH(H9,Brief!AA:AA,0),"") -> 91 | H9: Fotomontaż ze zdjęć 1 szt | I9: od | J9: 1 | K9: =J9*$K$2+(V2*(J9*$K$2)) -> 132 | P9: =IFERROR(INDEX(Brief!J:J,G9),0) -> 0 | R9: 0 | T9: 0 | V9: 0 | Y9: https://famag.pl/rozwiazanie/opakowanie-siatkowe-do-warzyw-owocow/
B10: x | D10: =IFERROR(INDEX('Podświetlanie modułów'!D:D,MATCH(H10,'Podświetlanie modułów'!B:B,0)),"") ->  | E10: Odrysowanie log | G10: =IFERROR(MATCH(H10,Brief!AA:AA,0),"") -> 92 | H10: Odrysowanie logo | J10: 5 | K10: =J10*$K$2+(V2*(J10*$K$2)) -> 660 | P10: =IFERROR(INDEX(Brief!J:J,G10),0) -> 0 | R10: =ROUNDUP(P10*(K10+O10)*(1+$R$2),-1) -> 0 | T10: 0 | V10: 0
B11: x | D11: =IFERROR(INDEX('Podświetlanie modułów'!D:D,MATCH(H11,'Podświetlanie modułów'!B:B,0)),"") ->  | E11: Projekt nowego | G11: =IFERROR(MATCH(H11,Brief!AA:AA,0),"") -> 93 | H11: Projekt nowego logo | J11: 16 | K11: =J11*$K$2+(V2*(J11*$K$2)) -> 2112 | P11: =IFERROR(INDEX(Brief!J:J,G11),0) -> 0 | R11: 0 | T11: 0 | V11: 0
D12: =IFERROR(INDEX('Podświetlanie modułów'!D:D,MATCH(H12,'Podświetlanie modułów'!B:B,0)),"") ->  | E12: =LEFT(H12,15) -> Dodatkowy moduł | G12: =IFERROR(MATCH(H12,Brief!AA:AA,0),"") -> 94 | H12: ="Dodatkowy moduł "&(COUNTIF($E$4:E11,"Dodatkowy moduł")+1) -> Dodatkowy moduł 1 | K12: =J12*$K$2+(V2*(J12*$K$2)) -> 0 | P12: =IFERROR(INDEX(Brief!J:J,G12),0) -> 0 | R12: 0 | V12: 0
D13: =IFERROR(INDEX('Podświetlanie modułów'!D:D,MATCH(H13,'Podświetlanie modułów'!B:B,0)),"") ->  | E13: =LEFT(H13,15) -> Dodatkowy moduł | G13: =IFERROR(MATCH(H13,Brief!AA:AA,0),"") -> 95 | H13: ="Dodatkowy moduł "&(COUNTIF($E$4:E12,"Dodatkowy moduł")+1) -> Dodatkowy moduł 2 | K13: =J13*$K$2+(V2*(J13*$K$2)) -> 0 | P13: =IFERROR(INDEX(Brief!J:J,G13),0) -> 0 | R13: 0 | V13: 0
D14: =IFERROR(INDEX('Podświetlanie modułów'!D:D,MATCH(H14,'Podświetlanie modułów'!B:B,0)),"") ->  | E14: Dodatkowy moduł | G14: =IFERROR(MATCH(H14,Brief!AA:AA,0),"") -> 96 | H14: ="Dodatkowy moduł "&(COUNTIF($E$4:E13,"Dodatkowy moduł")+1) -> Dodatkowy moduł 3 | K14: =J14*$K$2+(V2*(J14*$K$2)) -> 0 | P14: =IFERROR(INDEX(Brief!J:J,G14),0) -> 0 | R14: 0 | V14: 0
D15: =IFERROR(INDEX('Podświetlanie modułów'!D:D,MATCH(H15,'Podświetlanie modułów'!B:B,0)),"") ->  | E15: Dodatkowy moduł | G15: =IFERROR(MATCH(H15,Brief!AA:AA,0),"") -> 97 | H15: ="Dodatkowy moduł "&(COUNTIF($E$4:E14,"Dodatkowy moduł")+1) -> Dodatkowy moduł 4 | K15: =J15*$K$2+(V2*(J15*$K$2)) -> 0 | P15: =IFERROR(INDEX(Brief!J:J,G15),0) -> 0 | R15: 0 | V15: 0
D16: =IFERROR(INDEX('Podświetlanie modułów'!D:D,MATCH(H16,'Podświetlanie modułów'!B:B,0)),"") ->  | E16: Dodatkowy moduł | G16: =IFERROR(MATCH(H16,Brief!AA:AA,0),"") -> 98 | H16: ="Dodatkowy moduł "&(COUNTIF($E$4:E15,"Dodatkowy moduł")+1) -> Dodatkowy moduł 5 | K16: =J16*$K$2+(V2*(J16*$K$2)) -> 0 | P16: =IFERROR(INDEX(Brief!J:J,G16),0) -> 0 | R16: 0 | V16: 0
D17: =IFERROR(INDEX('Podświetlanie modułów'!D:D,MATCH(H17,'Podświetlanie modułów'!B:B,0)),"") ->  | E17: Tylko Projekt g | G17: =IFERROR(MATCH(H17,Brief!AA:AA,0),"") ->  | H17: Tylko Projekt graficzny www
D18: =IFERROR(INDEX('Podświetlanie modułów'!D:D,MATCH(H18,'Podświetlanie modułów'!B:B,0)),"") ->  | E18: Projekt strony | G18: =IFERROR(MATCH(H18,Brief!AA:AA,0),"") -> 100 | H18: Projekt strony głównej 3 sekcje | J18: 10 | K18: =J18*$K$2+(V2*(J18*$K$2)) -> 1320 | P18: =IFERROR(INDEX(Brief!J:J,G18),0) -> 0 | R18: 0 | T18: 0 | V18: =P18*J18 -> 0
D19: =IFERROR(INDEX('Podświetlanie modułów'!D:D,MATCH(H19,'Podświetlanie modułów'!B:B,0)),"") ->  | E19: Projekt strony | G19: =IFERROR(MATCH(H19,Brief!AA:AA,0),"") ->  | H19: Projekt strony głównej 5 sekcji | J19: 12 | K19: =J19*$K$2+(V2*(J19*$K$2)) -> 1584 | P19: =IFERROR(INDEX(Brief!J:J,G19),0) -> 0 | R19: 0 | T19: 0 | V19: 0 | Y19: http://folmat.pl/
D20: =IFERROR(INDEX('Podświetlanie modułów'!D:D,MATCH(H20,'Podświetlanie modułów'!B:B,0)),"") ->  | E20: Projekt strony | G20: =IFERROR(MATCH(H20,Brief!AA:AA,0),"") ->  | H20: Projekt strony głównej 7 sekcji | J20: 14 | K20: =J20*$K$2+(V2*(J20*$K$2)) -> 1848 | P20: =IFERROR(INDEX(Brief!J:J,G20),0) -> 0 | R20: 0 | T20: 0 | V20: 0 | Y20: https://ama-bale.pl/
D21: =IFERROR(INDEX('Podświetlanie modułów'!D:D,MATCH(H21,'Podświetlanie modułów'!B:B,0)),"") ->  | E21: Projekt strony | G21: =IFERROR(MATCH(H21,Brief!AA:AA,0),"") ->  | H21: Projekt strony głównej 10 sekcji | J21: 16 | K21: =J21*$K$2+(V2*(J21*$K$2)) -> 2112 | P21: =IFERROR(INDEX(Brief!J:J,G21),0) -> 0 | R21: 0 | T21: 0 | V21: 0 | Y21: https://tonyzgrywus.pl/ | Z21: http://primecraftdeveloper.pl/
D22: =IFERROR(INDEX('Podświetlanie modułów'!D:D,MATCH(H22,'Podświetlanie modułów'!B:B,0)),"") ->  | E22: Projekt strony | G22: =IFERROR(MATCH(H22,Brief!AA:AA,0),"") ->  | H22: Projekt strony głównej 15 sekcji | J22: 20 | K22: =J22*$K$2+(V2*(J22*$K$2)) -> 2640 | P22: =IFERROR(INDEX(Brief!J:J,G22),0) -> 0 | R22: 0 | T22: 0 | V22: 0 | Y22: https://mrpost.pl/
D23: =IFERROR(INDEX('Podświetlanie modułów'!D:D,MATCH(H23,'Podświetlanie modułów'!B:B,0)),"") ->  | E23: Strona 1 sekcja | G23: =IFERROR(MATCH(H23,Brief!AA:AA,0),"") -> 101 | H23: Strona 1 sekcja | J23: 1 | K23: =J23*$K$2+(V2*(J23*$K$2)) -> 132 | P23: =IFERROR(INDEX(Brief!J:J,G23),0) -> 0 | R23: 0 | T23: 0 | V23: 0
D24: =IFERROR(INDEX('Podświetlanie modułów'!D:D,MATCH(H24,'Podświetlanie modułów'!B:B,0)),"") ->  | E24: > | G24: =IFERROR(MATCH(H24,Brief!AA:AA,0),"") ->  | H24: ="> "&Brief!G102 -> > | P24: =IFERROR(INDEX(Brief!J:J,G24),0) -> 0 | R24: 0
D25: =IFERROR(INDEX('Podświetlanie modułów'!D:D,MATCH(H25,'Podświetlanie modułów'!B:B,0)),"") ->  | E25: Strona 3 sekcje | G25: =IFERROR(MATCH(H25,Brief!AA:AA,0),"") -> 103 | H25: Strona 3 sekcje | J25: 2 | K25: =J25*$K$2+(V2*(J25*$K$2)) -> 264 | P25: =IFERROR(INDEX(Brief!J:J,G25),0) -> 0 | R25: 0 | T25: 0 | V25: =P25*J25 -> 0 | Y25: https://dlapracodawcy.contrain.pl/pracownicy-z-ukrainy/
D26: =IFERROR(INDEX('Podświetlanie modułów'!D:D,MATCH(H26,'Podświetlanie modułów'!B:B,0)),"") ->  | E26: > | G26: =IFERROR(MATCH(H26,Brief!AA:AA,0),"") ->  | H26: ="> "&Brief!G104 -> > | P26: =IFERROR(INDEX(Brief!J:J,G26),0) -> 0 | R26: 0
D27: =IFERROR(INDEX('Podświetlanie modułów'!D:D,MATCH(H27,'Podświetlanie modułów'!B:B,0)),"") ->  | E27: Strona 5 sekcji | G27: =IFERROR(MATCH(H27,Brief!AA:AA,0),"") -> 105 | H27: Strona 5 sekcji | J27: 3 | K27: =J27*$K$2+(V2*(J27*$K$2)) -> 396 | P27: =IFERROR(INDEX(Brief!J:J,G27),0) -> 0 | R27: 0 | T27: 0 | V27: =P27*J27 -> 0
D28: =IFERROR(INDEX('Podświetlanie modułów'!D:D,MATCH(H28,'Podświetlanie modułów'!B:B,0)),"") ->  | E28: > | G28: =IFERROR(MATCH(H28,Brief!AA:AA,0),"") ->  | H28: ="> "&Brief!G106 -> > | P28: =IFERROR(INDEX(Brief!J:J,G28),0) -> 0 | R28: 0
D29: =IFERROR(INDEX('Podświetlanie modułów'!D:D,MATCH(H29,'Podświetlanie modułów'!B:B,0)),"") ->  | E29: Strona 7 sekcji | G29: =IFERROR(MATCH(H29,Brief!AA:AA,0),"") -> 107 | H29: Strona 7 sekcji | J29: 4 | K29: =J29*$K$2+(V2*(J29*$K$2)) -> 528 | P29: =IFERROR(INDEX(Brief!J:J,G29),0) -> 0 | R29: 0 | T29: 0 | V29: =P29*J29 -> 0
D30: =IFERROR(INDEX('Podświetlanie modułów'!D:D,MATCH(H30,'Podświetlanie modułów'!B:B,0)),"") ->  | E30: > | G30: =IFERROR(MATCH(H30,Brief!AA:AA,0),"") ->  | H30: ="> "&Brief!G108 -> > | P30: =IFERROR(INDEX(Brief!J:J,G30),0) -> 0 | R30: 0
D31: =IFERROR(INDEX('Podświetlanie modułów'!D:D,MATCH(H31,'Podświetlanie modułów'!B:B,0)),"") ->  | E31: Strona 10 sekcj | G31: =IFERROR(MATCH(H31,Brief!AA:AA,0),"") -> 109 | H31: Strona 10 sekcji | J31: 5 | K31: =J31*$K$2+(V2*(J31*$K$2)) -> 660 | P31: =IFERROR(INDEX(Brief!J:J,G31),0) -> 0 | R31: 0 | T31: 0 | V31: =P31*J31 -> 0
G32: =IFERROR(MATCH(H32,Brief!AA:AA,0),"") ->  | H32: ="> "&Brief!G110 -> > | P32: =IFERROR(INDEX(Brief!J:J,G32),0) -> 0 | R32: 0
D33: =IFERROR(INDEX('Podświetlanie modułów'!D:D,MATCH(H33,'Podświetlanie modułów'!B:B,0)),"") ->  | E33: Dodatkowy moduł | F33: =IF($F$2="x",R33,"") ->  | G33: =IFERROR(MATCH(H33,Brief!AA:AA,0),"") -> 111 | H33: ="Dodatkowy moduł "&(COUNTIF($E$4:E32,"Dodatkowy moduł")+1) -> Dodatkowy moduł 6 | K33: =J33*$K$2+(V2*(J33*$K$2)) -> 0 | P33: =IFERROR(INDEX(Brief!J:J,G33),0) -> 0 | R33: 0 | V33: =P33*J33 -> 0
D34: =IFERROR(INDEX('Podświetlanie modułów'!D:D,MATCH(H34,'Podświetlanie modułów'!B:B,0)),"") ->  | E34: Dodatkowy moduł | G34: =IFERROR(MATCH(H34,Brief!AA:AA,0),"") -> 112 | H34: ="Dodatkowy moduł "&(COUNTIF($E$4:E33,"Dodatkowy moduł")+1) -> Dodatkowy moduł 7 | K34: =J34*$K$2+(V2*(J34*$K$2)) -> 0 | P34: =IFERROR(INDEX(Brief!J:J,G34),0) -> 0 | R34: 0 | V34: =P34*J34 -> 0
D35: =IFERROR(INDEX('Podświetlanie modułów'!D:D,MATCH(H35,'Podświetlanie modułów'!B:B,0)),"") ->  | E35: Dodatkowy moduł | G35: =IFERROR(MATCH(H35,Brief!AA:AA,0),"") -> 113 | H35: ="Dodatkowy moduł "&(COUNTIF($E$4:E34,"Dodatkowy moduł")+1) -> Dodatkowy moduł 8 | K35: =J35*$K$2+(V2*(J35*$K$2)) -> 0 | P35: =IFERROR(INDEX(Brief!J:J,G35),0) -> 0 | R35: 0 | V35: =P35*J35 -> 0
D36: =IFERROR(INDEX('Podświetlanie modułów'!D:D,MATCH(H36,'Podświetlanie modułów'!B:B,0)),"") ->  | E36: Dodatkowy moduł | G36: =IFERROR(MATCH(H36,Brief!AA:AA,0),"") -> 114 | H36: ="Dodatkowy moduł "&(COUNTIF($E$4:E35,"Dodatkowy moduł")+1) -> Dodatkowy moduł 9 | K36: =J36*$K$2+(V2*(J36*$K$2)) -> 0 | P36: =IFERROR(INDEX(Brief!J:J,G36),0) -> 0 | R36: 0 | V36: =P36*J36 -> 0
D37: =IFERROR(INDEX('Podświetlanie modułów'!D:D,MATCH(H37,'Podświetlanie modułów'!B:B,0)),"") ->  | E37: Projekt bloga | G37: =IFERROR(MATCH(H37,Brief!AA:AA,0),"") ->  | H37: Projekt bloga
D38: =IFERROR(INDEX('Podświetlanie modułów'!D:D,MATCH(H38,'Podświetlanie modułów'!B:B,0)),"") ->  | E38: Lista wpisów pr | G38: =IFERROR(MATCH(H38,Brief!AA:AA,0),"") ->  | H38: Lista wpisów prosta | J38: 1.5 | K38: =J38*$K$2+(V2*(J38*$K$2)) -> 198 | P38: =IFERROR(INDEX(Brief!J:J,G38),0) -> 0 | R38: 0 | T38: 0 | V38: =P38*J38 -> 0 | Y38: https://devaldano.pl/aktualnosci/
C39: x | D39: =IFERROR(INDEX('Podświetlanie modułów'!D:D,MATCH(H39,'Podświetlanie modułów'!B:B,0)),"") ->  | E39: Lista wpisów ro | G39: =IFERROR(MATCH(H39,Brief!AA:AA,0),"") -> 116 | H39: Lista wpisów rozbudowana | J39: 3 | K39: =J39*$K$2+(V2*(J39*$K$2)) -> 396 | P39: =IFERROR(INDEX(Brief!J:J,G39),0) -> 0 | R39: 0 | T39: 0 | V39: 0 | Y39: https://studiokreacja.pl/kategorie/blog/ | AB39: https://cmt-advisory.pl/blog/
D40: =IFERROR(INDEX('Podświetlanie modułów'!D:D,MATCH(H40,'Podświetlanie modułów'!B:B,0)),"") ->  | E40: Wpis podstawowy | G40: =IFERROR(MATCH(H40,Brief!AA:AA,0),"") ->  | H40: Wpis podstawowy | J40: 3 | K40: =J40*$K$2+(V2*(J40*$K$2)) -> 396 | P40: =IFERROR(INDEX(Brief!J:J,G40),0) -> 0 | R40: 0 | T40: 0 | V40: 0 | Y40: https://famag.pl/aktualnosci/zmieniamy-sie-dla-panstwa/ | Z40: https://devaldano.pl/studio-kulinarne-devaldano/puszysty-sernik-jagodowy/
C41: x | D41: =IFERROR(INDEX('Podświetlanie modułów'!D:D,MATCH(H41,'Podświetlanie modułów'!B:B,0)),"") ->  | E41: Wpis złożony | G41: =IFERROR(MATCH(H41,Brief!AA:AA,0),"") -> 117 | H41: Wpis złożony | J41: 4 | K41: =J41*$K$2+(V2*(J41*$K$2)) -> 528 | P41: =IFERROR(INDEX(Brief!J:J,G41),0) -> 0 | R41: 0 | T41: 0 | V41: 0 | Y41: http://idea-house.pl/dla-biznesu/zmiany-w-prawie-budowlanym/
D42: =IFERROR(INDEX('Podświetlanie modułów'!D:D,MATCH(H42,'Podświetlanie modułów'!B:B,0)),"") ->  | E42: Wpis rozbudowan | G42: =IFERROR(MATCH(H42,Brief!AA:AA,0),"") ->  | H42: Wpis rozbudowany | J42: 6 | K42: =J42*$K$2+(V2*(J42*$K$2)) -> 792 | P42: =IFERROR(INDEX(Brief!J:J,G42),0) -> 0 | R42: 0 | T42: 0 | V42: 0 | Y42: https://premium-consulting.pl/blog/czy-w-kryzysie-nalezy-ciac-wydatki-reklamowe/
D43: =IFERROR(INDEX('Podświetlanie modułów'!D:D,MATCH(H43,'Podświetlanie modułów'!B:B,0)),"") ->  | E43: Obrazek do popu | G43: =IFERROR(MATCH(H43,Brief!AA:AA,0),"") -> 118 | H43: Obrazek do popup (tylko grafika) | J43: 1.5 | K43: =J43*$K$2+(V2*(J43*$K$2)) -> 198 | P43: =IFERROR(INDEX(Brief!J:J,G43),0) -> 0 | R43: 0 | T43: 0 | V43: 0
D44: =IFERROR(INDEX('Podświetlanie modułów'!D:D,MATCH(H44,'Podświetlanie modułów'!B:B,0)),"") ->  | E44: Dodatkowy moduł | G44: =IFERROR(MATCH(H44,Brief!AA:AA,0),"") -> 119 | H44: ="Dodatkowy moduł "&(COUNTIF($E$4:E43,"Dodatkowy moduł")+1) -> Dodatkowy moduł 10 | K44: =J44*$K$2+(V2*(J44*$K$2)) -> 0 | P44: =IFERROR(INDEX(Brief!J:J,G44),0) -> 0 | R44: 0 | V44: 0
D45: =IFERROR(INDEX('Podświetlanie modułów'!D:D,MATCH(H45,'Podświetlanie modułów'!B:B,0)),"") ->  | E45: Dodatkowy moduł | G45: =IFERROR(MATCH(H45,Brief!AA:AA,0),"") -> 120 | H45: ="Dodatkowy moduł "&(COUNTIF($E$4:E44,"Dodatkowy moduł")+1) -> Dodatkowy moduł 11 | K45: =J45*$K$2+(V2*(J45*$K$2)) -> 0 | P45: =IFERROR(INDEX(Brief!J:J,G45),0) -> 0 | R45: 0 | V45: 0
D46: =IFERROR(INDEX('Podświetlanie modułów'!D:D,MATCH(H46,'Podświetlanie modułów'!B:B,0)),"") ->  | E46: Dodatkowy moduł | G46: =IFERROR(MATCH(H46,Brief!AA:AA,0),"") -> 121 | H46: ="Dodatkowy moduł "&(COUNTIF($E$4:E45,"Dodatkowy moduł")+1) -> Dodatkowy moduł 12 | K46: =J46*$K$2+(V2*(J46*$K$2)) -> 0 | P46: =IFERROR(INDEX(Brief!J:J,G46),0) -> 0 | R46: 0 | V46: 0
D47: =IFERROR(INDEX('Podświetlanie modułów'!D:D,MATCH(H47,'Podświetlanie modułów'!B:B,0)),"") ->  | E47: Dodatkowy moduł | G47: =IFERROR(MATCH(H47,Brief!AA:AA,0),"") -> 122 | H47: ="Dodatkowy moduł "&(COUNTIF($E$4:E46,"Dodatkowy moduł")+1) -> Dodatkowy moduł 13 | K47: =J47*$K$2+(V2*(J47*$K$2)) -> 0 | P47: =IFERROR(INDEX(Brief!J:J,G47),0) -> 0 | R47: 0 | V47: 0
D48: =IFERROR(INDEX('Podświetlanie modułów'!D:D,MATCH(H48,'Podświetlanie modułów'!B:B,0)),"") ->  | E48: Dodatkowy moduł | G48: =IFERROR(MATCH(H48,Brief!AA:AA,0),"") -> 123 | H48: ="Dodatkowy moduł "&(COUNTIF($E$4:E47,"Dodatkowy moduł")+1) -> Dodatkowy moduł 14 | K48: =J48*$K$2+(V2*(J48*$K$2)) -> 0 | P48: =IFERROR(INDEX(Brief!J:J,G48),0) -> 0 | R48: 0 | V48: 0
D49: =IFERROR(INDEX('Podświetlanie modułów'!D:D,MATCH(H49,'Podświetlanie modułów'!B:B,0)),"") ->  | E49: Projekt sklepu | G49: =IFERROR(MATCH(H49,Brief!AA:AA,0),"") ->  | H49: Projekt sklepu
D50: =IFERROR(INDEX('Podświetlanie modułów'!D:D,MATCH(H50,'Podświetlanie modułów'!B:B,0)),"") ->  | E50: Strona produkt | G50: =IFERROR(MATCH(H50,Brief!AA:AA,0),"") ->  | H50: Strona produkt prosty | J50: 3 | K50: =J50*$K$2+(V2*(J50*$K$2)) -> 396 | P50: =IFERROR(INDEX(Brief!J:J,G50),0) -> 0 | R50: 0 | T50: 0 | V50: =P50*J50 -> 0
D51: =IFERROR(INDEX('Podświetlanie modułów'!D:D,MATCH(H51,'Podświetlanie modułów'!B:B,0)),"") ->  | E51: Strona produkt | G51: =IFERROR(MATCH(H51,Brief!AA:AA,0),"") ->  | H51: Strona produkt + 3 sekcje | J51: 5 | K51: =J51*$K$2+(V2*(J51*$K$2)) -> 660 | P51: =IFERROR(INDEX(Brief!J:J,G51),0) -> 0 | R51: 0 | T51: 0 | V51: 0
C52: x | D52: =IFERROR(INDEX('Podświetlanie modułów'!D:D,MATCH(H52,'Podświetlanie modułów'!B:B,0)),"") ->  | E52: Strona produkt | G52: =IFERROR(MATCH(H52,Brief!AA:AA,0),"") -> 125 | H52: Strona produkt + 6 sekcji | J52: 7 | K52: =J52*$K$2+(V2*(J52*$K$2)) -> 924 | P52: =IFERROR(INDEX(Brief!J:J,G52),0) -> 0 | R52: 0 | T52: 0 | V52: 0
D53: =IFERROR(INDEX('Podświetlanie modułów'!D:D,MATCH(H53,'Podświetlanie modułów'!B:B,0)),"") ->  | E53: Kategoria produ | G53: =IFERROR(MATCH(H53,Brief!AA:AA,0),"") -> 126 | H53: Kategoria produktów prosta | J53: 4 | K53: =J53*$K$2+(V2*(J53*$K$2)) -> 528 | P53: =IFERROR(INDEX(Brief!J:J,G53),0) -> 0 | R53: 0 | T53: 0 | V53: 0
D54: =IFERROR(INDEX('Podświetlanie modułów'!D:D,MATCH(H54,'Podświetlanie modułów'!B:B,0)),"") ->  | E54: Kategoria produ | G54: =IFERROR(MATCH(H54,Brief!AA:AA,0),"") -> 127 | H54: Kategoria produktów rozbudowana | J54: 6 | K54: =J54*$K$2+(V2*(J54*$K$2)) -> 792 | P54: =IFERROR(INDEX(Brief!J:J,G54),0) -> 0 | R54: 0 | T54: 0 | V54: 0
D55: =IFERROR(INDEX('Podświetlanie modułów'!D:D,MATCH(H55,'Podświetlanie modułów'!B:B,0)),"") ->  | E55: Koszyk | G55: =IFERROR(MATCH(H55,Brief!AA:AA,0),"") -> 128 | H55: Koszyk | J55: 3 | K55: =J55*$K$2+(V2*(J55*$K$2)) -> 396 | P55: =IFERROR(INDEX(Brief!J:J,G55),0) -> 0 | R55: 0 | T55: 0 | V55: 0
D56: =IFERROR(INDEX('Podświetlanie modułów'!D:D,MATCH(H56,'Podświetlanie modułów'!B:B,0)),"") ->  | E56: Zamówienie | G56: =IFERROR(MATCH(H56,Brief!AA:AA,0),"") -> 129 | H56: Zamówienie | J56: 3 | K56: =J56*$K$2+(V2*(J56*$K$2)) -> 396 | P56: =IFERROR(INDEX(Brief!J:J,G56),0) -> 0 | R56: 0 | T56: 0 | V56: 0
D57: =IFERROR(INDEX('Podświetlanie modułów'!D:D,MATCH(H57,'Podświetlanie modułów'!B:B,0)),"") ->  | E57: Podsumowanie | G57: =IFERROR(MATCH(H57,Brief!AA:AA,0),"") -> 130 | H57: Podsumowanie | J57: 2 | K57: =J57*$K$2+(V2*(J57*$K$2)) -> 264 | P57: =IFERROR(INDEX(Brief!J:J,G57),0) -> 0 | R57: 0 | T57: 0 | V57: 0
D58: =IFERROR(INDEX('Podświetlanie modułów'!D:D,MATCH(H58,'Podświetlanie modułów'!B:B,0)),"") ->  | E58: Dodatkowy moduł | G58: =IFERROR(MATCH(H58,Brief!AA:AA,0),"") -> 131 | H58: ="Dodatkowy moduł "&(COUNTIF($E$4:E57,"Dodatkowy moduł")+1) -> Dodatkowy moduł 15 | K58: =J58*$K$2+(V2*(J58*$K$2)) -> 0 | P58: =IFERROR(INDEX(Brief!J:J,G58),0) -> 0 | R58: 0 | V58: 0
D59: =IFERROR(INDEX('Podświetlanie modułów'!D:D,MATCH(H59,'Podświetlanie modułów'!B:B,0)),"") ->  | E59: Dodatkowy moduł | G59: =IFERROR(MATCH(H59,Brief!AA:AA,0),"") -> 132 | H59: ="Dodatkowy moduł "&(COUNTIF($E$4:E58,"Dodatkowy moduł")+1) -> Dodatkowy moduł 16 | K59: =J59*$K$2+(V2*(J59*$K$2)) -> 0 | P59: =IFERROR(INDEX(Brief!J:J,G59),0) -> 0 | R59: 0 | V59: 0
D60: =IFERROR(INDEX('Podświetlanie modułów'!D:D,MATCH(H60,'Podświetlanie modułów'!B:B,0)),"") ->  | E60: Dodatkowy moduł | G60: =IFERROR(MATCH(H60,Brief!AA:AA,0),"") -> 133 | H60: ="Dodatkowy moduł "&(COUNTIF($E$4:E59,"Dodatkowy moduł")+1) -> Dodatkowy moduł 17 | K60: =J60*$K$2+(V2*(J60*$K$2)) -> 0 | P60: =IFERROR(INDEX(Brief!J:J,G60),0) -> 0 | R60: 0 | V60: 0
D61: =IFERROR(INDEX('Podświetlanie modułów'!D:D,MATCH(H61,'Podświetlanie modułów'!B:B,0)),"") ->  | E61: Dodatkowy moduł | G61: =IFERROR(MATCH(H61,Brief!AA:AA,0),"") -> 134 | H61: ="Dodatkowy moduł "&(COUNTIF($E$4:E60,"Dodatkowy moduł")+1) -> Dodatkowy moduł 18 | K61: =J61*$K$2+(V2*(J61*$K$2)) -> 0 | P61: =IFERROR(INDEX(Brief!J:J,G61),0) -> 0 | R61: 0 | V61: 0
D62: =IFERROR(INDEX('Podświetlanie modułów'!D:D,MATCH(H62,'Podświetlanie modułów'!B:B,0)),"") ->  | E62: Dodatkowy moduł | G62: =IFERROR(MATCH(H62,Brief!AA:AA,0),"") -> 135 | H62: ="Dodatkowy moduł "&(COUNTIF($E$4:E61,"Dodatkowy moduł")+1) -> Dodatkowy moduł 19 | K62: =J62*$K$2+(V2*(J62*$K$2)) -> 0 | P62: =IFERROR(INDEX(Brief!J:J,G62),0) -> 0 | R62: 0 | V62: 0
D63: =IFERROR(INDEX('Podświetlanie modułów'!D:D,MATCH(H63,'Podświetlanie modułów'!B:B,0)),"") ->  | E63: Moduły i usługi | G63: =IFERROR(MATCH(H63,Brief!AA:AA,0),"") ->  | H63: Moduły i usługi strony www
D64: =IFERROR(INDEX('Podświetlanie modułów'!D:D,MATCH(H64,'Podświetlanie modułów'!B:B,0)),"") ->  | E64: Moduły podstawo | G64: =IFERROR(MATCH(H64,Brief!AA:AA,0),"") ->  | H64: Moduły podstawowe
D65: =IFERROR(INDEX('Podświetlanie modułów'!D:D,MATCH(H65,'Podświetlanie modułów'!B:B,0)),"") ->  | E65: Edytor Elemento | F65: =IF($F$2="x",R65,"") ->  | G65: =IFERROR(MATCH(H65,Brief!AA:AA,0),"") -> 138 | H65: Edytor Elementor (Drag & Drop) | J65: 0 | K65: =J65*$K$2+(V2*(J65*$K$2)) -> 0 | P65: =IFERROR(INDEX(Brief!J:J,G65),0) -> 0 | R65: 0 | T65: =P65 -> 0 | U65: =S65*T65 -> 0 | V65: =P65*J65 -> 0 | W65: =P65*L65 -> 0 | X65: =P65*N65 -> 0 | AB65: Elementor
A66: x | D66: =IFERROR(INDEX('Podświetlanie modułów'!D:D,MATCH(H66,'Podświetlanie modułów'!B:B,0)),"") ->  | E66: Strona główna 3 | G66: =IFERROR(MATCH(H66,Brief!AA:AA,0),"") -> 139 | H66: Strona główna 3 sekcje (projekt + kodowanie) | J66: 7 | K66: =J66*$K$2+(V2*(J66*$K$2)) -> 924 | N66: 12 | O66: =$O$2*N66+($X$2*(N66*$O$2)) -> 2160 | P66: =IFERROR(INDEX(Brief!J:J,G66),0) -> 0 | Q66: x | R66: 0 | T66: =P66 -> 0 | U66: 0 | V66: 0 | W66: =P66*L66 -> 0 | X66: 0 | AB66: WP
D67: =IFERROR(INDEX('Podświetlanie modułów'!D:D,MATCH(H67,'Podświetlanie modułów'!B:B,0)),"") ->  | E67: Strona główna 5 | G67: =IFERROR(MATCH(H67,Brief!AA:AA,0),"") ->  | H67: Strona główna 5 sekcji (projekt + kodowanie) | J67: 9 | K67: =J67*$K$2+(V2*(J67*$K$2)) -> 1188 | N67: 14 | O67: =$O$2*N67+($X$2*(N67*$O$2)) -> 2520 | P67: =IFERROR(INDEX(Brief!J:J,G67),0) -> 0 | Q67: x | R67: 0 | T67: 0 | U67: 0 | V67: 0 | W67: 0 | X67: 0 | Y67: http://folmat.pl/ | AB67: WP
D68: =IFERROR(INDEX('Podświetlanie modułów'!D:D,MATCH(H68,'Podświetlanie modułów'!B:B,0)),"") ->  | E68: Strona główna 7 | G68: =IFERROR(MATCH(H68,Brief!AA:AA,0),"") ->  | H68: Strona główna 7 sekcji (projekt + kodowanie) | J68: 11 | K68: =J68*$K$2+(V2*(J68*$K$2)) -> 1452 | N68: 16 | O68: 2880 | P68: =IFERROR(INDEX(Brief!J:J,G68),0) -> 0 | Q68: x | R68: 0 | T68: 0 | U68: 0 | V68: 0 | W68: 0 | X68: 0 | Y68: https://ama-bale.pl/ | AB68: WP
D69: =IFERROR(INDEX('Podświetlanie modułów'!D:D,MATCH(H69,'Podświetlanie modułów'!B:B,0)),"") ->  | E69: Strona główna 1 | G69: =IFERROR(MATCH(H69,Brief!AA:AA,0),"") ->  | H69: Strona główna 10 sekcji (projekt + kodowanie) | J69: 13 | K69: =J69*$K$2+(V2*(J69*$K$2)) -> 1716 | N69: 20 | O69: 3600 | P69: =IFERROR(INDEX(Brief!J:J,G69),0) -> 0 | Q69: x | R69: =ROUNDUP(P69*(K69+O69)*(1+$R$2),-1) -> 0 | T69: 0 | U69: 0 | V69: 0 | W69: 0 | X69: 0 | Y69: https://tonyzgrywus.pl/ | AB69: WP
D70: =IFERROR(INDEX('Podświetlanie modułów'!D:D,MATCH(H70,'Podświetlanie modułów'!B:B,0)),"") ->  | E70: Strona główna 1 | G70: =IFERROR(MATCH(H70,Brief!AA:AA,0),"") ->  | H70: Strona główna 15 sekcji (projekt + kodowanie) | J70: 16 | K70: =J70*$K$2+(V2*(J70*$K$2)) -> 2112 | N70: 25 | O70: 4500 | P70: =IFERROR(INDEX(Brief!J:J,G70),0) -> 0 | Q70: x | R70: 0 | T70: 0 | U70: 0 | V70: 0 | W70: 0 | X70: 0 | Y70: https://mrpost.pl/ | AB70: WP
D71: =IFERROR(INDEX('Podświetlanie modułów'!D:D,MATCH(H71,'Podświetlanie modułów'!B:B,0)),"") ->  | E71: Strona 1 sekcja | G71: =IFERROR(MATCH(H71,Brief!AA:AA,0),"") -> 140 | H71: Strona 1 sekcja (projekt + kodowanie) | J71: 1 | K71: =J71*$K$2+(V2*(J71*$K$2)) -> 132 | N71: 2 | O71: =$O$2*N71+($X$2*(N71*$O$2)) -> 360 | P71: =IFERROR(INDEX(Brief!J:J,G71),0) -> 0 | R71: 0 | T71: =P71 -> 0 | U71: 0 | V71: 0 | W71: 0 | X71: 0 | Y71: https://plusraty.pl/sprzedaz-bezposrednia/ | AB71: WP
D72: =IFERROR(INDEX('Podświetlanie modułów'!D:D,MATCH(H72,'Podświetlanie modułów'!B:B,0)),"") ->  | E72: > | G72: =IFERROR(MATCH(H72,Brief!AA:AA,0),"") ->  | H72: ="> "&Brief!G141 -> > | P72: =IFERROR(INDEX(Brief!J:J,G72),0) -> 0 | R72: 0 | W72: 0
D73: =IFERROR(INDEX('Podświetlanie modułów'!D:D,MATCH(H73,'Podświetlanie modułów'!B:B,0)),"") ->  | E73: =LEFT(H73,15) -> Strona 2 sekcje | G73: =IFERROR(MATCH(H73,Brief!AA:AA,0),"") -> 142 | H73: Strona 2 sekcje (projekt + kodowanie) | J73: 1.5 | K73: =J73*$K$2+(V2*(J73*$K$2)) -> 198 | N73: 3 | O73: =$O$2*N73+($X$2*(N73*$O$2)) -> 540 | P73: =IFERROR(INDEX(Brief!J:J,G73),0) -> 0 | R73: 0 | T73: =P71 -> 0 | U73: =S73*T73 -> 0 | V73: =P73*J73 -> 0 | W73: 0 | X73: =P73*N73 -> 0 | AB73: WP
D74: =IFERROR(INDEX('Podświetlanie modułów'!D:D,MATCH(H74,'Podświetlanie modułów'!B:B,0)),"") ->  | E74: > | G74: =IFERROR(MATCH(H74,Brief!AA:AA,0),"") ->  | H74: ="> "&Brief!G145 -> > | P74: =IFERROR(INDEX(Brief!J:J,G74),0) -> 0 | R74: 0 | W74: 0
D75: =IFERROR(INDEX('Podświetlanie modułów'!D:D,MATCH(H75,'Podświetlanie modułów'!B:B,0)),"") ->  | E75: Strona 3 sekcje | G75: =IFERROR(MATCH(H75,Brief!AA:AA,0),"") -> 144 | H75: Strona 3 sekcje (projekt + kodowanie) | J75: 2 | K75: =J75*$K$2+(V2*(J75*$K$2)) -> 264 | N75: 4 | O75: =$O$2*N75+($X$2*(N75*$O$2)) -> 720 | P75: =IFERROR(INDEX(Brief!J:J,G75),0) -> 0 | R75: 0 | T75: =P71 -> 0 | U75: =S75*T75 -> 0 | V75: =P75*J75 -> 0 | W75: 0 | X75: =P75*N75 -> 0 | Y75: https://dlapracodawcy.contrain.pl/pracownicy-z-ukrainy/ | AB75: WP
D76: =IFERROR(INDEX('Podświetlanie modułów'!D:D,MATCH(H76,'Podświetlanie modułów'!B:B,0)),"") ->  | E76: > | G76: =IFERROR(MATCH(H76,Brief!AA:AA,0),"") ->  | H76: ="> "&Brief!G145 -> > | P76: =IFERROR(INDEX(Brief!J:J,G76),0) -> 0 | R76: 0 | W76: 0
D77: =IFERROR(INDEX('Podświetlanie modułów'!D:D,MATCH(H77,'Podświetlanie modułów'!B:B,0)),"") ->  | E77: =LEFT(H77,15) -> Strona 4 sekcje | G77: =IFERROR(MATCH(H77,Brief!AA:AA,0),"") -> 146 | H77: Strona 4 sekcje (projekt + kodowanie) | J77: 3 | K77: =J77*$K$2+(V2*(J77*$K$2)) -> 396 | N77: 5 | O77: =$O$2*N77+($X$2*(N77*$O$2)) -> 900 | P77: =IFERROR(INDEX(Brief!J:J,G77),0) -> 0 | R77: 0 | T77: =P71 -> 0 | U77: =S77*T77 -> 0 | V77: =P77*J77 -> 0 | W77: 0 | X77: =P77*N77 -> 0 | AB77: WP
D78: =IFERROR(INDEX('Podświetlanie modułów'!D:D,MATCH(H78,'Podświetlanie modułów'!B:B,0)),"") ->  | E78: > | G78: =IFERROR(MATCH(H78,Brief!AA:AA,0),"") ->  | H78: ="> "&Brief!G149 -> > | P78: =IFERROR(INDEX(Brief!J:J,G78),0) -> 0 | R78: 0 | W78: 0
D79: =IFERROR(INDEX('Podświetlanie modułów'!D:D,MATCH(H79,'Podświetlanie modułów'!B:B,0)),"") ->  | E79: Strona 5 sekcji | G79: =IFERROR(MATCH(H79,Brief!AA:AA,0),"") -> 148 | H79: Strona 5 sekcji (projekt + kodowanie) | J79: 4 | K79: =J79*$K$2+(V2*(J79*$K$2)) -> 528 | N79: 6 | O79: =$O$2*N79+($X$2*(N79*$O$2)) -> 1080 | P79: =IFERROR(INDEX(Brief!J:J,G79),0) -> 0 | R79: 0 | T79: =P71 -> 0 | U79: =S79*T79 -> 0 | V79: =P79*J79 -> 0 | W79: 0 | X79: =P79*N79 -> 0 | AB79: WP
D80: =IFERROR(INDEX('Podświetlanie modułów'!D:D,MATCH(H80,'Podświetlanie modułów'!B:B,0)),"") ->  | E80: > | G80: =IFERROR(MATCH(H80,Brief!AA:AA,0),"") ->  | H80: ="> "&Brief!G149 -> > | P80: =IFERROR(INDEX(Brief!J:J,G80),0) -> 0 | R80: 0 | W80: 0
D81: =IFERROR(INDEX('Podświetlanie modułów'!D:D,MATCH(H81,'Podświetlanie modułów'!B:B,0)),"") ->  | E81: =LEFT(H81,15) -> Strona 6 sekcji | G81: =IFERROR(MATCH(H81,Brief!AA:AA,0),"") -> 150 | H81: Strona 6 sekcji (projekt + kodowanie) | J81: 5 | K81: =J81*$K$2+(V2*(J81*$K$2)) -> 660 | N81: 7 | O81: =$O$2*N81+($X$2*(N81*$O$2)) -> 1260 | P81: =IFERROR(INDEX(Brief!J:J,G81),0) -> 0 | R81: 0 | T81: =P71 -> 0 | U81: =S81*T81 -> 0 | V81: =P81*J81 -> 0 | W81: 0 | X81: =P81*N81 -> 0 | Y81: http://primecraftdeveloper.pl/ | AB81: WP
D82: =IFERROR(INDEX('Podświetlanie modułów'!D:D,MATCH(H82,'Podświetlanie modułów'!B:B,0)),"") ->  | E82: > | G82: =IFERROR(MATCH(H82,Brief!AA:AA,0),"") ->  | H82: ="> "&Brief!G149 -> > | P82: =IFERROR(INDEX(Brief!J:J,G82),0) -> 0 | R82: 0 | W82: 0
D83: =IFERROR(INDEX('Podświetlanie modułów'!D:D,MATCH(H83,'Podświetlanie modułów'!B:B,0)),"") ->  | E83: =LEFT(H83,15) -> Strona 7 sekcji | G83: =IFERROR(MATCH(H83,Brief!AA:AA,0),"") -> 152 | H83: Strona 7 sekcji (projekt + kodowanie) | J83: 6 | K83: =J83*$K$2+(V2*(J83*$K$2)) -> 792 | N83: 8 | O83: =$O$2*N83+($X$2*(N83*$O$2)) -> 1440 | P83: =IFERROR(INDEX(Brief!J:J,G83),0) -> 0 | R83: 0 | T83: =P71 -> 0 | U83: =S83*T83 -> 0 | V83: =P83*J83 -> 0 | W83: 0 | X83: =P83*N83 -> 0 | Y83: http://primecraftdeveloper.pl/ | AB83: WP
D84: =IFERROR(INDEX('Podświetlanie modułów'!D:D,MATCH(H84,'Podświetlanie modułów'!B:B,0)),"") ->  | E84: > | G84: =IFERROR(MATCH(H84,Brief!AA:AA,0),"") ->  | H84: ="> "&Brief!G153 -> > | P84: =IFERROR(INDEX(Brief!J:J,G84),0) -> 0 | R84: 0 | W84: 0
D85: =IFERROR(INDEX('Podświetlanie modułów'!D:D,MATCH(H85,'Podświetlanie modułów'!B:B,0)),"") ->  | E85: =LEFT(H85,15) -> Strona 8 sekcji | G85: =IFERROR(MATCH(H85,Brief!AA:AA,0),"") -> 154 | H85: Strona 8 sekcji (projekt + kodowanie) | J85: 7 | K85: =J85*$K$2+(V2*(J85*$K$2)) -> 924 | N85: 9 | O85: =$O$2*N85+($X$2*(N85*$O$2)) -> 1620 | P85: =IFERROR(INDEX(Brief!J:J,G85),0) -> 0 | R85: 0 | T85: =P71 -> 0 | U85: =S85*T85 -> 0 | V85: =P85*J85 -> 0 | W85: 0 | X85: =P85*N85 -> 0 | Y85: http://primecraftdeveloper.pl/ | AB85: WP
D86: =IFERROR(INDEX('Podświetlanie modułów'!D:D,MATCH(H86,'Podświetlanie modułów'!B:B,0)),"") ->  | E86: > | G86: =IFERROR(MATCH(H86,Brief!AA:AA,0),"") ->  | H86: ="> "&Brief!G159 -> > | P86: =IFERROR(INDEX(Brief!J:J,G86),0) -> 0 | R86: 0 | W86: 0
D87: =IFERROR(INDEX('Podświetlanie modułów'!D:D,MATCH(H87,'Podświetlanie modułów'!B:B,0)),"") ->  | E87: Strona 9 sekcji | G87: =IFERROR(MATCH(H87,Brief!AA:AA,0),"") -> 156 | H87: Strona 9 sekcji (projekt + kodowanie) | J87: 8 | K87: =J87*$K$2+(V2*(J87*$K$2)) -> 1056 | N87: 10 | O87: =$O$2*N87+($X$2*(N87*$O$2)) -> 1800 | P87: =IFERROR(INDEX(Brief!J:J,G87),0) -> 0 | R87: 0 | T87: =P71 -> 0 | U87: =S87*T87 -> 0 | V87: =P87*J87 -> 0 | W87: 0 | X87: =P87*N87 -> 0 | Y87: http://primecraftdeveloper.pl/ | AB87: WP
D88: =IFERROR(INDEX('Podświetlanie modułów'!D:D,MATCH(H88,'Podświetlanie modułów'!B:B,0)),"") ->  | E88: > | G88: =IFERROR(MATCH(H88,Brief!AA:AA,0),"") ->  | H88: ="> "&Brief!G161 -> > | P88: =IFERROR(INDEX(Brief!J:J,G88),0) -> 0 | R88: 0 | W88: 0
D89: =IFERROR(INDEX('Podświetlanie modułów'!D:D,MATCH(H89,'Podświetlanie modułów'!B:B,0)),"") ->  | E89: Strona 10 sekcj | G89: =IFERROR(MATCH(H89,Brief!AA:AA,0),"") -> 158 | H89: Strona 10 sekcji (projekt + kodowanie) | J89: 9 | K89: =J89*$K$2+(V2*(J89*$K$2)) -> 1188 | N89: 11 | O89: =$O$2*N89+($X$2*(N89*$O$2)) -> 1980 | P89: =IFERROR(INDEX(Brief!J:J,G89),0) -> 0 | R89: 0 | T89: =P71 -> 0 | U89: =S89*T89 -> 0 | V89: =P89*J89 -> 0 | W89: 0 | X89: =P89*N89 -> 0 | AB89: WP
D90: =IFERROR(INDEX('Podświetlanie modułów'!D:D,MATCH(H90,'Podświetlanie modułów'!B:B,0)),"") ->  | E90: > | G90: =IFERROR(MATCH(H90,Brief!AA:AA,0),"") ->  | H90: ="> "&Brief!G159 -> > | P90: =IFERROR(INDEX(Brief!J:J,G90),0) -> 0 | R90: 0 | W90: 0
D91: =IFERROR(INDEX('Podświetlanie modułów'!D:D,MATCH(H91,'Podświetlanie modułów'!B:B,0)),"") ->  | E91: Strona 1 sekcja | G91: =IFERROR(MATCH(H91,Brief!AA:AA,0),"") -> 160 | H91: Strona 1 sekcja (utworzenie i uzupełnianie) | L91: 1 | M91: =L91*$M$2+($W$2*(L91*$M$2)) -> 132 | N91: 0 | O91: =$O$2*N91+($X$2*(N91*$O$2)) -> 0 | P91: =IFERROR(INDEX(Brief!J:J,G91),0) -> 0 | R91: =ROUNDUP(P91*(M91+O91)*(1+$R$2),-1) -> 0 | T91: =P71 -> 0 | U91: =S91*T91 -> 0 | V91: =P91*J91 -> 0 | W91: 0 | X91: =P91*N91 -> 0 | Y91: https://dlapracodawcy.contrain.pl/pracownicy-z-ukrainy/ | AB91: WP
D92: =IFERROR(INDEX('Podświetlanie modułów'!D:D,MATCH(H92,'Podświetlanie modułów'!B:B,0)),"") ->  | E92: > | G92: =IFERROR(MATCH(H92,Brief!AA:AA,0),"") ->  | H92: ="> "&Brief!G161 -> > | P92: =IFERROR(INDEX(Brief!J:J,G92),0) -> 0 | R92: 0 | W92: 0
D93: =IFERROR(INDEX('Podświetlanie modułów'!D:D,MATCH(H93,'Podświetlanie modułów'!B:B,0)),"") ->  | E93: =LEFT(H93,15) -> Strona 2 sekcje | G93: =IFERROR(MATCH(H93,Brief!AA:AA,0),"") -> 162 | H93: Strona 2 sekcje (utworzenie i uzupełnianie) | L93: 2 | M93: =L93*$M$2+($W$2*(L93*$M$2)) -> 264 | N93: 0 | O93: =$O$2*N93+($X$2*(N93*$O$2)) -> 0 | P93: =IFERROR(INDEX(Brief!J:J,G93),0) -> 0 | R93: =ROUNDUP(P93*(M93+O93)*(1+$R$2),-1) -> 0 | T93: =P71 -> 0 | U93: =S93*T93 -> 0 | V93: =P93*J93 -> 0 | W93: 0 | X93: =P93*N93 -> 0 | AB93: WP
G94: =IFERROR(MATCH(H94,Brief!AA:AA,0),"") ->  | H94: ="> "&Brief!G163 -> > | P94: =IFERROR(INDEX(Brief!J:J,G94),0) -> 0 | R94: 0 | W94: 0
D95: =IFERROR(INDEX('Podświetlanie modułów'!D:D,MATCH(H95,'Podświetlanie modułów'!B:B,0)),"") ->  | E95: Strona 3 sekcje | F95: =IF($F$2="x",R95,"") ->  | G95: =IFERROR(MATCH(H95,Brief!AA:AA,0),"") -> 164 | H95: Strona 3 sekcje (utworzenie i uzupełnianie) | L95: 3 | M95: =L95*$M$2+($W$2*(L95*$M$2)) -> 396 | N95: 0 | O95: =$O$2*N95+($X$2*(N95*$O$2)) -> 0 | P95: =IFERROR(INDEX(Brief!J:J,G95),0) -> 0 | R95: =ROUNDUP(P95*(M95+O95)*(1+$R$2),-1) -> 0 | T95: =P71 -> 0 | U95: =S95*T95 -> 0 | V95: =P95*J95 -> 0 | W95: 0 | X95: =P95*N95 -> 0 | AB95: WP
D96: =IFERROR(INDEX('Podświetlanie modułów'!D:D,MATCH(H96,'Podświetlanie modułów'!B:B,0)),"") ->  | E96: > | F96: =IF($F$2="x",R96,"") ->  | G96: =IFERROR(MATCH(H96,Brief!AA:AA,0),"") ->  | H96: ="> "&Brief!G165 -> > | P96: =IFERROR(INDEX(Brief!J:J,G96),0) -> 0 | R96: 0 | W96: 0
D97: =IFERROR(INDEX('Podświetlanie modułów'!D:D,MATCH(H97,'Podświetlanie modułów'!B:B,0)),"") ->  | E97: =LEFT(H97,15) -> Strona 4 sekcje | F97: =IF($F$2="x",R97,"") ->  | G97: =IFERROR(MATCH(H97,Brief!AA:AA,0),"") -> 166 | H97: Strona 4 sekcje (utworzenie i uzupełnianie) | L97: 4 | M97: =L97*$M$2+($W$2*(L97*$M$2)) -> 528 | N97: 0 | O97: =$O$2*N97+($X$2*(N97*$O$2)) -> 0 | P97: =IFERROR(INDEX(Brief!J:J,G97),0) -> 0 | R97: =ROUNDUP(P97*(M97+O97)*(1+$R$2),-1) -> 0 | T97: =P71 -> 0 | U97: =S97*T97 -> 0 | V97: =P97*J97 -> 0 | W97: 0 | X97: =P97*N97 -> 0 | AB97: WP
G98: =IFERROR(MATCH(H98,Brief!AA:AA,0),"") ->  | H98: ="> "&Brief!G167 -> > | P98: =IFERROR(INDEX(Brief!J:J,G98),0) -> 0 | R98: 0 | W98: 0
D99: =IFERROR(INDEX('Podświetlanie modułów'!D:D,MATCH(H99,'Podświetlanie modułów'!B:B,0)),"") ->  | E99: Strona 5 sekcji | F99: =IF($F$2="x",R99,"") ->  | G99: =IFERROR(MATCH(H99,Brief!AA:AA,0),"") -> 168 | H99: Strona 5 sekcji (utworzenie i uzupełnianie) | L99: 5 | M99: =L99*$M$2+($W$2*(L99*$M$2)) -> 660 | N99: 0 | O99: =$O$2*N99+($X$2*(N99*$O$2)) -> 0 | P99: =IFERROR(INDEX(Brief!J:J,G99),0) -> 0 | R99: =ROUNDUP(P99*(M99+O99)*(1+$R$2),-1) -> 0 | T99: =P71 -> 0 | U99: =S99*T99 -> 0 | V99: =P99*J99 -> 0 | W99: 0 | X99: =P99*N99 -> 0 | AB99: WP
D100: =IFERROR(INDEX('Podświetlanie modułów'!D:D,MATCH(H100,'Podświetlanie modułów'!B:B,0)),"") ->  | E100: > | F100: =IF($F$2="x",R100,"") ->  | G100: =IFERROR(MATCH(H100,Brief!AA:AA,0),"") ->  | H100: ="> "&Brief!G169 -> > | P100: =IFERROR(INDEX(Brief!J:J,G100),0) -> 0 | R100: 0 | W100: 0
D101: =IFERROR(INDEX('Podświetlanie modułów'!D:D,MATCH(H101,'Podświetlanie modułów'!B:B,0)),"") ->  | E101: =LEFT(H101,15) -> Strona 6 sekcji | F101: =IF($F$2="x",R101,"") ->  | G101: =IFERROR(MATCH(H101,Brief!AA:AA,0),"") -> 170 | H101: Strona 6 sekcji (utworzenie i uzupełnianie) | L101: 6 | M101: =L101*$M$2+($W$2*(L101*$M$2)) -> 792 | N101: 0 | O101: =$O$2*N101+($X$2*(N101*$O$2)) -> 0 | P101: =IFERROR(INDEX(Brief!J:J,G101),0) -> 0 | R101: =ROUNDUP(P101*(M101+O101)*(1+$R$2),-1) -> 0 | T101: =P71 -> 0 | U101: =S101*T101 -> 0 | V101: =P101*J101 -> 0 | W101: 0 | X101: =P101*N101 -> 0 | AB101: WP
G102: =IFERROR(MATCH(H102,Brief!AA:AA,0),"") ->  | H102: ="> "&Brief!G171 -> > | P102: =IFERROR(INDEX(Brief!J:J,G102),0) -> 0 | R102: 0 | W102: 0
D103: =IFERROR(INDEX('Podświetlanie modułów'!D:D,MATCH(H103,'Podświetlanie modułów'!B:B,0)),"") ->  | E103: Strona 7 sekcji | F103: =IF($F$2="x",R103,"") ->  | G103: =IFERROR(MATCH(H103,Brief!AA:AA,0),"") -> 172 | H103: Strona 7 sekcji (utworzenie i uzupełnianie) | L103: 6.5 | M103: =L103*$M$2+($W$2*(L103*$M$2)) -> 858 | N103: 0 | O103: =$O$2*N103+($X$2*(N103*$O$2)) -> 0 | P103: =IFERROR(INDEX(Brief!J:J,G103),0) -> 0 | R103: =ROUNDUP(P103*(M103+O103)*(1+$R$2),-1) -> 0 | T103: =P71 -> 0 | U103: =S103*T103 -> 0 | V103: =P103*J103 -> 0 | W103: 0 | X103: =P103*N103 -> 0 | Y103: http://primecraftdeveloper.pl/ | AB103: WP
D104: =IFERROR(INDEX('Podświetlanie modułów'!D:D,MATCH(H104,'Podświetlanie modułów'!B:B,0)),"") ->  | E104: > | F104: =IF($F$2="x",R104,"") ->  | G104: =IFERROR(MATCH(H104,Brief!AA:AA,0),"") ->  | H104: ="> "&Brief!G173 -> > | P104: =IFERROR(INDEX(Brief!J:J,G104),0) -> 0 | R104: 0 | W104: 0
D105: =IFERROR(INDEX('Podświetlanie modułów'!D:D,MATCH(H105,'Podświetlanie modułów'!B:B,0)),"") ->  | E105: =LEFT(H105,15) -> Strona 8 sekcji | F105: =IF($F$2="x",R105,"") ->  | G105: =IFERROR(MATCH(H105,Brief!AA:AA,0),"") -> 174 | H105: Strona 8 sekcji (utworzenie i uzupełnianie) | L105: 7 | M105: =L105*$M$2+($W$2*(L105*$M$2)) -> 924 | N105: 0 | O105: =$O$2*N105+($X$2*(N105*$O$2)) -> 0 | P105: =IFERROR(INDEX(Brief!J:J,G105),0) -> 0 | R105: =ROUNDUP(P105*(M105+O105)*(1+$R$2),-1) -> 0 | T105: =P71 -> 0 | U105: =S105*T105 -> 0 | V105: =P105*J105 -> 0 | W105: 0 | X105: =P105*N105 -> 0 | Y105: http://primecraftdeveloper.pl/ | AB105: WP
G106: =IFERROR(MATCH(H106,Brief!AA:AA,0),"") ->  | H106: ="> "&Brief!G175 -> > | P106: =IFERROR(INDEX(Brief!J:J,G106),0) -> 0 | R106: 0 | W106: 0
D107: =IFERROR(INDEX('Podświetlanie modułów'!D:D,MATCH(H107,'Podświetlanie modułów'!B:B,0)),"") ->  | E107: =LEFT(H107,15) -> Strona 9 sekcji | F107: =IF($F$2="x",R107,"") ->  | G107: =IFERROR(MATCH(H107,Brief!AA:AA,0),"") -> 176 | H107: Strona 9 sekcji (utworzenie i uzupełnianie) | L107: 7.5 | M107: =L107*$M$2+($W$2*(L107*$M$2)) -> 990 | N107: 0 | O107: =$O$2*N107+($X$2*(N107*$O$2)) -> 0 | P107: =IFERROR(INDEX(Brief!J:J,G107),0) -> 0 | R107: =ROUNDUP(P107*(M107+O107)*(1+$R$2),-1) -> 0 | T107: =P71 -> 0 | U107: =S107*T107 -> 0 | V107: =P107*J107 -> 0 | W107: 0 | X107: =P107*N107 -> 0 | Y107: http://primecraftdeveloper.pl/ | AB107: WP
G108: =IFERROR(MATCH(H108,Brief!AA:AA,0),"") ->  | H108: ="> "&Brief!G177 -> > | P108: =IFERROR(INDEX(Brief!J:J,G108),0) -> 0 | R108: 0 | W108: 0
D109: =IFERROR(INDEX('Podświetlanie modułów'!D:D,MATCH(H109,'Podświetlanie modułów'!B:B,0)),"") ->  | E109: Strona 10 sekcj | F109: =IF($F$2="x",R109,"") ->  | G109: =IFERROR(MATCH(H109,Brief!AA:AA,0),"") -> 178 | H109: Strona 10 sekcji (utworzenie i uzupełnianie) | L109: 8 | M109: =L109*$M$2+($W$2*(L109*$M$2)) -> 1056 | N109: 0 | O109: =$O$2*N109+($X$2*(N109*$O$2)) -> 0 | P109: =IFERROR(INDEX(Brief!J:J,G109),0) -> 0 | R109: =ROUNDUP(P109*(M109+O109)*(1+$R$2),-1) -> 0 | T109: =P71 -> 0 | U109: =S109*T109 -> 0 | V109: =P109*J109 -> 0 | W109: 0 | X109: =P109*N109 -> 0 | AB109: WP
G110: =IFERROR(MATCH(H110,Brief!AA:AA,0),"") ->  | H110: ="> "&Brief!G179 -> > | P110: =IFERROR(INDEX(Brief!J:J,G110),0) -> 0 | R110: 0 | W110: 0
A111: x | C111: x | D111: =IFERROR(INDEX('Podświetlanie modułów'!D:D,MATCH(H111,'Podświetlanie modułów'!B:B,0)),"") ->  | E111: Menu nawigacyjn | F111: =IF($F$2="x",R111,"") ->  | G111: =IFERROR(MATCH(H111,Brief!AA:AA,0),"") -> 180 | H111: Menu nawigacyjne proste | J111: 0.2 | K111: =J111*$K$2+(V2*(J111*$K$2)) -> 26.4 | N111: 1 | O111: =$O$2*N111+($X$2*(N111*$O$2)) -> 180 | P111: =IFERROR(INDEX(Brief!J:J,G111),0) -> 0 | Q111: x | R111: 0 | T111: =P71 -> 0 | U111: 0 | V111: =P111*J111 -> 0 | W111: 0 | X111: 0 | Y111: https://commhaven.pl/ | AB111: WP + autorski skrypt
D112: =IFERROR(INDEX('Podświetlanie modułów'!D:D,MATCH(H112,'Podświetlanie modułów'!B:B,0)),"") ->  | E112: Menu nawigacyjn | G112: =IFERROR(MATCH(H112,Brief!AA:AA,0),"") ->  | H112: Menu nawigacyjne 2 poziomowe | J112: 0.5 | K112: =J112*$K$2+(V2*(J112*$K$2)) -> 66 | N112: 1 | O112: =$O$2*N112+($X$2*(N112*$O$2)) -> 180 | P112: =IFERROR(INDEX(Brief!J:J,G112),0) -> 0 | Q112: x | R112: 0 | T112: =P72 -> 0 | U112: 0 | V112: 0 | W112: 0 | X112: 0 | Y112: http://studiokreacja.pl | AB112: WP + autorski skrypt
D113: =IFERROR(INDEX('Podświetlanie modułów'!D:D,MATCH(H113,'Podświetlanie modułów'!B:B,0)),"") ->  | E113: Mega nawigacyjn | G113: =IFERROR(MATCH(H113,Brief!AA:AA,0),"") ->  | H113: Mega nawigacyjne 3 poziomowe | I113: od | J113: 1 | K113: =J113*$K$2+(V2*(J113*$K$2)) -> 132 | N113: 3 | O113: 540 | P113: =IFERROR(INDEX(Brief!J:J,G113),0) -> 0 | R113: 0 | T113: 0 | U113: 0 | V113: 0 | W113: 0 | X113: 0 | Y113: https://emspartner.pl/ | Z113: https://cmt-advisory.pl/ | AB113: WP + autorski skrypt
D114: =IFERROR(INDEX('Podświetlanie modułów'!D:D,MATCH(H114,'Podświetlanie modułów'!B:B,0)),"") ->  | E114: Submenu OnePage | G114: =IFERROR(MATCH(H114,Brief!AA:AA,0),"") -> 181 | H114: Submenu OnePage do wybranej podstrony | I114: od | J114: 0.5 | K114: =J114*$K$2+(V2*(J114*$K$2)) -> 66 | N114: 1 | O114: 180 | P114: =IFERROR(INDEX(Brief!J:J,G114),0) -> 0 | R114: 0 | T114: 0 | U114: 0 | V114: 0 | W114: 0 | X114: 0 | Y114: https://czempionhurt.pl/o-nas/#rozwoj | Z114: https://www.kukko.com/pl/produkt/mp_12_alligator/ | AA114: https://lightwood.pl/#sales | AB114: WP + autorski skrypt
A115: x | D115: =IFERROR(INDEX('Podświetlanie modułów'!D:D,MATCH(H115,'Podświetlanie modułów'!B:B,0)),"") ->  | E115: Baner/wideo na | G115: =IFERROR(MATCH(H115,Brief!AA:AA,0),"") -> 182 | H115: Baner/wideo na stronie głównej (bez zmiany slajdów) | I115: od | J115: 2 | K115: =J115*$K$2+(V2*(J115*$K$2)) -> 264 | N115: 1 | O115: 180 | P115: =IFERROR(INDEX(Brief!J:J,G115),0) -> 0 | Q115: x | R115: 0 | T115: 0 | U115: 0 | V115: 0 | W115: 0 | X115: 0 | AB115: ACF autorski skrypt
A116: x | D116: =IFERROR(INDEX('Podświetlanie modułów'!D:D,MATCH(H116,'Podświetlanie modułów'!B:B,0)),"") ->  | E116: Domyślny slider | G116: =IFERROR(MATCH(H116,Brief!AA:AA,0),"") -> 183 | H116: Domyślny slider na stronie głównej (1 szt) | J116: 2 | K116: =J116*$K$2+(V2*(J116*$K$2)) -> 264 | N116: 1 | O116: 180 | P116: =IFERROR(INDEX(Brief!J:J,G116),0) -> 0 | Q116: x | R116: 0 | T116: 0 | U116: 0 | V116: 0 | W116: 0 | X116: 0 | AB116: ACF autorski skrypt
A117: x | B117: x | D117: =IFERROR(INDEX('Podświetlanie modułów'!D:D,MATCH(H117,'Podświetlanie modułów'!B:B,0)),"") ->  | E117: Utworzenie kole | G117: =IFERROR(MATCH(H117,Brief!AA:AA,0),"") -> 184 | H117: Utworzenie kolejnego slajdu na slider (1 szt) | J117: 2 | K117: =J117*$K$2+(V2*(J117*$K$2)) -> 264 | L117: 0.4 | M117: =L117*$M$2+($W$2*(L117*$M$2)) -> 52.8 | N117: 0 | O117: 0 | P117: =IFERROR(INDEX(Brief!J:J,G117),0) -> 0 | Q117: x | R117: =ROUNDUP(P117*(K117+M117+O117)*(1+$R$2),-1) -> 0 | T117: 0 | U117: 0 | V117: 0 | W117: 0 | X117: 0 | AB117: ACF autorski skrypt
A118: x | D118: =IFERROR(INDEX('Podświetlanie modułów'!D:D,MATCH(H118,'Podświetlanie modułów'!B:B,0)),"") ->  | E118: Slider szyty na | G118: =IFERROR(MATCH(H118,Brief!AA:AA,0),"") -> 185 | H118: Slider szyty na miarę | I118: od | J118: 3 | K118: =J118*$K$2+(V2*(J118*$K$2)) -> 396 | N118: 2 | O118: 360 | P118: =IFERROR(INDEX(Brief!J:J,G118),0) -> 0 | R118: 0 | T118: 0 | U118: 0 | V118: 0 | W118: 0 | X118: 0 | AB118: ACF autorski skrypt
D119: =IFERROR(INDEX('Podświetlanie modułów'!D:D,MATCH(H119,'Podświetlanie modułów'!B:B,0)),"") ->  | E119: Slider w treści | G119: =IFERROR(MATCH(H119,Brief!AA:AA,0),"") -> 186 | H119: Slider w treści (Elementor) | J119: 1 | K119: =J119*$K$2+(V2*(J119*$K$2)) -> 132 | N119: 1 | O119: 180 | P119: =IFERROR(INDEX(Brief!J:J,G119),0) -> 0 | R119: 0 | T119: 0 | U119: 0 | V119: 0 | W119: 0 | X119: 0 | AB119: Elementor
A120: x | D120: =IFERROR(INDEX('Podświetlanie modułów'!D:D,MATCH(H120,'Podświetlanie modułów'!B:B,0)),"") -> 0 | E120: Galeria zdjęć ( | G120: =IFERROR(MATCH(H120,Brief!AA:AA,0),"") -> 187 | H120: Galeria zdjęć (podstawowa w WordPress) | J120: 0 | K120: =J120*$K$2+(V2*(J120*$K$2)) -> 0 | N120: 1.5 | O120: 270 | P120: =IFERROR(INDEX(Brief!J:J,G120),0) -> 0 | Q120: x | R120: 0 | T120: 0 | U120: 0 | V120: 0 | W120: 0 | X120: 0 | Y120: http://smoczewzgorze.pl/galeria/kraciaste-marynary-historia-rock-and-rolla-2/ | AB120: WP, wlasny post type
A121: x | D121: =IFERROR(INDEX('Podświetlanie modułów'!D:D,MATCH(H121,'Podświetlanie modułów'!B:B,0)),"") ->  | E121: Galeria zdjęć ( | G121: =IFERROR(MATCH(H121,Brief!AA:AA,0),"") -> 188 | H121: Galeria zdjęć (Elementor) | J121: 0.5 | K121: =J121*$K$2+(V2*(J121*$K$2)) -> 66 | N121: 1 | O121: 180 | P121: =IFERROR(INDEX(Brief!J:J,G121),0) -> 0 | R121: 0 | T121: 0 | U121: 0 | V121: 0 | W121: 0 | X121: 0 | AB121: Elementor
D122: =IFERROR(INDEX('Podświetlanie modułów'!D:D,MATCH(H122,'Podświetlanie modułów'!B:B,0)),"") ->  | E122: Galeria zdjęć A | G122: =IFERROR(MATCH(H122,Brief!AA:AA,0),"") -> 189 | H122: Galeria zdjęć ACF (nietypowy układ, karuzela) | I122: od | J122: 2 | K122: =J122*$K$2+(V2*(J122*$K$2)) -> 264 | N122: 2 | O122: 360 | P122: =IFERROR(INDEX(Brief!J:J,G122),0) -> 0 | R122: 0 | T122: 0 | U122: 0 | V122: 0 | W122: 0 | X122: 0 | Y122: https://xaris.pl/branze/ | Z122: https://studiokreacja.pl/kategorie-realizacji/case-study/ | AB122: WP
A123: x | D123: =IFERROR(INDEX('Podświetlanie modułów'!D:D,MATCH(H123,'Podświetlanie modułów'!B:B,0)),"") ->  | E123: Biblioteka medi | G123: =IFERROR(MATCH(H123,Brief!AA:AA,0),"") -> 190 | H123: Biblioteka mediów | K123: =J123*$K$2+(V2*(J123*$K$2)) -> 0 | O123: 0 | P123: =IFERROR(INDEX(Brief!J:J,G123),0) -> 0 | Q123: x | R123: 0 | T123: 0 | U123: 0 | V123: 0 | W123: 0 | X123: 0 | AB123: WP
D124: =IFERROR(INDEX('Podświetlanie modułów'!D:D,MATCH(H124,'Podświetlanie modułów'!B:B,0)),"") ->  | E124: Foldery w bibli | G124: =IFERROR(MATCH(H124,Brief!AA:AA,0),"") -> 191 | H124: Foldery w bibliotece mediów | J124: 0 | K124: =J124*$K$2+(V2*(J124*$K$2)) -> 0 | N124: 0.2 | O124: 36 | P124: =IFERROR(INDEX(Brief!J:J,G124),0) -> 0 | R124: 0 | S124: 120 | T124: 0 | U124: 0 | V124: 0 | W124: 0 | X124: 0 | AB124: https://www.joomunited.com/wordpress-products/wp-media-folder
A125: x | D125: =IFERROR(INDEX('Podświetlanie modułów'!D:D,MATCH(H125,'Podświetlanie modułów'!B:B,0)),"") ->  | E125: Mapa jako obraz | G125: =IFERROR(MATCH(H125,Brief!AA:AA,0),"") ->  | H125: Mapa jako obrazek z Google Mapy (bez interaktywności) | J125: 0.4 | K125: =J125*$K$2+(V2*(J125*$K$2)) -> 52.8 | N125: 0.2 | O125: 36 | P125: =IFERROR(INDEX(Brief!J:J,G125),0) -> 0 | R125: 0 | T125: 0 | U125: 0 | V125: 0 | W125: 0 | X125: 0
A126: x | C126: x | D126: =IFERROR(INDEX('Podświetlanie modułów'!D:D,MATCH(H126,'Podświetlanie modułów'!B:B,0)),"") -> 0 | E126: Mapa prosta Goo | G126: =IFERROR(MATCH(H126,Brief!AA:AA,0),"") -> 192 | H126: Mapa prosta Google Mapy | J126: 0.2 | K126: =J126*$K$2+(V2*(J126*$K$2)) -> 26.4 | N126: 0.2 | O126: 36 | P126: =IFERROR(INDEX(Brief!J:J,G126),0) -> 0 | Q126: x | R126: 0 | T126: 0 | U126: 0 | V126: 0 | W126: 0 | X126: 0
A127: x | D127: =IFERROR(INDEX('Podświetlanie modułów'!D:D,MATCH(H127,'Podświetlanie modułów'!B:B,0)),"") ->  | E127: Mapa interaktyw | G127: =IFERROR(MATCH(H127,Brief!AA:AA,0),"") ->  | H127: Mapa interaktywna z autorskimi kolorami Google Mapy (API) | J127: 0.4 | K127: =J127*$K$2+(V2*(J127*$K$2)) -> 52.8 | N127: 2 | O127: 360 | P127: =IFERROR(INDEX(Brief!J:J,G127),0) -> 0 | R127: 0 | T127: 0 | U127: 0 | V127: 0 | W127: 0 | X127: 0
D128: =IFERROR(INDEX('Podświetlanie modułów'!D:D,MATCH(H128,'Podświetlanie modułów'!B:B,0)),"") ->  | E128: Mapa graficzna | G128: =IFERROR(MATCH(H128,Brief!AA:AA,0),"") ->  | H128: Mapa graficzna (sytuacjna) | I128: od | J128: 2 | K128: =J128*$K$2+(V2*(J128*$K$2)) -> 264 | N128: 0.5 | O128: 90 | P128: =IFERROR(INDEX(Brief!J:J,G128),0) -> 0 | R128: 0 | T128: 0 | U128: 0 | V128: 0 | W128: 0 | X128: 0
D129: =IFERROR(INDEX('Podświetlanie modułów'!D:D,MATCH(H129,'Podświetlanie modułów'!B:B,0)),"") ->  | E129: Mapa graficzna | G129: =IFERROR(MATCH(H129,Brief!AA:AA,0),"") ->  | H129: Mapa graficzna (sytuacyjna) + interaktywność | I129: od | K129: =J129*$K$2+(V2*(J129*$K$2)) -> 0 | N129: 1 | O129: 180 | P129: =IFERROR(INDEX(Brief!J:J,G129),0) -> 0 | R129: 0 | T129: 0 | U129: =S129*T129 -> 0 | V129: 0 | W129: 0 | X129: =P129*N129 -> 0
A130: x | D130: =IFERROR(INDEX('Podświetlanie modułów'!D:D,MATCH(H130,'Podświetlanie modułów'!B:B,0)),"") ->  | E130: Wyszukiwarka po | G130: =IFERROR(MATCH(H130,Brief!AA:AA,0),"") ->  | H130: Wyszukiwarka podstawowa z wynikami tekstowymi | J130: 1 | K130: =J130*$K$2+(V2*(J130*$K$2)) -> 132 | N130: 2 | O130: 360 | P130: =IFERROR(INDEX(Brief!J:J,G130),0) -> 0 | Q130: x | R130: 0 | T130: 0 | U130: =S130*T130 -> 0 | V130: 0 | W130: =P130*L130 -> 0 | X130: =P130*N130 -> 0 | Y130: https://studiokreacja.pl/?s=google | AB130: WP
A131: x | C131: x | D131: =IFERROR(INDEX('Podświetlanie modułów'!D:D,MATCH(H131,'Podświetlanie modułów'!B:B,0)),"") ->  | E131: Wyszukiwarka po | G131: =IFERROR(MATCH(H131,Brief!AA:AA,0),"") -> 193 | H131: Wyszukiwarka podstawowa z obrazkami | J131: 1 | K131: =J131*$K$2+(V2*(J131*$K$2)) -> 132 | N131: 3 | O131: 540 | P131: =IFERROR(INDEX(Brief!J:J,G131),0) -> 0 | Q131: x | R131: 0 | T131: 0 | U131: 0 | V131: 0 | W131: 0 | X131: 0 | Y131: https://pandrwal.pl/?s=olejek | Z131: https://safetech.net.pl/?s=detektor | AB131: WP
A132: x | D132: =IFERROR(INDEX('Podświetlanie modułów'!D:D,MATCH(H132,'Podświetlanie modułów'!B:B,0)),"") ->  | E132: Wyszukiwarka z | G132: =IFERROR(MATCH(H132,Brief!AA:AA,0),"") ->  | H132: Wyszukiwarka z wynikami dynamicznymi | I132: od | J132: 1 | K132: =J132*$K$2+(V2*(J132*$K$2)) -> 132 | N132: 4 | O132: 720 | P132: =IFERROR(INDEX(Brief!J:J,G132),0) -> 0 | R132: 0 | T132: 0 | U132: 0 | V132: 0 | W132: 0 | X132: 0 | Y132: https://colson.pl/ | Z132: http://www.stomil-poznan.pl/ | AA132: https://cmt-advisory.pl/ | AB132: WP własny skrypt
A133: x | D133: =IFERROR(INDEX('Podświetlanie modułów'!D:D,MATCH(H133,'Podświetlanie modułów'!B:B,0)),"") -> 0 | E133: Formularz konta | G133: =IFERROR(MATCH(H133,Brief!AA:AA,0),"") -> 194 | H133: Formularz kontaktowy (5 pól) | J133: 0.5 | K133: =J133*$K$2+(V2*(J133*$K$2)) -> 66 | N133: 1 | O133: 180 | P133: =IFERROR(INDEX(Brief!J:J,G133),0) -> 0 | Q133: x | R133: =ROUNDUP(P133*(K133+O133)*(1+$R$2),-1) -> 0 | T133: 0 | U133: 0 | V133: 0 | W133: 0 | X133: 0 | Y133: https://biznes.leszno.pl/kontakt/ | AB133: CF7
D134: =IFERROR(INDEX('Podświetlanie modułów'!D:D,MATCH(H134,'Podświetlanie modułów'!B:B,0)),"") ->  | E134: Formularz konta | G134: =IFERROR(MATCH(H134,Brief!AA:AA,0),"") -> 195 | H134: Formularz kontaktowy (10 pól) | J134: 0.6 | K134: =J134*$K$2+(V2*(J134*$K$2)) -> 79.2 | N134: 1.5 | O134: 270 | P134: =IFERROR(INDEX(Brief!J:J,G134),0) -> 0 | R134: 0 | T134: 0 | U134: 0 | V134: 0 | W134: 0 | X134: 0 | Y134: http://cambio.com.pl/#kontakt | AB134: CF7
D135: =IFERROR(INDEX('Podświetlanie modułów'!D:D,MATCH(H135,'Podświetlanie modułów'!B:B,0)),"") ->  | E135: Formularz konta | G135: =IFERROR(MATCH(H135,Brief!AA:AA,0),"") -> 196 | H135: Formularz kontaktowy (15 pól) | J135: 0.7 | K135: =J135*$K$2+(V2*(J135*$K$2)) -> 92.4 | N135: 2 | O135: 360 | P135: =IFERROR(INDEX(Brief!J:J,G135),0) -> 0 | R135: 0 | T135: 0 | U135: 0 | V135: 0 | W135: 0 | X135: 0 | AB135: CF7
D136: =IFERROR(INDEX('Podświetlanie modułów'!D:D,MATCH(H136,'Podświetlanie modułów'!B:B,0)),"") ->  | E136: Formularz z zał | G136: =IFERROR(MATCH(H136,Brief!AA:AA,0),"") -> 197 | H136: Formularz z załącznikami (5-15 pól) | I136: od | J136: 0.8 | K136: =J136*$K$2+(V2*(J136*$K$2)) -> 105.6 | N136: 2 | O136: 360 | P136: =IFERROR(INDEX(Brief!J:J,G136),0) -> 0 | R136: 0 | T136: =P96 -> 0 | U136: 0 | V136: 0 | W136: 0 | X136: 0 | Y136: http://mojapolisaonline.pl/ | AB136: CF7
A137: x | B137: x | D137: =IFERROR(INDEX('Podświetlanie modułów'!D:D,MATCH(H137,'Podświetlanie modułów'!B:B,0)),"") ->  | E137: Logotypy - rota | G137: =IFERROR(MATCH(H137,Brief!AA:AA,0),"") -> 198 | H137: Logotypy - rotator (do 10 szt) | J137: 2 | K137: =J137*$K$2+(V2*(J137*$K$2)) -> 264 | L137: 0.5 | M137: =L137*$M$2+($W$2*(L137*$M$2)) -> 66 | N137: 1 | O137: 180 | P137: =IFERROR(INDEX(Brief!J:J,G137),0) -> 0 | R137: =ROUNDUP(P137*(K137+M137+O137)*(1+$R$2),-1) -> 0 | T137: =P97 -> 0 | U137: 0 | V137: 0 | W137: 0 | X137: 0
D138: =IFERROR(INDEX('Podświetlanie modułów'!D:D,MATCH(H138,'Podświetlanie modułów'!B:B,0)),"") ->  | E138: Dodatkowy moduł | G138: =IFERROR(MATCH(H138,Brief!AA:AA,0),"") -> 199 | H138: ="Dodatkowy moduł "&(COUNTIF($E$4:E137,"Dodatkowy moduł")+1) -> Dodatkowy moduł 20 | K138: =J138*$K$2+(V2*(J138*$K$2)) -> 0 | O138: 0 | P138: =IFERROR(INDEX(Brief!J:J,G138),0) -> 0 | R138: 0 | T138: 0 | U138: 0 | V138: 0 | W138: 0 | X138: 0
D139: =IFERROR(INDEX('Podświetlanie modułów'!D:D,MATCH(H139,'Podświetlanie modułów'!B:B,0)),"") ->  | E139: Dodatkowy moduł | G139: =IFERROR(MATCH(H139,Brief!AA:AA,0),"") -> 200 | H139: ="Dodatkowy moduł "&(COUNTIF($E$4:E138,"Dodatkowy moduł")+1) -> Dodatkowy moduł 21 | K139: =J139*$K$2+(V2*(J139*$K$2)) -> 0 | O139: 0 | P139: =IFERROR(INDEX(Brief!J:J,G139),0) -> 0 | R139: 0 | T139: 0 | U139: 0 | V139: 0 | W139: 0 | X139: 0
D140: =IFERROR(INDEX('Podświetlanie modułów'!D:D,MATCH(H140,'Podświetlanie modułów'!B:B,0)),"") ->  | E140: Dodatkowy moduł | G140: =IFERROR(MATCH(H140,Brief!AA:AA,0),"") -> 201 | H140: ="Dodatkowy moduł "&(COUNTIF($E$4:E139,"Dodatkowy moduł")+1) -> Dodatkowy moduł 22 | K140: =J140*$K$2+(V2*(J140*$K$2)) -> 0 | O140: 0 | P140: =IFERROR(INDEX(Brief!J:J,G140),0) -> 0 | R140: 0 | T140: 0 | U140: 0 | V140: 0 | W140: 0 | X140: 0
D141: =IFERROR(INDEX('Podświetlanie modułów'!D:D,MATCH(H141,'Podświetlanie modułów'!B:B,0)),"") ->  | E141: Dodatkowy moduł | G141: =IFERROR(MATCH(H141,Brief!AA:AA,0),"") -> 202 | H141: ="Dodatkowy moduł "&(COUNTIF($E$4:E140,"Dodatkowy moduł")+1) -> Dodatkowy moduł 23 | K141: =J141*$K$2+(V2*(J141*$K$2)) -> 0 | O141: 0 | P141: =IFERROR(INDEX(Brief!J:J,G141),0) -> 0 | R141: 0 | T141: 0 | U141: 0 | V141: 0 | W141: 0 | X141: 0
D142: =IFERROR(INDEX('Podświetlanie modułów'!D:D,MATCH(H142,'Podświetlanie modułów'!B:B,0)),"") ->  | E142: Pliki do pobran | G142: =IFERROR(MATCH(H142,Brief!AA:AA,0),"") ->  | H142: Pliki do pobrania
D143: =IFERROR(INDEX('Podświetlanie modułów'!D:D,MATCH(H143,'Podświetlanie modułów'!B:B,0)),"") ->  | E143: Dostęp do tajny | G143: =IFERROR(MATCH(H143,Brief!AA:AA,0),"") -> 204 | H143: Dostęp do tajnych treści | J143: 0.2 | K143: =J143*$K$2+(V2*(J143*$K$2)) -> 26.4 | N143: 0.5 | O143: 90 | P143: =IFERROR(INDEX(Brief!J:J,G143),0) -> 0 | R143: 0 | T143: =P143 -> 0 | U143: =S143*T143 -> 0 | V143: =P143*J143 -> 0 | W143: 0 | X143: =P143*N143 -> 0 | Y143: http://krol-bhp.pl/panel-klienta-e-szkolenia/ | AB143: WP, Page Restrict
A144: x | D144: =IFERROR(INDEX('Podświetlanie modułów'!D:D,MATCH(H144,'Podświetlanie modułów'!B:B,0)),"") ->  | E144: Załączniki i pl | G144: =IFERROR(MATCH(H144,Brief!AA:AA,0),"") -> 205 | H144: Załączniki i pliki do pobrania (w treści) | J144: 0.1 | K144: =J144*$K$2+(V2*(J144*$K$2)) -> 13.2 | N144: 0 | O144: 0 | P144: =IFERROR(INDEX(Brief!J:J,G144),0) -> 0 | Q144: x | R144: 0 | T144: =P144 -> 0 | U144: =S144*T144 -> 0 | V144: =P144*J144 -> 0 | W144: 0 | X144: =P144*N144 -> 0 | Y144: https://biznes.leszno.pl/do-pobrania/ | AB144: WP
D145: =IFERROR(INDEX('Podświetlanie modułów'!D:D,MATCH(H145,'Podświetlanie modułów'!B:B,0)),"") -> 0 | E145: Załączniki i pl | G145: =IFERROR(MATCH(H145,Brief!AA:AA,0),"") -> 206 | H145: Załączniki i pliki do pobrania (osobny moduł) | J145: 1 | K145: =J145*$K$2+(V2*(J145*$K$2)) -> 132 | N145: 1 | O145: 180 | P145: =IFERROR(INDEX(Brief!J:J,G145),0) -> 0 | R145: 0 | T145: 0 | U145: =S145*T145 -> 0 | V145: =P145*J145 -> 0 | W145: 0 | X145: =P145*N145 -> 0 | AB145: ACF
D146: =IFERROR(INDEX('Podświetlanie modułów'!D:D,MATCH(H146,'Podświetlanie modułów'!B:B,0)),"") ->  | E146: Dodatkowy moduł | G146: =IFERROR(MATCH(H146,Brief!AA:AA,0),"") -> 207 | H146: ="Dodatkowy moduł "&(COUNTIF($E$4:E145,"Dodatkowy moduł")+1) -> Dodatkowy moduł 24 | K146: =J146*$K$2+(V2*(J146*$K$2)) -> 0 | O146: 0 | P146: =IFERROR(INDEX(Brief!J:J,G146),0) -> 0 | R146: 0 | T146: 0 | U146: =S146*T146 -> 0 | V146: =P146*J146 -> 0 | W146: 0 | X146: =P146*N146 -> 0
D147: =IFERROR(INDEX('Podświetlanie modułów'!D:D,MATCH(H147,'Podświetlanie modułów'!B:B,0)),"") ->  | E147: Dodatkowy moduł | G147: =IFERROR(MATCH(H147,Brief!AA:AA,0),"") -> 208 | H147: ="Dodatkowy moduł "&(COUNTIF($E$4:E146,"Dodatkowy moduł")+1) -> Dodatkowy moduł 25 | K147: =J147*$K$2+(V2*(J147*$K$2)) -> 0 | O147: 0 | P147: =IFERROR(INDEX(Brief!J:J,G147),0) -> 0 | R147: 0 | T147: 0 | U147: 0 | V147: =P147*J147 -> 0 | W147: 0 | X147: 0
D148: =IFERROR(INDEX('Podświetlanie modułów'!D:D,MATCH(H148,'Podświetlanie modułów'!B:B,0)),"") ->  | E148: Marketing | G148: =IFERROR(MATCH(H148,Brief!AA:AA,0),"") ->  | H148: Marketing
D149: =IFERROR(INDEX('Podświetlanie modułów'!D:D,MATCH(H149,'Podświetlanie modułów'!B:B,0)),"") ->  | E149: Box Facebooka n | G149: =IFERROR(MATCH(H149,Brief!AA:AA,0),"") -> 210 | H149: Box Facebooka na stronie | J149: 0.3 | K149: =J149*$K$2+(V2*(J149*$K$2)) -> 39.6 | N149: 0.3 | O149: 54 | P149: =IFERROR(INDEX(Brief!J:J,G149),0) -> 0 | R149: 0 | T149: =P149 -> 0 | U149: =S149*T149 -> 0 | V149: =P149*J149 -> 0 | W149: 0 | X149: =P149*N149 -> 0 | Y149: https://madebykarlik.pl/ | AB149: WP własny skrypt
D150: =IFERROR(INDEX('Podświetlanie modułów'!D:D,MATCH(H150,'Podświetlanie modułów'!B:B,0)),"") ->  | E150: Box Facebooka p | G150: =IFERROR(MATCH(H150,Brief!AA:AA,0),"") -> 211 | H150: Box Facebooka przyklejony do przeglądarki | J150: 0.3 | K150: =J150*$K$2+(V2*(J150*$K$2)) -> 39.6 | N150: 1 | O150: 180 | P150: =IFERROR(INDEX(Brief!J:J,G150),0) -> 0 | R150: 0 | T150: 0 | U150: 0 | V150: 0 | W150: 0 | X150: 0 | AB150: WP własny skrypt
A151: x | D151: =IFERROR(INDEX('Podświetlanie modułów'!D:D,MATCH(H151,'Podświetlanie modułów'!B:B,0)),"") ->  | E151: Linki do Twoich | G151: =IFERROR(MATCH(H151,Brief!AA:AA,0),"") -> 212 | H151: Linki do Twoich social media | J151: 0.4 | K151: =J151*$K$2+(V2*(J151*$K$2)) -> 52.8 | N151: 0.5 | O151: 90 | P151: =IFERROR(INDEX(Brief!J:J,G151),0) -> 0 | Q151: x | R151: 0 | T151: 0 | U151: 0 | V151: 0 | W151: 0 | X151: 0 | AB151: WP
D152: =IFERROR(INDEX('Podświetlanie modułów'!D:D,MATCH(H152,'Podświetlanie modułów'!B:B,0)),"") ->  | E152: Przyciski: Lubi | G152: =IFERROR(MATCH(H152,Brief!AA:AA,0),"") -> 213 | H152: Przyciski: Lubię to, Udostępnij, Tweetnij | J152: 0.2 | K152: =J152*$K$2+(V2*(J152*$K$2)) -> 26.4 | N152: 1 | O152: 180 | P152: =IFERROR(INDEX(Brief!J:J,G152),0) -> 0 | R152: 0 | T152: 0 | U152: 0 | V152: 0 | W152: 0 | X152: 0 | AB152: Really Simple Share
A153: x | D153: =IFERROR(INDEX('Podświetlanie modułów'!D:D,MATCH(H153,'Podświetlanie modułów'!B:B,0)),"") ->  | E153: Newsletter (int | G153: =IFERROR(MATCH(H153,Brief!AA:AA,0),"") -> 214 | H153: Newsletter (integracja formularza) | J153: 1 | K153: =J153*$K$2+(V2*(J153*$K$2)) -> 132 | N153: 2 | O153: 360 | P153: =IFERROR(INDEX(Brief!J:J,G153),0) -> 0 | R153: 0 | T153: 0 | U153: 0 | V153: 0 | W153: 0 | X153: 0 | Y153: https://biznes.leszno.pl/ | AB153: GetResponse, Freshmail, Mailchimp
A154: x | D154: =IFERROR(INDEX('Podświetlanie modułów'!D:D,MATCH(H154,'Podświetlanie modułów'!B:B,0)),"") ->  | E154: PopUp (promocja | G154: =IFERROR(MATCH(H154,Brief!AA:AA,0),"") -> 215 | H154: PopUp (promocja lub informacja) | J154: 1 | K154: =J154*$K$2+(V2*(J154*$K$2)) -> 132 | L154: 2 | M154: =L154*$M$2+($W$2*(L154*$M$2)) -> 264 | N154: 0 | O154: 0 | P154: =IFERROR(INDEX(Brief!J:J,G154),0) -> 0 | R154: =ROUNDUP(P154*(K154+M154+O154)*(1+$R$2),-1) -> 0 | T154: 0 | U154: 0 | V154: 0 | W154: 0 | X154: 0 | Y154: https://jack-strong.com/ | AB154: Elementor
A155: x | D155: =IFERROR(INDEX('Podświetlanie modułów'!D:D,MATCH(H155,'Podświetlanie modułów'!B:B,0)),"") ->  | E155: PopUp (newslett | G155: =IFERROR(MATCH(H155,Brief!AA:AA,0),"") -> 216 | H155: PopUp (newsletter) | J155: 1 | K155: =J155*$K$2+(V2*(J155*$K$2)) -> 132 | N155: 2.5 | O155: 450 | P155: =IFERROR(INDEX(Brief!J:J,G155),0) -> 0 | R155: 0 | T155: 0 | U155: 0 | V155: 0 | W155: 0 | X155: 0 | Y155: https://jack-strong.com/ | AB155: Elementor
B156: x | D156: =IFERROR(INDEX('Podświetlanie modułów'!D:D,MATCH(H156,'Podświetlanie modułów'!B:B,0)),"") ->  | E156: Utworzenie kole | G156: =IFERROR(MATCH(H156,Brief!AA:AA,0),"") -> 217 | H156: Utworzenie kolejny - popup (grafika + treść) | J156: 1 | K156: =J156*$K$2+(V2*(J156*$K$2)) -> 132 | L156: 2 | M156: =L156*$M$2+($W$2*(L156*$M$2)) -> 264 | N156: 0 | O156: 0 | P156: =IFERROR(INDEX(Brief!J:J,G156),0) -> 0 | R156: =ROUNDUP(P156*(K156+K156+O156)*(1+$R$2),-1) -> 0 | T156: 0 | U156: 0 | V156: 0 | W156: 0 | X156: 0
D157: =IFERROR(INDEX('Podświetlanie modułów'!D:D,MATCH(H157,'Podświetlanie modułów'!B:B,0)),"") ->  | E157: Dodatkowy moduł | G157: =IFERROR(MATCH(H157,Brief!AA:AA,0),"") -> 218 | H157: ="Dodatkowy moduł "&(COUNTIF($E$4:E156,"Dodatkowy moduł")+1) -> Dodatkowy moduł 26 | K157: =J157*$K$2+(V2*(J157*$K$2)) -> 0 | O157: 0 | P157: =IFERROR(INDEX(Brief!J:J,G157),0) -> 0 | R157: 0 | T157: 0 | U157: 0 | V157: 0 | W157: 0 | X157: 0
D158: =IFERROR(INDEX('Podświetlanie modułów'!D:D,MATCH(H158,'Podświetlanie modułów'!B:B,0)),"") ->  | E158: Dodatkowy moduł | G158: =IFERROR(MATCH(H158,Brief!AA:AA,0),"") -> 219 | H158: ="Dodatkowy moduł "&(COUNTIF($E$4:E157,"Dodatkowy moduł")+1) -> Dodatkowy moduł 27 | K158: =J158*$K$2+(V2*(J158*$K$2)) -> 0 | O158: 0 | P158: =IFERROR(INDEX(Brief!J:J,G158),0) -> 0 | R158: 0 | T158: 0 | U158: 0 | V158: 0 | W158: 0 | X158: 0
D159: =IFERROR(INDEX('Podświetlanie modułów'!D:D,MATCH(H159,'Podświetlanie modułów'!B:B,0)),"") ->  | E159: Dodatkowy moduł | G159: =IFERROR(MATCH(H159,Brief!AA:AA,0),"") -> 220 | H159: ="Dodatkowy moduł "&(COUNTIF($E$4:E158,"Dodatkowy moduł")+1) -> Dodatkowy moduł 28 | K159: =J159*$K$2+(V2*(J159*$K$2)) -> 0 | O159: 0 | P159: =IFERROR(INDEX(Brief!J:J,G159),0) -> 0 | R159: 0 | T159: 0 | U159: 0 | V159: 0 | W159: 0 | X159: 0
D160: =IFERROR(INDEX('Podświetlanie modułów'!D:D,MATCH(H160,'Podświetlanie modułów'!B:B,0)),"") ->  | E160: Optymalizacja p | G160: =IFERROR(MATCH(H160,Brief!AA:AA,0),"") ->  | H160: Optymalizacja pod Google
A161: x | D161: =IFERROR(INDEX('Podświetlanie modułów'!D:D,MATCH(H161,'Podświetlanie modułów'!B:B,0)),"") ->  | E161: SEO ustawienia | G161: =IFERROR(MATCH(H161,Brief!AA:AA,0),"") -> 222 | H161: SEO ustawienia (Yoast SEO) | K161: =J161*$K$2+(V2*(J161*$K$2)) -> 0 | L161: 0 | M161: =L161*$M$2+($W$2*(L161*$M$2)) -> 0 | N161: 0 | O161: 0 | P161: =IFERROR(INDEX(Brief!J:J,G161),0) -> 0 | Q161: x | R161: =ROUNDUP(P161*(M161+O161)*(1+$R$2),-1) -> 0 | T161: =P161 -> 0 | U161: =S161*T161 -> 0 | V161: =P161*J161 -> 0 | W161: 0 | X161: =P161*N161 -> 0 | AB161: SEO Yoast
A162: x | B162: x | D162: =IFERROR(INDEX('Podświetlanie modułów'!D:D,MATCH(H162,'Podświetlanie modułów'!B:B,0)),"") ->  | E162: =LEFT(H162,15) -> Optymalizacja S | G162: =IFERROR(MATCH(H162,Brief!AA:AA,0),"") -> 223 | H162: Optymalizacja SEO - Tylko Strona główna | K162: =J162*$K$2+(V2*(J162*$K$2)) -> 0 | L162: 1 | M162: =L162*$M$2+($W$2*(L162*$M$2)) -> 132 | N162: 0 | O162: 0 | P162: =IFERROR(INDEX(Brief!J:J,G162),0) -> 0 | Q162: x | R162: 0 | T162: =P162 -> 0 | U162: 0 | V162: 0 | W162: 0 | X162: 0
A163: x | B163: x | D163: =IFERROR(INDEX('Podświetlanie modułów'!D:D,MATCH(H163,'Podświetlanie modułów'!B:B,0)),"") ->  | E163: Optymalizacja S | G163: =IFERROR(MATCH(H163,Brief!AA:AA,0),"") -> 224 | H163: Optymalizacja SEO - Meta dane + H1 (1 strona) | K163: =J163*$K$2+(V2*(J163*$K$2)) -> 0 | L163: 0.5 | M163: 66 | N163: 0 | O163: 0 | P163: =IFERROR(INDEX(Brief!J:J,G163),0) -> 0 | R163: 0 | T163: 0 | U163: 0 | V163: 0 | W163: 0 | X163: 0
A164: x | B164: x | D164: =IFERROR(INDEX('Podświetlanie modułów'!D:D,MATCH(H164,'Podświetlanie modułów'!B:B,0)),"") ->  | E164: Optymalizacja S | G164: =IFERROR(MATCH(H164,Brief!AA:AA,0),"") -> 225 | H164: Optymalizacja SEO - Kompleksowa (1 strona) | K164: =J164*$K$2+(V2*(J164*$K$2)) -> 0 | L164: 1 | M164: 132 | N164: 0.2 | O164: 36 | P164: =IFERROR(INDEX(Brief!J:J,G164),0) -> 0 | R164: 0 | T164: 0 | U164: 0 | V164: 0 | W164: 0 | X164: 0
D165: =IFERROR(INDEX('Podświetlanie modułów'!D:D,MATCH(H165,'Podświetlanie modułów'!B:B,0)),"") ->  | E165: Przekierowania | G165: =IFERROR(MATCH(H165,Brief!AA:AA,0),"") -> 226 | H165: Przekierowania | K165: =J165*$K$2+(V2*(J165*$K$2)) -> 0 | L165: 0.3 | M165: 39.6 | N165: 0 | O165: 0 | P165: =IFERROR(INDEX(Brief!J:J,G165),0) -> 0 | R165: 0 | T165: 0 | U165: 0 | V165: 0 | W165: 0 | X165: 0 | AB165: Redirection
B166: x | D166: =IFERROR(INDEX('Podświetlanie modułów'!D:D,MATCH(H166,'Podświetlanie modułów'!B:B,0)),"") ->  | E166: Konfiguracja pr | G166: =IFERROR(MATCH(H166,Brief!AA:AA,0),"") -> 227 | H166: Konfiguracja przekierowania (1 szt) | K166: =J166*$K$2+(V2*(J166*$K$2)) -> 0 | L166: 0.1 | M166: 13.2 | N166: 0 | O166: 0 | P166: =IFERROR(INDEX(Brief!J:J,G166),0) -> 0 | R166: 0 | T166: 0 | U166: 0 | V166: 0 | W166: 0 | X166: 0
B167: x | D167: =IFERROR(INDEX('Podświetlanie modułów'!D:D,MATCH(H167,'Podświetlanie modułów'!B:B,0)),"") ->  | E167: Konfiguracja Ce | G167: =IFERROR(MATCH(H167,Brief!AA:AA,0),"") -> 228 | H167: Konfiguracja Certyfikat SSL na hostingu serwerkreacja | K167: =J167*$K$2+(V2*(J167*$K$2)) -> 0 | L167: 0.5 | M167: 66 | N167: 0 | O167: 0 | P167: =IFERROR(INDEX(Brief!J:J,G167),0) -> 0 | Q167: x | R167: 0 | T167: 0 | U167: 0 | V167: 0 | W167: 0 | X167: 0
B168: x | D168: =IFERROR(INDEX('Podświetlanie modułów'!D:D,MATCH(H168,'Podświetlanie modułów'!B:B,0)),"") ->  | E168: Konfiguracja Ce | G168: =IFERROR(MATCH(H168,Brief!AA:AA,0),"") -> 229 | H168: Konfiguracja Certyfikat SSL na hostingu zewnętrznym | I168: od | K168: =J168*$K$2+(V2*(J168*$K$2)) -> 0 | L168: 0 | M168: 0 | N168: 2 | O168: 360 | P168: =IFERROR(INDEX(Brief!J:J,G168),0) -> 0 | R168: 0 | T168: 0 | U168: 0 | V168: 0 | W168: 0 | X168: 0
B169: x | D169: =IFERROR(INDEX('Podświetlanie modułów'!D:D,MATCH(H169,'Podświetlanie modułów'!B:B,0)),"") ->  | E169: Optymalizacja s | G169: =IFERROR(MATCH(H169,Brief!AA:AA,0),"") -> 230 | H169: Optymalizacja szybkości | I169: od | K169: =J169*$K$2+(V2*(J169*$K$2)) -> 0 | L169: 0 | M169: 0 | N169: 5 | O169: 900 | P169: =IFERROR(INDEX(Brief!J:J,G169),0) -> 0 | R169: 0 | T169: 0 | U169: 0 | V169: 0 | W169: 0 | X169: 0
A170: x | D170: =IFERROR(INDEX('Podświetlanie modułów'!D:D,MATCH(H170,'Podświetlanie modułów'!B:B,0)),"") ->  | E170: Statystyki Goog | G170: =IFERROR(MATCH(H170,Brief!AA:AA,0),"") -> 231 | H170: Statystyki Google Analytics | K170: =J170*$K$2+(V2*(J170*$K$2)) -> 0 | L170: 0.5 | M170: 66 | N170: 0 | O170: 0 | P170: =IFERROR(INDEX(Brief!J:J,G170),0) -> 0 | Q170: x | R170: 0 | T170: 0 | U170: 0 | V170: 0 | W170: 0 | X170: 0
D171: =IFERROR(INDEX('Podświetlanie modułów'!D:D,MATCH(H171,'Podświetlanie modułów'!B:B,0)),"") ->  | E171: Statystyki Goog | G171: =IFERROR(MATCH(H171,Brief!AA:AA,0),"") -> 232 | H171: Statystyki Google Analytics - strony zewnętrzne | K171: =J171*$K$2+(V2*(J171*$K$2)) -> 0 | L171: 1 | M171: 132 | N171: 0 | O171: 0 | P171: =IFERROR(INDEX(Brief!J:J,G171),0) -> 0 | R171: 0 | T171: 0 | U171: 0 | V171: 0 | W171: 0 | X171: 0 | AB171: Google Analytics
D172: =IFERROR(INDEX('Podświetlanie modułów'!D:D,MATCH(H172,'Podświetlanie modułów'!B:B,0)),"") ->  | E172: Dodatkowy moduł | G172: =IFERROR(MATCH(H172,Brief!AA:AA,0),"") -> 233 | H172: ="Dodatkowy moduł "&(COUNTIF($E$4:E171,"Dodatkowy moduł")+1) -> Dodatkowy moduł 29 | K172: =J172*$K$2+(V2*(J172*$K$2)) -> 0 | M172: 0 | O172: 0 | P172: =IFERROR(INDEX(Brief!J:J,G172),0) -> 0 | R172: 0 | T172: 0 | U172: 0 | V172: 0 | W172: 0 | X172: 0
D173: =IFERROR(INDEX('Podświetlanie modułów'!D:D,MATCH(H173,'Podświetlanie modułów'!B:B,0)),"") ->  | E173: Dodatkowy moduł | G173: =IFERROR(MATCH(H173,Brief!AA:AA,0),"") -> 234 | H173: ="Dodatkowy moduł "&(COUNTIF($E$4:E172,"Dodatkowy moduł")+1) -> Dodatkowy moduł 30 | K173: =J173*$K$2+(V2*(J173*$K$2)) -> 0 | M173: 0 | O173: 0 | P173: =IFERROR(INDEX(Brief!J:J,G173),0) -> 0 | R173: 0 | T173: 0 | U173: 0 | V173: 0 | W173: 0 | X173: 0
D174: =IFERROR(INDEX('Podświetlanie modułów'!D:D,MATCH(H174,'Podświetlanie modułów'!B:B,0)),"") ->  | E174: Dodatkowy moduł | G174: =IFERROR(MATCH(H174,Brief!AA:AA,0),"") -> 235 | H174: ="Dodatkowy moduł "&(COUNTIF($E$4:E173,"Dodatkowy moduł")+1) -> Dodatkowy moduł 31 | K174: =J174*$K$2+(V2*(J174*$K$2)) -> 0 | M174: 0 | O174: 0 | P174: =IFERROR(INDEX(Brief!J:J,G174),0) -> 0 | R174: 0 | T174: 0 | U174: 0 | V174: 0 | W174: 0 | X174: 0
D175: =IFERROR(INDEX('Podświetlanie modułów'!D:D,MATCH(H175,'Podświetlanie modułów'!B:B,0)),"") ->  | E175: Dodatkowy moduł | F175: =IF($F$2="x",R175,"") ->  | G175: =IFERROR(MATCH(H175,Brief!AA:AA,0),"") -> 236 | H175: ="Dodatkowy moduł "&(COUNTIF($E$4:E174,"Dodatkowy moduł")+1) -> Dodatkowy moduł 32 | K175: =J175*$K$2+(V2*(J175*$K$2)) -> 0 | M175: 0 | O175: 0 | P175: =IFERROR(INDEX(Brief!J:J,G175),0) -> 0 | R175: 0 | T175: 0 | U175: 0 | V175: 0 | W175: 0 | X175: 0
D176: =IFERROR(INDEX('Podświetlanie modułów'!D:D,MATCH(H176,'Podświetlanie modułów'!B:B,0)),"") ->  | E176: Dodatkowy moduł | G176: =IFERROR(MATCH(H176,Brief!AA:AA,0),"") -> 237 | H176: ="Dodatkowy moduł "&(COUNTIF($E$4:E175,"Dodatkowy moduł")+1) -> Dodatkowy moduł 33 | K176: =J176*$K$2+(V2*(J176*$K$2)) -> 0 | M176: 0 | O176: =$O$2*N176+($X$2*(N176*$O$2)) -> 0 | P176: =IFERROR(INDEX(Brief!J:J,G176),0) -> 0 | R176: 0 | T176: 0 | U176: 0 | V176: 0 | W176: 0 | X176: 0
D177: =IFERROR(INDEX('Podświetlanie modułów'!D:D,MATCH(H177,'Podświetlanie modułów'!B:B,0)),"") ->  | E177: Dodatkowe moduł | G177: =IFERROR(MATCH(H177,Brief!AA:AA,0),"") ->  | H177: Dodatkowe moduły
A178: x | D178: =IFERROR(INDEX('Podświetlanie modułów'!D:D,MATCH(H178,'Podświetlanie modułów'!B:B,0)),"") ->  | E178: Polityka prywat | G178: =IFERROR(MATCH(H178,Brief!AA:AA,0),"") -> 239 | H178: Polityka prywatności i Cookies + komunikat - domyślny | J178: 0 | K178: =J178*$K$2+(V2*(J178*$K$2)) -> 0 | N178: 0.4 | O178: 72 | P178: =IFERROR(INDEX(Brief!J:J,G178),0) -> 0 | Q178: x | R178: 0 | T178: =P178 -> 0 | U178: =S178*T178 -> 0 | V178: =P178*J178 -> 0 | W178: 0 | X178: =P178*N178 -> 0 | Y178: https://biznes.leszno.pl/polityka-prywatnosci-i-cookies/ | AB178: Complianz GDPR
D179: =IFERROR(INDEX('Podświetlanie modułów'!D:D,MATCH(H179,'Podświetlanie modułów'!B:B,0)),"") ->  | E179: Polityka prywat | G179: =IFERROR(MATCH(H179,Brief!AA:AA,0),"") -> 240 | H179: Polityka prywatności i Cookies + komunikat - personalizowany | J179: 0.5 | K179: =J179*$K$2+(V2*(J179*$K$2)) -> 66 | N179: 1 | O179: 180 | P179: =IFERROR(INDEX(Brief!J:J,G179),0) -> 0 | R179: 0 | T179: =P179 -> 0 | U179: =S179*T179 -> 0 | V179: 0 | W179: 0 | X179: =P179*N179 -> 0 | Y179: https://biznes.leszno.pl/polityka-prywatnosci-i-cookies/ | AB179: Complianz GDPR
A180: x | D180: =IFERROR(INDEX('Podświetlanie modułów'!D:D,MATCH(H180,'Podświetlanie modułów'!B:B,0)),"") ->  | E180: Favicon - domyś | G180: =IFERROR(MATCH(H180,Brief!AA:AA,0),"") -> 241 | H180: Favicon - domyślny (sygnet lub litera z nazwy) | J180: 0.2 | K180: =J180*$K$2+(V2*(J180*$K$2)) -> 26.4 | L180: 0.2 | M180: =L180*$M$2+($W$2*(L180*$M$2)) -> 26.4 | N180: 0 | O180: 0 | P180: =IFERROR(INDEX(Brief!J:J,G180),0) -> 0 | Q180: x | R180: =ROUNDUP(P180*(K180+M180+O180)*(1+$R$2),-1) -> 0 | T180: 0 | U180: =S180*T180 -> 0 | V180: 0 | W180: 0 | X180: =P180*N180 -> 0
D181: =IFERROR(INDEX('Podświetlanie modułów'!D:D,MATCH(H181,'Podświetlanie modułów'!B:B,0)),"") ->  | E181: Favicon - perso | G181: =IFERROR(MATCH(H181,Brief!AA:AA,0),"") -> 242 | H181: Favicon - personalizowany | I181: od | J181: 1 | K181: =J181*$K$2+(V2*(J181*$K$2)) -> 132 | L181: 0.2 | M181: 26.4 | N181: 0 | O181: 0 | P181: =IFERROR(INDEX(Brief!J:J,G181),0) -> 0 | R181: =ROUNDUP(P181*(K181+M181+O181)*(1+$R$2),-1) -> 0 | T181: 0 | U181: =S181*T181 -> 0 | V181: 0 | W181: 0 | X181: =P181*N181 -> 0
D182: =IFERROR(INDEX('Podświetlanie modułów'!D:D,MATCH(H182,'Podświetlanie modułów'!B:B,0)),"") ->  | E182: Dodatkowy moduł | G182: =IFERROR(MATCH(H182,Brief!AA:AA,0),"") -> 243 | H182: ="Dodatkowy moduł "&(COUNTIF($E$4:E181,"Dodatkowy moduł")+1) -> Dodatkowy moduł 34 | K182: =J182*$K$2+(V2*(J182*$K$2)) -> 0 | M182: 0 | O182: 0 | P182: =IFERROR(INDEX(Brief!J:J,G182),0) -> 0 | R182: 0 | T182: 0 | U182: =S182*T182 -> 0 | V182: 0 | W182: 0 | X182: =P182*N182 -> 0
D183: =IFERROR(INDEX('Podświetlanie modułów'!D:D,MATCH(H183,'Podświetlanie modułów'!B:B,0)),"") ->  | E183: Dodatkowy moduł | G183: =IFERROR(MATCH(H183,Brief!AA:AA,0),"") -> 244 | H183: ="Dodatkowy moduł "&(COUNTIF($E$4:E182,"Dodatkowy moduł")+1) -> Dodatkowy moduł 35 | K183: =J183*$K$2+(V2*(J183*$K$2)) -> 0 | M183: 0 | O183: 0 | P183: =IFERROR(INDEX(Brief!J:J,G183),0) -> 0 | R183: 0 | T183: 0 | U183: 0 | V183: 0 | W183: 0 | X183: 0
D184: =IFERROR(INDEX('Podświetlanie modułów'!D:D,MATCH(H184,'Podświetlanie modułów'!B:B,0)),"") ->  | E184: Dodatkowy moduł | G184: =IFERROR(MATCH(H184,Brief!AA:AA,0),"") -> 245 | H184: ="Dodatkowy moduł "&(COUNTIF($E$4:E183,"Dodatkowy moduł")+1) -> Dodatkowy moduł 36 | K184: =J184*$K$2+(V2*(J184*$K$2)) -> 0 | M184: 0 | O184: 0 | P184: =IFERROR(INDEX(Brief!J:J,G184),0) -> 0 | R184: 0 | T184: 0 | U184: 0 | V184: 0 | W184: 0 | X184: 0
D185: =IFERROR(INDEX('Podświetlanie modułów'!D:D,MATCH(H185,'Podświetlanie modułów'!B:B,0)),"") ->  | E185: Dodatkowy moduł | G185: =IFERROR(MATCH(H185,Brief!AA:AA,0),"") -> 246 | H185: ="Dodatkowy moduł "&(COUNTIF($E$4:E184,"Dodatkowy moduł")+1) -> Dodatkowy moduł 37 | K185: =J185*$K$2+(V2*(J185*$K$2)) -> 0 | M185: 0 | O185: 0 | P185: =IFERROR(INDEX(Brief!J:J,G185),0) -> 0 | R185: 0 | T185: 0 | U185: 0 | V185: 0 | W185: 0 | X185: 0
D186: =IFERROR(INDEX('Podświetlanie modułów'!D:D,MATCH(H186,'Podświetlanie modułów'!B:B,0)),"") ->  | E186: Dodatkowy moduł | G186: =IFERROR(MATCH(H186,Brief!AA:AA,0),"") -> 247 | H186: ="Dodatkowy moduł "&(COUNTIF($E$4:E185,"Dodatkowy moduł")+1) -> Dodatkowy moduł 38 | K186: =J186*$K$2+(V2*(J186*$K$2)) -> 0 | M186: 0 | O186: 0 | P186: =IFERROR(INDEX(Brief!J:J,G186),0) -> 0 | R186: 0 | T186: 0 | U186: 0 | V186: 0 | W186: 0 | X186: 0
D187: =IFERROR(INDEX('Podświetlanie modułów'!D:D,MATCH(H187,'Podświetlanie modułów'!B:B,0)),"") ->  | E187: Moduły Zaawanso | G187: =IFERROR(MATCH(H187,Brief!AA:AA,0),"") ->  | H187: Moduły Zaawansowane - dla Serwisu Korporacyjnego
D188: =IFERROR(INDEX('Podświetlanie modułów'!D:D,MATCH(H188,'Podświetlanie modułów'!B:B,0)),"") ->  | E188: Oferta firmy | G188: =IFERROR(MATCH(H188,Brief!AA:AA,0),"") ->  | H188: Oferta firmy
A189: x | D189: =IFERROR(INDEX('Podświetlanie modułów'!D:D,MATCH(H189,'Podświetlanie modułów'!B:B,0)),"") -> 0 | E189: Katalog produkt | G189: =IFERROR(MATCH(H189,Brief!AA:AA,0),"") -> 250 | H189: Katalog produktów (bez opcji sklepu) producenci, serie, linie, typy, grupy, kategorie itp. | I189: od | J189: 8 | K189: =J189*$K$2+(V2*(J189*$K$2)) -> 1056 | N189: 14 | O189: 2520 | P189: =IFERROR(INDEX(Brief!J:J,G189),0) -> 0 | R189: 0 | T189: =P189 -> 0 | U189: =S189*T189 -> 0 | V189: =P189*J189 -> 0 | W189: 0 | X189: =P189*N189 -> 0 | Y189: https://danex.pl/produkty/ | AB189: Post type + ACF
B190: x | D190: =IFERROR(INDEX('Podświetlanie modułów'!D:D,MATCH(H190,'Podświetlanie modułów'!B:B,0)),"") ->  | E190: Dodanie 1 produ | G190: =IFERROR(MATCH(H190,Brief!AA:AA,0),"") -> 251 | H190: Dodanie 1 produktu | I190: od | K190: =J190*$K$2+(V2*(J190*$K$2)) -> 0 | L190: 0.5 | M190: =L190*$M$2+($W$2*(L190*$M$2)) -> 66 | N190: 0 | O190: 0 | P190: =IFERROR(INDEX(Brief!J:J,G190),0) -> 0 | R190: =ROUNDUP(P190*(M190+O190)*(1+$R$2),-1) -> 0 | T190: =P190 -> 0 | U190: 0 | V190: 0 | W190: 0 | X190: 0
D191: =IFERROR(INDEX('Podświetlanie modułów'!D:D,MATCH(H191,'Podświetlanie modułów'!B:B,0)),"") ->  | E191: Filtry | G191: =IFERROR(MATCH(H191,Brief!AA:AA,0),"") -> 252 | H191: Filtry | I191: od | J191: 2 | K191: =J191*$K$2+(V2*(J191*$K$2)) -> 264 | N191: 8 | O191: 1440 | P191: =IFERROR(INDEX(Brief!J:J,G191),0) -> 0 | R191: 0 | T191: 0 | U191: 0 | V191: 0 | W191: 0 | X191: 0 | Y191: http://10.demooo.pl/kategoria-produktu/znicze/, http://www.stomil-poznan.pl/oferta-opony/opony/opony-wielkogabarytowe-do-maszyn-gorniczych-oraz-maszyn-do-prac-ziemnych/ | AB191: wlasne
D192: =IFERROR(INDEX('Podświetlanie modułów'!D:D,MATCH(H192,'Podświetlanie modułów'!B:B,0)),"") ->  | E192: Sortowanie | G192: =IFERROR(MATCH(H192,Brief!AA:AA,0),"") -> 253 | H192: Sortowanie | I192: od | J192: 2 | K192: =J192*$K$2+(V2*(J192*$K$2)) -> 264 | N192: 2 | O192: 360 | P192: =IFERROR(INDEX(Brief!J:J,G192),0) -> 0 | R192: 0 | T192: 0 | U192: 0 | V192: 0 | W192: 0 | X192: 0
D193: =IFERROR(INDEX('Podświetlanie modułów'!D:D,MATCH(H193,'Podświetlanie modułów'!B:B,0)),"") ->  | E193: Porównywarka pr | G193: =IFERROR(MATCH(H193,Brief!AA:AA,0),"") -> 254 | H193: Porównywarka produktów | I193: od | J193: 4 | K193: =J193*$K$2+(V2*(J193*$K$2)) -> 528 | N193: 10 | O193: 1800 | P193: =IFERROR(INDEX(Brief!J:J,G193),0) -> 0 | R193: 0 | T193: 0 | U193: 0 | V193: 0 | W193: 0 | X193: 0 | Y193: http://www.stomil-poznan.pl/en/products-comparer/ | AB193: wlasne
A194: x | D194: =IFERROR(INDEX('Podświetlanie modułów'!D:D,MATCH(H194,'Podświetlanie modułów'!B:B,0)),"") -> 0 | E194: Cenniki zaawans | G194: =IFERROR(MATCH(H194,Brief!AA:AA,0),"") -> 255 | H194: Cenniki zaawansowane + popup z opisem | J194: 4 | K194: =J194*$K$2+(V2*(J194*$K$2)) -> 528 | N194: 0 | O194: 0 | P194: =IFERROR(INDEX(Brief!J:J,G194),0) -> 0 | R194: 0 | T194: 0 | U194: 0 | V194: 0 | W194: =P194*L194 -> 0 | X194: 0 | AB194: ACF
D195: =IFERROR(INDEX('Podświetlanie modułów'!D:D,MATCH(H195,'Podświetlanie modułów'!B:B,0)),"") ->  | E195: Menu dla gastro | G195: =IFERROR(MATCH(H195,Brief!AA:AA,0),"") -> 256 | H195: Menu dla gastronomii | J195: 4 | K195: =J195*$K$2+(V2*(J195*$K$2)) -> 528 | N195: 0 | O195: 0 | P195: =IFERROR(INDEX(Brief!J:J,G195),0) -> 0 | R195: 0 | T195: 0 | U195: 0 | V195: 0 | W195: 0 | X195: 0 | AB195: ACF
D196: =IFERROR(INDEX('Podświetlanie modułów'!D:D,MATCH(H196,'Podświetlanie modułów'!B:B,0)),"") ->  | E196: Kalkulator zapy | G196: =IFERROR(MATCH(H196,Brief!AA:AA,0),"") -> 257 | H196: Kalkulator zapytania | I196: od | J196: 3 | K196: =J196*$K$2+(V2*(J196*$K$2)) -> 396 | N196: 5 | O196: 900 | P196: =IFERROR(INDEX(Brief!J:J,G196),0) -> 0 | R196: 0 | T196: 0 | U196: 0 | V196: 0 | W196: 0 | X196: 0 | Y196: https://ratomedica.pl/dla-klienta/ | AB196: wlasne
D197: =IFERROR(INDEX('Podświetlanie modułów'!D:D,MATCH(H197,'Podświetlanie modułów'!B:B,0)),"") ->  | E197: Rozbudowane for | G197: =IFERROR(MATCH(H197,Brief!AA:AA,0),"") -> 258 | H197: Rozbudowane formularze zapytania | I197: od | J197: 3 | K197: =J197*$K$2+(V2*(J197*$K$2)) -> 396 | N197: 5 | O197: 900 | P197: =IFERROR(INDEX(Brief!J:J,G197),0) -> 0 | R197: =ROUNDUP(P197*(K197+O197)*(1+$R$2),-1) -> 0 | T197: 0 | U197: 0 | V197: 0 | W197: 0 | X197: 0 | Y197: http://pv-partner.pl | AB197: wlasne
D198: =IFERROR(INDEX('Podświetlanie modułów'!D:D,MATCH(H198,'Podświetlanie modułów'!B:B,0)),"") ->  | E198: Konfigurator of | G198: =IFERROR(MATCH(H198,Brief!AA:AA,0),"") -> 259 | H198: Konfigurator ofert PDF z panelem zarządzania | I198: od | J198: 20 | K198: =J198*$K$2+(V2*(J198*$K$2)) -> 2640 | N198: 100 | O198: 18000 | P198: =IFERROR(INDEX(Brief!J:J,G198),0) -> 0 | R198: 0 | T198: 0 | U198: 0 | V198: 0 | W198: 0 | X198: 0 | Y198: colson.pl/oferty/ | AB198: własne + php poza WP
D199: =IFERROR(INDEX('Podświetlanie modułów'!D:D,MATCH(H199,'Podświetlanie modułów'!B:B,0)),"") ->  | E199: Dodatkowy moduł | G199: =IFERROR(MATCH(H199,Brief!AA:AA,0),"") -> 260 | H199: ="Dodatkowy moduł "&(COUNTIF($E$4:E198,"Dodatkowy moduł")+1) -> Dodatkowy moduł 39 | K199: =J199*$K$2+(V2*(J199*$K$2)) -> 0 | O199: 0 | P199: =IFERROR(INDEX(Brief!J:J,G199),0) -> 0 | R199: 0 | T199: 0 | U199: 0 | V199: 0 | W199: 0 | X199: 0
D200: =IFERROR(INDEX('Podświetlanie modułów'!D:D,MATCH(H200,'Podświetlanie modułów'!B:B,0)),"") ->  | E200: Dodatkowy moduł | G200: =IFERROR(MATCH(H200,Brief!AA:AA,0),"") -> 261 | H200: ="Dodatkowy moduł "&(COUNTIF($E$4:E199,"Dodatkowy moduł")+1) -> Dodatkowy moduł 40 | K200: =J200*$K$2+(V2*(J200*$K$2)) -> 0 | O200: 0 | P200: =IFERROR(INDEX(Brief!J:J,G200),0) -> 0 | R200: 0 | T200: 0 | U200: 0 | V200: 0 | W200: 0 | X200: 0
... 268 more rows

Sheet Podświetlanie modułów (hidden)
B2: Komórka do poświetlenie w zakładce kalkulacja | C2: Powiązana podstrona z briefu | D2: Wartość
B3: Linia czasu (historia) | C3: Historia | D3: =IFERROR(INDEX(Brief!$M$15:$M$49,MATCH(C3,Brief!$G$15:$G$44,0))*1,"") -> 0 | F3: =B3 -> Linia czasu (historia) | G3: =SUMIF(B:B,F3,D:D) -> 0 | H3: =IF(G3>0,1,0) -> 0 | J3: Uwaga: nazwa komórki w zakładce kalkuklacja i nazwa powiązanej podstrony z briefu musi być dokładnie taka sama jak opowiadające komórki w zakładkach kalkulacja i brief -> sugeruję opcję kopiuj + wklej lub podlinkowanie odpowiednich komórek za pośrednictwem = i odpowiedniej komórki niż ręczne wpisywanie
B4: =Kalkulacja!H9 -> Fotomontaż ze zdjęć 1 szt | C4: =Brief!G35 -> Galeria | D4: =IFERROR(INDEX(Brief!$M$15:$M$49,MATCH(C4,Brief!$G$15:$G$44,0))*1,"") -> 0 | F4: =B4 -> Fotomontaż ze zdjęć 1 szt | G4: =SUMIF(B:B,F4,D:D) -> 0 | H4: =IF(G4>0,1,0) -> 0
B5: Lista pracowników + strona o pracowniku | C5: Zespół | D5: =IFERROR(INDEX(Brief!$M$15:$M$49,MATCH(C5,Brief!$G$15:$G$44,0))*1,"") -> 0 | F5: Lista pracowników + strona o pracowniku | G5: 0 | H5: 0
B6: Wpisy | C6: Aktualności | D6: =IFERROR(INDEX(Brief!$M$15:$M$49,MATCH(C6,Brief!$G$15:$G$44,0))*1,"") -> 0 | F6: Wpisy | G6: 0 | H6: 0
B7: Wpisy | C7: Blog | D7: =IFERROR(INDEX(Brief!$M$15:$M$49,MATCH(C7,Brief!$G$15:$G$44,0))*1,"") -> 0 | F7: Wpisy | G7: 0 | H7: 0
B8: =Kalkulacja!H217 -> Oferty pracy + formularz aplikacji | C8: =Brief!G43 -> Kariera / Oferty pracy | D8: =IFERROR(INDEX(Brief!$M$15:$M$49,MATCH(C8,Brief!$G$15:$G$44,0))*1,"") -> 0 | F8: Oferty pracy + formularz aplikacji | G8: 0 | H8: 0
B9: Dedykowane wpisy np. poradnik, przepisy kulinarne, case study, realizacje, projekty, portfolio itp. | C9: Porady | D9: =IFERROR(INDEX(Brief!$M$15:$M$49,MATCH(C9,Brief!$G$15:$G$44,0))*1,"") -> 0 | F9: Dedykowane wpisy np. poradnik, przepisy kulinarne, case study, realizacje, projekty, portfolio itp. | G9: 0 | H9: 0
B10: Dedykowane wpisy np. poradnik, przepisy kulinarne, case study, realizacje, projekty, portfolio itp. | C10: Przepisy | D10: =IFERROR(INDEX(Brief!$M$15:$M$49,MATCH(C10,Brief!$G$15:$G$44,0))*1,"") -> 0 | F10: Dedykowane wpisy np. poradnik, przepisy kulinarne, case study, realizacje, projekty, portfolio itp. | G10: 0 | H10: 0
B11: Wpisy | C11: Akademia | D11: =IFERROR(INDEX(Brief!$M$15:$M$49,MATCH(C11,Brief!$G$15:$G$44,0))*1,"") -> 0 | F11: Wpisy | G11: 0 | H11: 0
B12: Wpisy | C12: Publikacje | D12: =IFERROR(INDEX(Brief!$M$15:$M$49,MATCH(C12,Brief!$G$15:$G$44,0))*1,"") -> 0 | F12: Wpisy | G12: 0 | H12: 0
B13: Katalog produktów (bez opcji sklepu) producenci, serie, linie, typy, grupy, kategorie itp. | C13: Produkty | D13: =IFERROR(INDEX(Brief!$M$15:$M$49,MATCH(C13,Brief!$G$15:$G$44,0))*1,"") -> 0 | F13: Katalog produktów (bez opcji sklepu) producenci, serie, linie, typy, grupy, kategorie itp. | G13: 0 | H13: 0
B14: Cenniki zaawansowane + popup z opisem | C14: Cennik | D14: =IFERROR(INDEX(Brief!$M$15:$M$49,MATCH(C14,Brief!$G$15:$G$44,0))*1,"") -> 0 | F14: Cenniki zaawansowane + popup z opisem | G14: 0 | H14: 0
B15: Mapa lokalizacji sklepów / oddziałów / punktów | C15: Gdzie kupię | D15: =IFERROR(INDEX(Brief!$M$15:$M$49,MATCH(C15,Brief!$G$15:$G$44,0))*1,"") -> 0 | F15: Mapa lokalizacji sklepów / oddziałów / punktów | G15: 0 | H15: 0
B16: Galeria zdjęć (podstawowa w WordPress) | C16: Galeria | D16: =IFERROR(INDEX(Brief!$M$15:$M$49,MATCH(C16,Brief!$G$15:$G$44,0))*1,"") -> 0 | F16: Galeria zdjęć (podstawowa w WordPress) | G16: 0 | H16: 0
B17: Dedykowane wpisy np. poradnik, przepisy kulinarne, case study, realizacje, projekty, portfolio itp. | C17: Galeria | D17: =IFERROR(INDEX(Brief!$M$15:$M$49,MATCH(C17,Brief!$G$15:$G$44,0))*1,"") -> 0 | F17: Dedykowane wpisy np. poradnik, przepisy kulinarne, case study, realizacje, projekty, portfolio itp. | G17: 0 | H17: 0
B18: Katalog produktów (bez opcji sklepu) producenci, serie, linie, typy, grupy, kategorie itp. | C18: Realizacje | D18: =IFERROR(INDEX(Brief!$M$15:$M$49,MATCH(C18,Brief!$G$15:$G$44,0))*1,"") -> 0 | F18: Katalog produktów (bez opcji sklepu) producenci, serie, linie, typy, grupy, kategorie itp. | G18: 0 | H18: 0
B19: Moduł opinii | C19: Opinie / Referencje | D19: =IFERROR(INDEX(Brief!$M$15:$M$49,MATCH(C19,Brief!$G$15:$G$44,0))*1,"") -> 0 | F19: Moduł opinii | G19: 0 | H19: 0
B20: Załączniki i pliki do pobrania (osobny moduł) | C20: Do pobrania | D20: =IFERROR(INDEX(Brief!$M$15:$M$49,MATCH(C20,Brief!$G$15:$G$44,0))*1,"") -> 0 | F20: Załączniki i pliki do pobrania (osobny moduł) | G20: 0 | H20: 0
B21: Formularz kontaktowy (5 pól) | C21: Kontakt | D21: =IFERROR(INDEX(Brief!$M$15:$M$49,MATCH(C21,Brief!$G$15:$G$44,0))*1,"") -> 0 | F21: Formularz kontaktowy (5 pól) | G21: 0 | H21: 0
B22: Mapa prosta Google Mapy | C22: Kontakt | D22: =IFERROR(INDEX(Brief!$M$15:$M$49,MATCH(C22,Brief!$G$15:$G$44,0))*1,"") -> 0 | F22: Mapa prosta Google Mapy | G22: 0 | H22: 0
D23: =IFERROR(INDEX(Brief!$M$15:$M$49,MATCH(C23,Brief!$G$15:$G$44,0))*1,"") ->  | F23: 0 | G23: 0 | H23: 0
D24: =IFERROR(INDEX(Brief!$M$15:$M$49,MATCH(C24,Brief!$G$15:$G$44,0))*1,"") ->  | F24: 0 | G24: 0 | H24: 0
D25: =IFERROR(INDEX(Brief!$M$15:$M$49,MATCH(C25,Brief!$G$15:$G$44,0))*1,"") ->  | F25: 0 | G25: 0 | H25: 0
D26: =IFERROR(INDEX(Brief!$M$15:$M$49,MATCH(C26,Brief!$G$15:$G$44,0))*1,"") ->  | F26: 0 | G26: 0 | H26: 0
D27: =IFERROR(INDEX(Brief!$M$15:$M$49,MATCH(C27,Brief!$G$15:$G$44,0))*1,"") ->  | F27: 0 | G27: 0 | H27: 0
D28: =IFERROR(INDEX(Brief!$M$15:$M$49,MATCH(C28,Brief!$G$15:$G$44,0))*1,"") ->  | F28: 0 | G28: 0 | H28: 0
D29: =IFERROR(INDEX(Brief!$M$15:$M$49,MATCH(C29,Brief!$G$15:$G$44,0))*1,"") ->  | F29: 0 | G29: 0 | H29: 0
D30: =IFERROR(INDEX(Brief!$M$15:$M$49,MATCH(C30,Brief!$G$15:$G$44,0))*1,"") ->  | F30: 0 | G30: 0 | H30: 0
D31: =IFERROR(INDEX(Brief!$M$15:$M$49,MATCH(C31,Brief!$G$15:$G$44,0))*1,"") ->  | F31: 0 | G31: 0 | H31: 0
D32: =IFERROR(INDEX(Brief!$M$15:$M$49,MATCH(C32,Brief!$G$15:$G$44,0))*1,"") ->  | F32: 0 | G32: 0 | H32: 0
D33: =IFERROR(INDEX(Brief!$M$15:$M$49,MATCH(C33,Brief!$G$15:$G$44,0))*1,"") ->  | F33: 0 | G33: 0 | H33: 0
D34: =IFERROR(INDEX(Brief!$M$15:$M$49,MATCH(C34,Brief!$G$15:$G$44,0))*1,"") ->  | F34: 0 | G34: 0 | H34: 0
D35: =IFERROR(INDEX(Brief!$M$15:$M$49,MATCH(C35,Brief!$G$15:$G$44,0))*1,"") ->  | F35: 0 | G35: 0 | H35: 0
D36: =IFERROR(INDEX(Brief!$M$15:$M$49,MATCH(C36,Brief!$G$15:$G$44,0))*1,"") ->  | F36: 0 | G36: 0 | H36: 0
D37: =IFERROR(INDEX(Brief!$M$15:$M$49,MATCH(C37,Brief!$G$15:$G$44,0))*1,"") ->  | F37: 0 | G37: 0 | H37: 0
D38: =IFERROR(INDEX(Brief!$M$15:$M$49,MATCH(C38,Brief!$G$15:$G$44,0))*1,"") ->  | F38: 0 | G38: 0 | H38: 0
D39: =IFERROR(INDEX(Brief!$M$15:$M$49,MATCH(C39,Brief!$G$15:$G$44,0))*1,"") ->  | F39: 0 | G39: 0 | H39: 0
D40: =IFERROR(INDEX(Brief!$M$15:$M$49,MATCH(C40,Brief!$G$15:$G$44,0))*1,"") ->  | F40: 0 | G40: 0 | H40: 0
D41: =IFERROR(INDEX(Brief!$M$15:$M$49,MATCH(C41,Brief!$G$15:$G$44,0))*1,"") ->  | F41: 0 | G41: 0 | H41: 0
D42: =IFERROR(INDEX(Brief!$M$15:$M$49,MATCH(C42,Brief!$G$15:$G$44,0))*1,"") ->  | F42: 0 | G42: 0 | H42: 0
D43: =IFERROR(INDEX(Brief!$M$15:$M$49,MATCH(C43,Brief!$G$15:$G$44,0))*1,"") ->  | F43: 0 | G43: 0 | H43: 0
D44: =IFERROR(INDEX(Brief!$M$15:$M$49,MATCH(C44,Brief!$G$15:$G$44,0))*1,"") ->  | F44: 0 | G44: 0 | H44: 0
D45: =IFERROR(INDEX(Brief!$M$15:$M$49,MATCH(C45,Brief!$G$15:$G$44,0))*1,"") ->  | F45: 0 | G45: 0 | H45: 0
D46: =IFERROR(INDEX(Brief!$M$15:$M$49,MATCH(C46,Brief!$G$15:$G$44,0))*1,"") ->  | F46: 0 | G46: 0 | H46: 0
D47: =IFERROR(INDEX(Brief!$M$15:$M$49,MATCH(C47,Brief!$G$15:$G$44,0))*1,"") ->  | F47: 0 | G47: 0 | H47: 0
D48: =IFERROR(INDEX(Brief!$M$15:$M$49,MATCH(C48,Brief!$G$15:$G$44,0))*1,"") ->  | F48: 0 | G48: 0 | H48: 0
D49: =IFERROR(INDEX(Brief!$M$15:$M$49,MATCH(C49,Brief!$G$15:$G$44,0))*1,"") ->  | F49: 0 | G49: 0 | H49: 0
D50: =IFERROR(INDEX(Brief!$M$15:$M$49,MATCH(C50,Brief!$G$15:$G$44,0))*1,"") ->  | F50: 0 | G50: 0 | H50: 0
D51: =IFERROR(INDEX(Brief!$M$15:$M$49,MATCH(C51,Brief!$G$15:$G$44,0))*1,"") ->  | F51: 0 | G51: 0 | H51: 0
D52: =IFERROR(INDEX(Brief!$M$15:$M$49,MATCH(C52,Brief!$G$15:$G$44,0))*1,"") ->  | F52: 0 | G52: 0 | H52: 0
D53: =IFERROR(INDEX(Brief!$M$15:$M$49,MATCH(C53,Brief!$G$15:$G$44,0))*1,"") ->  | F53: 0 | G53: 0 | H53: 0
D54: =IFERROR(INDEX(Brief!$M$15:$M$49,MATCH(C54,Brief!$G$15:$G$44,0))*1,"") ->  | F54: 0 | G54: 0 | H54: 0
D55: =IFERROR(INDEX(Brief!$M$15:$M$49,MATCH(C55,Brief!$G$15:$G$44,0))*1,"") ->  | F55: 0 | G55: 0 | H55: 0
D56: =IFERROR(INDEX(Brief!$M$15:$M$49,MATCH(C56,Brief!$G$15:$G$44,0))*1,"") ->  | F56: 0 | G56: 0 | H56: 0
D57: =IFERROR(INDEX(Brief!$M$15:$M$49,MATCH(C57,Brief!$G$15:$G$44,0))*1,"") ->  | F57: 0 | G57: 0 | H57: 0
D58: =IFERROR(INDEX(Brief!$M$15:$M$49,MATCH(C58,Brief!$G$15:$G$44,0))*1,"") ->  | F58: 0 | G58: 0 | H58: 0
D59: =IFERROR(INDEX(Brief!$M$15:$M$49,MATCH(C59,Brief!$G$15:$G$44,0))*1,"") ->  | F59: 0 | G59: 0 | H59: 0
D60: =IFERROR(INDEX(Brief!$M$15:$M$49,MATCH(C60,Brief!$G$15:$G$44,0))*1,"") ->  | F60: 0 | G60: 0 | H60: 0
D61: =IFERROR(INDEX(Brief!$M$15:$M$49,MATCH(C61,Brief!$G$15:$G$44,0))*1,"") ->  | F61: 0 | G61: 0 | H61: 0
D62: =IFERROR(INDEX(Brief!$M$15:$M$49,MATCH(C62,Brief!$G$15:$G$44,0))*1,"") ->  | F62: 0 | G62: 0 | H62: 0
D63: =IFERROR(INDEX(Brief!$M$15:$M$49,MATCH(C63,Brief!$G$15:$G$44,0))*1,"") ->  | F63: 0 | G63: 0 | H63: 0
D64: =IFERROR(INDEX(Brief!$M$15:$M$49,MATCH(C64,Brief!$G$15:$G$44,0))*1,"") ->  | F64: 0 | G64: 0 | H64: 0
D65: =IFERROR(INDEX(Brief!$M$15:$M$49,MATCH(C65,Brief!$G$15:$G$44,0))*1,"") ->  | F65: 0 | G65: 0 | H65: 0
D66: =IFERROR(INDEX(Brief!$M$15:$M$49,MATCH(C66,Brief!$G$15:$G$44,0))*1,"") ->  | F66: 0 | G66: 0 | H66: 0
D67: =IFERROR(INDEX(Brief!$M$15:$M$49,MATCH(C67,Brief!$G$15:$G$44,0))*1,"") ->  | F67: 0 | G67: 0 | H67: 0
D68: =IFERROR(INDEX(Brief!$M$15:$M$49,MATCH(C68,Brief!$G$15:$G$44,0))*1,"") ->  | F68: =B68 -> 0 | G68: =SUMIF(B:B,F68,D:D) -> 0 | H68: =IF(G68>0,1,0) -> 0
D69: =IFERROR(INDEX(Brief!$M$15:$M$49,MATCH(C69,Brief!$G$15:$G$44,0))*1,"") ->  | F69: 0 | G69: 0 | H69: 0
D70: =IFERROR(INDEX(Brief!$M$15:$M$49,MATCH(C70,Brief!$G$15:$G$44,0))*1,"") ->  | F70: 0 | G70: 0 | H70: 0
D71: =IFERROR(INDEX(Brief!$M$15:$M$49,MATCH(C71,Brief!$G$15:$G$44,0))*1,"") ->  | F71: 0 | G71: 0 | H71: 0
D72: =IFERROR(INDEX(Brief!$M$15:$M$49,MATCH(C72,Brief!$G$15:$G$44,0))*1,"") ->  | F72: 0 | G72: 0 | H72: 0
D73: =IFERROR(INDEX(Brief!$M$15:$M$49,MATCH(C73,Brief!$G$15:$G$44,0))*1,"") ->  | F73: 0 | G73: 0 | H73: 0
D74: =IFERROR(INDEX(Brief!$M$15:$M$49,MATCH(C74,Brief!$G$15:$G$44,0))*1,"") ->  | F74: 0 | G74: 0 | H74: 0
D75: =IFERROR(INDEX(Brief!$M$15:$M$49,MATCH(C75,Brief!$G$15:$G$44,0))*1,"") ->  | F75: 0 | G75: 0 | H75: 0
D76: =IFERROR(INDEX(Brief!$M$15:$M$49,MATCH(C76,Brief!$G$15:$G$44,0))*1,"") ->  | F76: 0 | G76: 0 | H76: 0
D77: =IFERROR(INDEX(Brief!$M$15:$M$49,MATCH(C77,Brief!$G$15:$G$44,0))*1,"") ->  | F77: 0 | G77: 0 | H77: 0
D78: =IFERROR(INDEX(Brief!$M$15:$M$49,MATCH(C78,Brief!$G$15:$G$44,0))*1,"") ->  | F78: 0 | G78: 0 | H78: 0
D79: =IFERROR(INDEX(Brief!$M$15:$M$49,MATCH(C79,Brief!$G$15:$G$44,0))*1,"") ->  | F79: 0 | G79: 0 | H79: 0
D80: =IFERROR(INDEX(Brief!$M$15:$M$49,MATCH(C80,Brief!$G$15:$G$44,0))*1,"") ->  | F80: 0 | G80: 0 | H80: 0
D81: =IFERROR(INDEX(Brief!$M$15:$M$49,MATCH(C81,Brief!$G$15:$G$44,0))*1,"") ->  | F81: 0 | G81: 0 | H81: 0
D82: =IFERROR(INDEX(Brief!$M$15:$M$49,MATCH(C82,Brief!$G$15:$G$44,0))*1,"") ->  | F82: 0 | G82: 0 | H82: 0
D83: =IFERROR(INDEX(Brief!$M$15:$M$49,MATCH(C83,Brief!$G$15:$G$44,0))*1,"") ->  | F83: 0 | G83: 0 | H83: 0
D84: =IFERROR(INDEX(Brief!$M$15:$M$49,MATCH(C84,Brief!$G$15:$G$44,0))*1,"") ->  | F84: 0 | G84: 0 | H84: 0
D85: =IFERROR(INDEX(Brief!$M$15:$M$49,MATCH(C85,Brief!$G$15:$G$44,0))*1,"") ->  | F85: 0 | G85: 0 | H85: 0
D86: =IFERROR(INDEX(Brief!$M$15:$M$49,MATCH(C86,Brief!$G$15:$G$44,0))*1,"") ->  | F86: 0 | G86: 0 | H86: 0
D87: =IFERROR(INDEX(Brief!$M$15:$M$49,MATCH(C87,Brief!$G$15:$G$44,0))*1,"") ->  | F87: 0 | G87: 0 | H87: 0
D88: =IFERROR(INDEX(Brief!$M$15:$M$49,MATCH(C88,Brief!$G$15:$G$44,0))*1,"") ->  | F88: 0 | G88: 0 | H88: 0
D89: =IFERROR(INDEX(Brief!$M$15:$M$49,MATCH(C89,Brief!$G$15:$G$44,0))*1,"") ->  | F89: 0 | G89: 0 | H89: 0
D90: =IFERROR(INDEX(Brief!$M$15:$M$49,MATCH(C90,Brief!$G$15:$G$44,0))*1,"") ->  | F90: 0 | G90: 0 | H90: 0
D91: =IFERROR(INDEX(Brief!$M$15:$M$49,MATCH(C91,Brief!$G$15:$G$44,0))*1,"") ->  | F91: 0 | G91: 0 | H91: 0
D92: =IFERROR(INDEX(Brief!$M$15:$M$49,MATCH(C92,Brief!$G$15:$G$44,0))*1,"") ->  | F92: 0 | G92: 0 | H92: 0
D93: =IFERROR(INDEX(Brief!$M$15:$M$49,MATCH(C93,Brief!$G$15:$G$44,0))*1,"") ->  | F93: 0 | G93: 0 | H93: 0
D94: =IFERROR(INDEX(Brief!$M$15:$M$49,MATCH(C94,Brief!$G$15:$G$44,0))*1,"") ->  | F94: 0 | G94: 0 | H94: 0
D95: =IFERROR(INDEX(Brief!$M$15:$M$49,MATCH(C95,Brief!$G$15:$G$44,0))*1,"") ->  | F95: 0 | G95: 0 | H95: 0
D96: =IFERROR(INDEX(Brief!$M$15:$M$49,MATCH(C96,Brief!$G$15:$G$44,0))*1,"") ->  | F96: 0 | G96: 0 | H96: 0
D97: =IFERROR(INDEX(Brief!$M$15:$M$49,MATCH(C97,Brief!$G$15:$G$44,0))*1,"") ->  | F97: 0 | G97: 0 | H97: 0
D98: =IFERROR(INDEX(Brief!$M$15:$M$49,MATCH(C98,Brief!$G$15:$G$44,0))*1,"") ->  | F98: 0 | G98: 0 | H98: 0
D99: =IFERROR(INDEX(Brief!$M$15:$M$49,MATCH(C99,Brief!$G$15:$G$44,0))*1,"") ->  | F99: 0 | G99: 0 | H99: 0
D100: =IFERROR(INDEX(Brief!$M$15:$M$49,MATCH(C100,Brief!$G$15:$G$44,0))*1,"") ->  | F100: 0 | G100: 0 | H100: 0
D101: =IFERROR(INDEX(Brief!$M$15:$M$49,MATCH(C101,Brief!$G$15:$G$44,0))*1,"") ->  | F101: 0 | G101: 0 | H101: 0
D102: =IFERROR(INDEX(Brief!$M$15:$M$49,MATCH(C102,Brief!$G$15:$G$44,0))*1,"") ->  | F102: 0 | G102: 0 | H102: 0
D103: =IFERROR(INDEX(Brief!$M$15:$M$49,MATCH(C103,Brief!$G$15:$G$44,0))*1,"") ->  | F103: 0 | G103: 0 | H103: 0
D104: =IFERROR(INDEX(Brief!$M$15:$M$49,MATCH(C104,Brief!$G$15:$G$44,0))*1,"") ->  | F104: 0 | G104: 0 | H104: 0
D105: =IFERROR(INDEX(Brief!$M$15:$M$49,MATCH(C105,Brief!$G$15:$G$44,0))*1,"") ->  | F105: 0 | G105: 0 | H105: 0
D106: =IFERROR(INDEX(Brief!$M$15:$M$49,MATCH(C106,Brief!$G$15:$G$44,0))*1,"") ->  | F106: 0 | G106: 0 | H106: 0
D107: =IFERROR(INDEX(Brief!$M$15:$M$49,MATCH(C107,Brief!$G$15:$G$44,0))*1,"") ->  | F107: 0 | G107: 0 | H107: 0
D108: =IFERROR(INDEX(Brief!$M$15:$M$49,MATCH(C108,Brief!$G$15:$G$44,0))*1,"") ->  | F108: 0 | G108: 0 | H108: 0
D109: =IFERROR(INDEX(Brief!$M$15:$M$49,MATCH(C109,Brief!$G$15:$G$44,0))*1,"") ->  | F109: 0 | G109: 0 | H109: 0
D110: =IFERROR(INDEX(Brief!$M$15:$M$49,MATCH(C110,Brief!$G$15:$G$44,0))*1,"") ->  | F110: 0 | G110: 0 | H110: 0
D111: =IFERROR(INDEX(Brief!$M$15:$M$49,MATCH(C111,Brief!$G$15:$G$44,0))*1,"") ->  | F111: 0 | G111: 0 | H111: 0
D112: =IFERROR(INDEX(Brief!$M$15:$M$49,MATCH(C112,Brief!$G$15:$G$44,0))*1,"") ->  | F112: 0 | G112: 0 | H112: 0
D113: =IFERROR(INDEX(Brief!$M$15:$M$49,MATCH(C113,Brief!$G$15:$G$44,0))*1,"") ->  | F113: 0 | G113: 0 | H113: 0
D114: =IFERROR(INDEX(Brief!$M$15:$M$49,MATCH(C114,Brief!$G$15:$G$44,0))*1,"") ->  | F114: 0 | G114: 0 | H114: 0
D115: =IFERROR(INDEX(Brief!$M$15:$M$49,MATCH(C115,Brief!$G$15:$G$44,0))*1,"") ->  | F115: 0 | G115: 0 | H115: 0
D116: =IFERROR(INDEX(Brief!$M$15:$M$49,MATCH(C116,Brief!$G$15:$G$44,0))*1,"") ->  | F116: 0 | G116: 0 | H116: 0
D117: =IFERROR(INDEX(Brief!$M$15:$M$49,MATCH(C117,Brief!$G$15:$G$44,0))*1,"") ->  | F117: 0 | G117: 0 | H117: 0
D118: =IFERROR(INDEX(Brief!$M$15:$M$49,MATCH(C118,Brief!$G$15:$G$44,0))*1,"") ->  | F118: 0 | G118: 0 | H118: 0
D119: =IFERROR(INDEX(Brief!$M$15:$M$49,MATCH(C119,Brief!$G$15:$G$44,0))*1,"") ->  | F119: 0 | G119: 0 | H119: 0
D120: =IFERROR(INDEX(Brief!$M$15:$M$49,MATCH(C120,Brief!$G$15:$G$44,0))*1,"") ->  | F120: 0 | G120: 0 | H120: 0
D121: =IFERROR(INDEX(Brief!$M$15:$M$49,MATCH(C121,Brief!$G$15:$G$44,0))*1,"") ->  | F121: 0 | G121: 0 | H121: 0
D122: =IFERROR(INDEX(Brief!$M$15:$M$49,MATCH(C122,Brief!$G$15:$G$44,0))*1,"") ->  | F122: 0 | G122: 0 | H122: 0
D123: =IFERROR(INDEX(Brief!$M$15:$M$49,MATCH(C123,Brief!$G$15:$G$44,0))*1,"") ->  | F123: 0 | G123: 0 | H123: 0
D124: =IFERROR(INDEX(Brief!$M$15:$M$49,MATCH(C124,Brief!$G$15:$G$44,0))*1,"") ->  | F124: 0 | G124: 0 | H124: 0
D125: =IFERROR(INDEX(Brief!$M$15:$M$49,MATCH(C125,Brief!$G$15:$G$44,0))*1,"") ->  | F125: 0 | G125: 0 | H125: 0
D126: =IFERROR(INDEX(Brief!$M$15:$M$49,MATCH(C126,Brief!$G$15:$G$44,0))*1,"") ->  | F126: 0 | G126: 0 | H126: 0
D127: =IFERROR(INDEX(Brief!$M$15:$M$49,MATCH(C127,Brief!$G$15:$G$44,0))*1,"") ->  | F127: 0 | G127: 0 | H127: 0
D128: =IFERROR(INDEX(Brief!$M$15:$M$49,MATCH(C128,Brief!$G$15:$G$44,0))*1,"") ->  | F128: 0 | G128: 0 | H128: 0
D129: =IFERROR(INDEX(Brief!$M$15:$M$49,MATCH(C129,Brief!$G$15:$G$44,0))*1,"") ->  | F129: 0 | G129: 0 | H129: 0
D130: =IFERROR(INDEX(Brief!$M$15:$M$49,MATCH(C130,Brief!$G$15:$G$44,0))*1,"") ->  | F130: 0 | G130: 0 | H130: 0
D131: =IFERROR(INDEX(Brief!$M$15:$M$49,MATCH(C131,Brief!$G$15:$G$44,0))*1,"") ->  | F131: 0 | G131: 0 | H131: 0
D132: =IFERROR(INDEX(Brief!$M$15:$M$49,MATCH(C132,Brief!$G$15:$G$44,0))*1,"") ->  | F132: =B132 -> 0 | G132: =SUMIF(B:B,F132,D:D) -> 0 | H132: =IF(G132>0,1,0) -> 0
D133: =IFERROR(INDEX(Brief!$M$15:$M$49,MATCH(C133,Brief!$G$15:$G$44,0))*1,"") ->  | F133: 0 | G133: 0 | H133: 0
D134: =IFERROR(INDEX(Brief!$M$15:$M$49,MATCH(C134,Brief!$G$15:$G$44,0))*1,"") ->  | F134: 0 | G134: 0 | H134: 0
D135: =IFERROR(INDEX(Brief!$M$15:$M$49,MATCH(C135,Brief!$G$15:$G$44,0))*1,"") ->  | F135: 0 | G135: 0 | H135: 0
D136: =IFERROR(INDEX(Brief!$M$15:$M$49,MATCH(C136,Brief!$G$15:$G$44,0))*1,"") ->  | F136: 0 | G136: 0 | H136: 0
D137: =IFERROR(INDEX(Brief!$M$15:$M$49,MATCH(C137,Brief!$G$15:$G$44,0))*1,"") ->  | F137: 0 | G137: 0 | H137: 0
D138: =IFERROR(INDEX(Brief!$M$15:$M$49,MATCH(C138,Brief!$G$15:$G$44,0))*1,"") ->  | F138: 0 | G138: 0 | H138: 0
D139: =IFERROR(INDEX(Brief!$M$15:$M$49,MATCH(C139,Brief!$G$15:$G$44,0))*1,"") ->  | F139: 0 | G139: 0 | H139: 0
D140: =IFERROR(INDEX(Brief!$M$15:$M$49,MATCH(C140,Brief!$G$15:$G$44,0))*1,"") ->  | F140: 0 | G140: 0 | H140: 0
D141: =IFERROR(INDEX(Brief!$M$15:$M$49,MATCH(C141,Brief!$G$15:$G$44,0))*1,"") ->  | F141: 0 | G141: 0 | H141: 0
D142: =IFERROR(INDEX(Brief!$M$15:$M$49,MATCH(C142,Brief!$G$15:$G$44,0))*1,"") ->  | F142: 0 | G142: 0 | H142: 0
D143: =IFERROR(INDEX(Brief!$M$15:$M$49,MATCH(C143,Brief!$G$15:$G$44,0))*1,"") ->  | F143: 0 | G143: 0 | H143: 0
D144: =IFERROR(INDEX(Brief!$M$15:$M$49,MATCH(C144,Brief!$G$15:$G$44,0))*1,"") ->  | F144: 0 | G144: 0 | H144: 0
D145: =IFERROR(INDEX(Brief!$M$15:$M$49,MATCH(C145,Brief!$G$15:$G$44,0))*1,"") ->  | F145: 0 | G145: 0 | H145: 0
D146: =IFERROR(INDEX(Brief!$M$15:$M$49,MATCH(C146,Brief!$G$15:$G$44,0))*1,"") ->  | F146: 0 | G146: 0 | H146: 0
D147: =IFERROR(INDEX(Brief!$M$15:$M$49,MATCH(C147,Brief!$G$15:$G$44,0))*1,"") ->  | F147: 0 | G147: 0 | H147: 0
D148: =IFERROR(INDEX(Brief!$M$15:$M$49,MATCH(C148,Brief!$G$15:$G$44,0))*1,"") ->  | F148: 0 | G148: 0 | H148: 0
D149: =IFERROR(INDEX(Brief!$M$15:$M$49,MATCH(C149,Brief!$G$15:$G$44,0))*1,"") ->  | F149: 0 | G149: 0 | H149: 0
D150: =IFERROR(INDEX(Brief!$M$15:$M$49,MATCH(C150,Brief!$G$15:$G$44,0))*1,"") ->  | F150: 0 | G150: 0 | H150: 0
D151: =IFERROR(INDEX(Brief!$M$15:$M$49,MATCH(C151,Brief!$G$15:$G$44,0))*1,"") ->  | F151: 0 | G151: 0 | H151: 0
D152: =IFERROR(INDEX(Brief!$M$15:$M$49,MATCH(C152,Brief!$G$15:$G$44,0))*1,"") ->  | F152: 0 | G152: 0 | H152: 0
D153: =IFERROR(INDEX(Brief!$M$15:$M$49,MATCH(C153,Brief!$G$15:$G$44,0))*1,"") ->  | F153: 0 | G153: 0 | H153: 0
D154: =IFERROR(INDEX(Brief!$M$15:$M$49,MATCH(C154,Brief!$G$15:$G$44,0))*1,"") ->  | F154: 0 | G154: 0 | H154: 0
D155: =IFERROR(INDEX(Brief!$M$15:$M$49,MATCH(C155,Brief!$G$15:$G$44,0))*1,"") ->  | F155: 0 | G155: 0 | H155: 0
D156: =IFERROR(INDEX(Brief!$M$15:$M$49,MATCH(C156,Brief!$G$15:$G$44,0))*1,"") ->  | F156: 0 | G156: 0 | H156: 0
D157: =IFERROR(INDEX(Brief!$M$15:$M$49,MATCH(C157,Brief!$G$15:$G$44,0))*1,"") ->  | F157: 0 | G157: 0 | H157: 0
D158: =IFERROR(INDEX(Brief!$M$15:$M$49,MATCH(C158,Brief!$G$15:$G$44,0))*1,"") ->  | F158: 0 | G158: 0 | H158: 0
D159: =IFERROR(INDEX(Brief!$M$15:$M$49,MATCH(C159,Brief!$G$15:$G$44,0))*1,"") ->  | F159: 0 | G159: 0 | H159: 0
D160: =IFERROR(INDEX(Brief!$M$15:$M$49,MATCH(C160,Brief!$G$15:$G$44,0))*1,"") ->  | F160: 0 | G160: 0 | H160: 0
D161: =IFERROR(INDEX(Brief!$M$15:$M$49,MATCH(C161,Brief!$G$15:$G$44,0))*1,"") ->  | F161: 0 | G161: 0 | H161: 0
D162: =IFERROR(INDEX(Brief!$M$15:$M$49,MATCH(C162,Brief!$G$15:$G$44,0))*1,"") ->  | F162: 0 | G162: 0 | H162: 0
D163: =IFERROR(INDEX(Brief!$M$15:$M$49,MATCH(C163,Brief!$G$15:$G$44,0))*1,"") ->  | F163: 0 | G163: 0 | H163: 0
D164: =IFERROR(INDEX(Brief!$M$15:$M$49,MATCH(C164,Brief!$G$15:$G$44,0))*1,"") ->  | F164: 0 | G164: 0 | H164: 0
D165: =IFERROR(INDEX(Brief!$M$15:$M$49,MATCH(C165,Brief!$G$15:$G$44,0))*1,"") ->  | F165: 0 | G165: 0 | H165: 0
D166: =IFERROR(INDEX(Brief!$M$15:$M$49,MATCH(C166,Brief!$G$15:$G$44,0))*1,"") ->  | F166: 0 | G166: 0 | H166: 0
D167: =IFERROR(INDEX(Brief!$M$15:$M$49,MATCH(C167,Brief!$G$15:$G$44,0))*1,"") ->  | F167: 0 | G167: 0 | H167: 0
D168: =IFERROR(INDEX(Brief!$M$15:$M$49,MATCH(C168,Brief!$G$15:$G$44,0))*1,"") ->  | F168: 0 | G168: 0 | H168: 0
D169: =IFERROR(INDEX(Brief!$M$15:$M$49,MATCH(C169,Brief!$G$15:$G$44,0))*1,"") ->  | F169: 0 | G169: 0 | H169: 0
D170: =IFERROR(INDEX(Brief!$M$15:$M$49,MATCH(C170,Brief!$G$15:$G$44,0))*1,"") ->  | F170: 0 | G170: 0 | H170: 0
D171: =IFERROR(INDEX(Brief!$M$15:$M$49,MATCH(C171,Brief!$G$15:$G$44,0))*1,"") ->  | F171: 0 | G171: 0 | H171: 0
D172: =IFERROR(INDEX(Brief!$M$15:$M$49,MATCH(C172,Brief!$G$15:$G$44,0))*1,"") ->  | F172: 0 | G172: 0 | H172: 0
D173: =IFERROR(INDEX(Brief!$M$15:$M$49,MATCH(C173,Brief!$G$15:$G$44,0))*1,"") ->  | F173: 0 | G173: 0 | H173: 0
D174: =IFERROR(INDEX(Brief!$M$15:$M$49,MATCH(C174,Brief!$G$15:$G$44,0))*1,"") ->  | F174: 0 | G174: 0 | H174: 0
D175: =IFERROR(INDEX(Brief!$M$15:$M$49,MATCH(C175,Brief!$G$15:$G$44,0))*1,"") ->  | F175: 0 | G175: 0 | H175: 0
D176: =IFERROR(INDEX(Brief!$M$15:$M$49,MATCH(C176,Brief!$G$15:$G$44,0))*1,"") ->  | F176: 0 | G176: 0 | H176: 0
D177: =IFERROR(INDEX(Brief!$M$15:$M$49,MATCH(C177,Brief!$G$15:$G$44,0))*1,"") ->  | F177: 0 | G177: 0 | H177: 0
D178: =IFERROR(INDEX(Brief!$M$15:$M$49,MATCH(C178,Brief!$G$15:$G$44,0))*1,"") ->  | F178: 0 | G178: 0 | H178: 0
D179: =IFERROR(INDEX(Brief!$M$15:$M$49,MATCH(C179,Brief!$G$15:$G$44,0))*1,"") ->  | F179: 0 | G179: 0 | H179: 0
D180: =IFERROR(INDEX(Brief!$M$15:$M$49,MATCH(C180,Brief!$G$15:$G$44,0))*1,"") ->  | F180: 0 | G180: 0 | H180: 0
D181: =IFERROR(INDEX(Brief!$M$15:$M$49,MATCH(C181,Brief!$G$15:$G$44,0))*1,"") ->  | F181: 0 | G181: 0 | H181: 0
D182: =IFERROR(INDEX(Brief!$M$15:$M$49,MATCH(C182,Brief!$G$15:$G$44,0))*1,"") ->  | F182: 0 | G182: 0 | H182: 0
D183: =IFERROR(INDEX(Brief!$M$15:$M$49,MATCH(C183,Brief!$G$15:$G$44,0))*1,"") ->  | F183: 0 | G183: 0 | H183: 0
D184: =IFERROR(INDEX(Brief!$M$15:$M$49,MATCH(C184,Brief!$G$15:$G$44,0))*1,"") ->  | F184: 0 | G184: 0 | H184: 0
D185: =IFERROR(INDEX(Brief!$M$15:$M$49,MATCH(C185,Brief!$G$15:$G$44,0))*1,"") ->  | F185: 0 | G185: 0 | H185: 0
D186: =IFERROR(INDEX(Brief!$M$15:$M$49,MATCH(C186,Brief!$G$15:$G$44,0))*1,"") ->  | F186: 0 | G186: 0 | H186: 0
D187: =IFERROR(INDEX(Brief!$M$15:$M$49,MATCH(C187,Brief!$G$15:$G$44,0))*1,"") ->  | F187: 0 | G187: 0 | H187: 0
D188: =IFERROR(INDEX(Brief!$M$15:$M$49,MATCH(C188,Brief!$G$15:$G$44,0))*1,"") ->  | F188: 0 | G188: 0 | H188: 0
D189: =IFERROR(INDEX(Brief!$M$15:$M$49,MATCH(C189,Brief!$G$15:$G$44,0))*1,"") ->  | F189: 0 | G189: 0 | H189: 0
D190: =IFERROR(INDEX(Brief!$M$15:$M$49,MATCH(C190,Brief!$G$15:$G$44,0))*1,"") ->  | F190: 0 | G190: 0 | H190: 0
D191: =IFERROR(INDEX(Brief!$M$15:$M$49,MATCH(C191,Brief!$G$15:$G$44,0))*1,"") ->  | F191: 0 | G191: 0 | H191: 0
D192: =IFERROR(INDEX(Brief!$M$15:$M$49,MATCH(C192,Brief!$G$15:$G$44,0))*1,"") ->  | F192: 0 | G192: 0 | H192: 0
D193: =IFERROR(INDEX(Brief!$M$15:$M$49,MATCH(C193,Brief!$G$15:$G$44,0))*1,"") ->  | F193: 0 | G193: 0 | H193: 0
D194: =IFERROR(INDEX(Brief!$M$15:$M$49,MATCH(C194,Brief!$G$15:$G$44,0))*1,"") ->  | F194: 0 | G194: 0 | H194: 0
D195: =IFERROR(INDEX(Brief!$M$15:$M$49,MATCH(C195,Brief!$G$15:$G$44,0))*1,"") ->  | F195: 0 | G195: 0 | H195: 0
D196: =IFERROR(INDEX(Brief!$M$15:$M$49,MATCH(C196,Brief!$G$15:$G$44,0))*1,"") ->  | F196: =B196 -> 0 | G196: =SUMIF(B:B,F196,D:D) -> 0 | H196: =IF(G196>0,1,0) -> 0
D197: =IFERROR(INDEX(Brief!$M$15:$M$49,MATCH(C197,Brief!$G$15:$G$44,0))*1,"") ->  | F197: 0 | G197: 0 | H197: 0
D198: =IFERROR(INDEX(Brief!$M$15:$M$49,MATCH(C198,Brief!$G$15:$G$44,0))*1,"") ->  | F198: 0 | G198: 0 | H198: 0
D199: =IFERROR(INDEX(Brief!$M$15:$M$49,MATCH(C199,Brief!$G$15:$G$44,0))*1,"") ->  | F199: 0 | G199: 0 | H199: 0
D200: =IFERROR(INDEX(Brief!$M$15:$M$49,MATCH(C200,Brief!$G$15:$G$44,0))*1,"") ->  | F200: 0 | G200: 0 | H200: 0
D201: =IFERROR(INDEX(Brief!$M$15:$M$49,MATCH(C201,Brief!$G$15:$G$44,0))*1,"") ->  | F201: 0 | G201: 0 | H201: 0
... 2137 more rows

Sheet Kalendarz (hidden)
A1: 2006-01-01 | B1: Nowy Rok | C1: N
A2: 2006-04-16 | B2: Wielkanoc | C2: N
A3: 2006-04-17 | B3: Poniedziałek Wielkanocny | C3: Pn
A4: 2006-05-01 | B4: Święto Pracy | C4: Pn
A5: 2006-05-02 | B5: Dzień Flagi Rzeczypospolitej Polskiej | C5: Wt
A6: 2006-05-03 | B6: Święto Narodowe Trzeciego Maja | C6: Śr
A7: 2006-06-15 | B7: Boże Ciało | C7: Cz
A8: 2006-08-15 | B8: Wniebowzięcie N.M. Panny | C8: Wt
A9: 2006-11-01 | B9: Wszystkich Świętych | C9: Śr
A10: 2006-11-11 | B10: Narodowe Święto Niepodległości | C10: So
A11: 2006-12-25 | B11: pierwszy dzień Świąt Bożego Narodzenia | C11: Pn
A12: 2006-12-26 | B12: drugi dzień Świąt Bożego Narodzenia | C12: Wt
A13: 2007-01-01 | B13: Nowy Rok | C13: Pn
A14: 2007-04-08 | B14: Wielkanoc | C14: N
A15: 2007-04-09 | B15: Poniedziałek Wielkanocny | C15: Pn
A16: 2007-05-01 | B16: Święto Pracy | C16: Wt
A17: 2007-05-02 | B17: Dzień Flagi Rzeczypospolitej Polskiej | C17: Śr
A18: 2007-05-03 | B18: Święto Narodowe Trzeciego Maja | C18: Cz
A19: 2007-06-07 | B19: Boże Ciało | C19: Cz
A20: 2007-08-15 | B20: Wniebowzięcie N.M. Panny | C20: Śr
A21: 2007-11-01 | B21: Wszystkich Świętych | C21: Cz
A22: 2007-11-11 | B22: Narodowe Święto Niepodległości | C22: N
A23: 2007-12-25 | B23: pierwszy dzień Świąt Bożego Narodzenia | C23: Wt
A24: 2007-12-26 | B24: drugi dzień Świąt Bożego Narodzenia | C24: Śr
A25: 2008-01-01 | B25: Nowy Rok | C25: Wt
A26: 2008-03-23 | B26: Wielkanoc | C26: N
A27: 2008-03-24 | B27: Poniedziałek Wielkanocny | C27: Pn
A28: 2008-05-01 | B28: Święto Pracy | C28: Cz
A29: 2008-05-02 | B29: Dzień Flagi Rzeczypospolitej Polskiej | C29: Pt
A30: 2008-05-03 | B30: Święto Narodowe Trzeciego Maja | C30: So
A31: 2008-05-22 | B31: Boże Ciało | C31: Cz
A32: 2008-08-15 | B32: Wniebowzięcie N.M. Panny | C32: Pt
A33: 2008-11-01 | B33: Wszystkich Świętych | C33: So
A34: 2008-11-11 | B34: Narodowe Święto Niepodległości | C34: Wt
A35: 2008-12-25 | B35: pierwszy dzień Świąt Bożego Narodzenia | C35: Cz
A36: 2008-12-26 | B36: drugi dzień Świąt Bożego Narodzenia | C36: Pt
A37: 2009-01-01 | B37: Nowy Rok | C37: Cz
A38: 2009-01-01 | B38: Nowy Rok | C38: Cz
A39: 2009-04-12 | B39: Wielkanoc | C39: N
A40: 2009-04-12 | B40: Wielkanoc | C40: N
A41: 2009-04-13 | B41: Poniedziałek Wielkanocny | C41: Pn
A42: 2009-04-13 | B42: Poniedziałek Wielkanocny | C42: Pn
A43: 2009-05-01 | B43: Święto Pracy | C43: Pt
A44: 2009-05-01 | B44: Święto Pracy | C44: Pt
A45: 2009-05-02 | B45: Dzień Flagi Rzeczypospolitej Polskiej | C45: So
A46: 2009-05-02 | B46: Dzień Flagi Rzeczypospolitej Polskiej | C46: So
A47: 2009-05-03 | B47: Święto Narodowe Trzeciego Maja | C47: N
A48: 2009-05-03 | B48: Święto Narodowe Trzeciego Maja | C48: N
A49: 2009-06-11 | B49: Boże Ciało | C49: Cz
A50: 2009-06-11 | B50: Boże Ciało | C50: Cz
A51: 2009-08-15 | B51: Wniebowzięcie N.M. Panny | C51: So
A52: 2009-08-15 | B52: Wniebowzięcie N.M. Panny | C52: So
A53: 2009-11-01 | B53: Wszystkich Świętych | C53: N
A54: 2009-11-01 | B54: Wszystkich Świętych | C54: N
A55: 2009-11-11 | B55: Narodowe Święto Niepodległości | C55: Śr
A56: 2009-11-11 | B56: Narodowe Święto Niepodległości | C56: Śr
A57: 2009-12-25 | B57: pierwszy dzień Świąt Bożego Narodzenia | C57: Pt
A58: 2009-12-25 | B58: pierwszy dzień Świąt Bożego Narodzenia | C58: Pt
A59: 2009-12-26 | B59: drugi dzień Świąt Bożego Narodzenia | C59: So
A60: 2009-12-26 | B60: drugi dzień Świąt Bożego Narodzenia | C60: So
A61: 2010-01-01 | B61: Nowy Rok | C61: Pt
A62: 2010-01-01 | B62: Nowy Rok | C62: Pt
A63: 2010-04-04 | B63: Wielkanoc | C63: N
A64: 2010-04-04 | B64: Wielkanoc | C64: N
A65: 2010-04-05 | B65: Poniedziałek Wielkanocny | C65: Pn
A66: 2010-04-05 | B66: Poniedziałek Wielkanocny | C66: Pn
A67: 2010-05-01 | B67: Święto Pracy | C67: So
A68: 2010-05-01 | B68: Święto Pracy | C68: So
A69: 2010-05-02 | B69: Dzień Flagi Rzeczypospolitej Polskiej | C69: N
A70: 2010-05-02 | B70: Dzień Flagi Rzeczypospolitej Polskiej | C70: N
A71: 2010-05-03 | B71: Święto Narodowe Trzeciego Maja | C71: Pn
A72: 2010-05-03 | B72: Święto Narodowe Trzeciego Maja | C72: Pn
A73: 2010-06-03 | B73: Boże Ciało | C73: Cz
A74: 2010-06-03 | B74: Boże Ciało | C74: Cz
A75: 2010-08-15 | B75: Wniebowzięcie N.M. Panny | C75: N
A76: 2010-08-15 | B76: Wniebowzięcie N.M. Panny | C76: N
A77: 2010-11-01 | B77: Wszystkich Świętych | C77: Pn
A78: 2010-11-01 | B78: Wszystkich Świętych | C78: Pn
A79: 2010-11-11 | B79: Narodowe Święto Niepodległości | C79: Cz
A80: 2010-11-11 | B80: Narodowe Święto Niepodległości | C80: Cz
A81: 2010-12-25 | B81: pierwszy dzień Świąt Bożego Narodzenia | C81: So
A82: 2010-12-25 | B82: pierwszy dzień Świąt Bożego Narodzenia | C82: So
A83: 2010-12-26 | B83: drugi dzień Świąt Bożego Narodzenia | C83: N
A84: 2010-12-26 | B84: drugi dzień Świąt Bożego Narodzenia | C84: N
A85: 2011-01-01 | B85: Nowy Rok | C85: So
A86: 2011-01-01 | B86: Nowy Rok | C86: So
A87: 2011-04-24 | B87: Wielkanoc | C87: N
A88: 2011-04-24 | B88: Wielkanoc | C88: N
A89: 2011-04-25 | B89: Poniedziałek Wielkanocny | C89: Pn
A90: 2011-04-25 | B90: Poniedziałek Wielkanocny | C90: Pn
A91: 2011-05-01 | B91: Święto Pracy | C91: N
A92: 2011-05-01 | B92: Święto Pracy | C92: N
A93: 2011-05-02 | B93: Dzień Flagi Rzeczypospolitej Polskiej | C93: Pn
A94: 2011-05-02 | B94: Dzień Flagi Rzeczypospolitej Polskiej | C94: Pn
A95: 2011-05-03 | B95: Święto Narodowe Trzeciego Maja | C95: Wt
A96: 2011-05-03 | B96: Święto Narodowe Trzeciego Maja | C96: Wt
A97: 2011-06-23 | B97: Boże Ciało | C97: Cz
A98: 2011-06-23 | B98: Boże Ciało | C98: Cz
A99: 2011-08-15 | B99: Wniebowzięcie N.M. Panny | C99: Pn
A100: 2011-08-15 | B100: Wniebowzięcie N.M. Panny | C100: Pn
A101: 2011-11-01 | B101: Wszystkich Świętych | C101: Wt
A102: 2011-11-01 | B102: Wszystkich Świętych | C102: Wt
A103: 2011-11-11 | B103: Narodowe Święto Niepodległości | C103: Pt
A104: 2011-11-11 | B104: Narodowe Święto Niepodległości | C104: Pt
A105: 2011-12-25 | B105: pierwszy dzień Świąt Bożego Narodzenia | C105: N
A106: 2011-12-25 | B106: pierwszy dzień Świąt Bożego Narodzenia | C106: N
A107: 2011-12-26 | B107: drugi dzień Świąt Bożego Narodzenia | C107: Pn
A108: 2011-12-26 | B108: drugi dzień Świąt Bożego Narodzenia | C108: Pn
A109: 2012-01-01 | B109: Nowy Rok | C109: N
A110: 2012-01-01 | B110: Nowy Rok | C110: N
A111: 2012-04-08 | B111: Wielkanoc | C111: N
A112: 2012-04-08 | B112: Wielkanoc | C112: N
A113: 2012-04-09 | B113: Poniedziałek Wielkanocny | C113: Pn
A114: 2012-04-09 | B114: Poniedziałek Wielkanocny | C114: Pn
A115: 2012-05-01 | B115: Święto Pracy | C115: Wt
A116: 2012-05-01 | B116: Święto Pracy | C116: Wt
A117: 2012-05-02 | B117: Dzień Flagi Rzeczypospolitej Polskiej | C117: Śr
A118: 2012-05-02 | B118: Dzień Flagi Rzeczypospolitej Polskiej | C118: Śr
A119: 2012-05-03 | B119: Święto Narodowe Trzeciego Maja | C119: Cz
A120: 2012-05-03 | B120: Święto Narodowe Trzeciego Maja | C120: Cz
A121: 2012-06-07 | B121: Boże Ciało | C121: Cz
A122: 2012-06-07 | B122: Boże Ciało | C122: Cz
A123: 2012-08-15 | B123: Wniebowzięcie N.M. Panny | C123: Śr
A124: 2012-08-15 | B124: Wniebowzięcie N.M. Panny | C124: Śr
A125: 2012-11-01 | B125: Wszystkich Świętych | C125: Cz
A126: 2012-11-01 | B126: Wszystkich Świętych | C126: Cz
A127: 2012-11-11 | B127: Narodowe Święto Niepodległości | C127: N
A128: 2012-11-11 | B128: Narodowe Święto Niepodległości | C128: N
A129: 2012-12-25 | B129: pierwszy dzień Świąt Bożego Narodzenia | C129: Wt
A130: 2012-12-25 | B130: pierwszy dzień Świąt Bożego Narodzenia | C130: Wt
A131: 2012-12-26 | B131: drugi dzień Świąt Bożego Narodzenia | C131: Śr
A132: 2012-12-26 | B132: drugi dzień Świąt Bożego Narodzenia | C132: Śr
A133: 2013-01-01 | B133: Nowy Rok | C133: Wt
A134: 2013-03-31 | B134: Wielkanoc | C134: N
A135: 2013-04-01 | B135: Poniedziałek Wielkanocny | C135: Pn
A136: 2013-05-01 | B136: Święto Pracy | C136: Śr
A137: 2013-05-02 | B137: Dzień Flagi Rzeczypospolitej Polskiej | C137: Cz
A138: 2013-05-03 | B138: Święto Narodowe Trzeciego Maja | C138: Pt
A139: 2013-05-30 | B139: Boże Ciało | C139: Cz
A140: 2013-08-15 | B140: Wniebowzięcie N.M. Panny | C140: Cz
A141: 2013-11-01 | B141: Wszystkich Świętych | C141: Pt
A142: 2013-11-11 | B142: Narodowe Święto Niepodległości | C142: Pn
A143: 2013-12-25 | B143: pierwszy dzień Świąt Bożego Narodzenia | C143: Śr
A144: 2013-12-26 | B144: drugi dzień Świąt Bożego Narodzenia | C144: Cz
A145: 2014-01-01 | B145: Nowy Rok | C145: Śr
A146: 2014-04-20 | B146: Wielkanoc | C146: N
A147: 2014-04-21 | B147: Poniedziałek Wielkanocny | C147: Pn
A148: 2014-05-01 | B148: Święto Pracy | C148: Cz
A149: 2014-05-02 | B149: Dzień Flagi Rzeczypospolitej Polskiej | C149: Pt
A150: 2014-05-03 | B150: Święto Narodowe Trzeciego Maja | C150: So
A151: 2014-06-19 | B151: Boże Ciało | C151: Cz
A152: 2014-08-15 | B152: Wniebowzięcie N.M. Panny | C152: Pt
A153: 2014-11-01 | B153: Wszystkich Świętych | C153: So
A154: 2014-11-11 | B154: Narodowe Święto Niepodległości | C154: Wt
A155: 2014-12-25 | B155: pierwszy dzień Świąt Bożego Narodzenia | C155: Cz
A156: 2014-12-26 | B156: drugi dzień Świąt Bożego Narodzenia | C156: Pt
A157: 2015-01-01 | B157: Nowy Rok | C157: Cz
A158: 2015-04-05 | B158: Wielkanoc | C158: N
A159: 2015-04-06 | B159: Poniedziałek Wielkanocny | C159: Pn
A160: 2015-05-01 | B160: Święto Pracy | C160: Pt
A161: 2015-05-02 | B161: Dzień Flagi Rzeczypospolitej Polskiej | C161: So
A162: 2015-05-03 | B162: Święto Narodowe Trzeciego Maja | C162: N
A163: 2015-06-04 | B163: Boże Ciało | C163: Cz
A164: 2015-08-15 | B164: Wniebowzięcie N.M. Panny | C164: So
A165: 2015-11-01 | B165: Wszystkich Świętych | C165: N
A166: 2015-11-11 | B166: Narodowe Święto Niepodległości | C166: Śr
A167: 2015-12-25 | B167: pierwszy dzień Świąt Bożego Narodzenia | C167: Pt
A168: 2015-12-26 | B168: drugi dzień Świąt Bożego Narodzenia | C168: So
A169: 2016-01-01 | B169: Nowy Rok | C169: Pt
A170: 2016-03-27 | B170: Wielkanoc | C170: N
A171: 2016-03-28 | B171: Poniedziałek Wielkanocny | C171: Pn
A172: 2016-05-01 | B172: Święto Pracy | C172: N
A173: 2016-05-02 | B173: Dzień Flagi Rzeczypospolitej Polskiej | C173: Pn
A174: 2016-05-03 | B174: Święto Narodowe Trzeciego Maja | C174: Wt
A175: 2016-05-26 | B175: Boże Ciało | C175: Cz
A176: 2016-08-15 | B176: Wniebowzięcie N.M. Panny | C176: Pn
A177: 2016-11-01 | B177: Wszystkich Świętych | C177: Wt
A178: 2016-11-11 | B178: Narodowe Święto Niepodległości | C178: Pt
A179: 2016-12-25 | B179: pierwszy dzień Świąt Bożego Narodzenia | C179: N
A180: 2016-12-26 | B180: drugi dzień Świąt Bożego Narodzenia | C180: Pn
A181: 2017-01-01 | B181: Nowy Rok | C181: N
A182: 2017-04-16 | B182: Wielkanoc | C182: N
A183: 2017-04-17 | B183: Poniedziałek Wielkanocny | C183: Pn
A184: 2017-05-01 | B184: Święto Pracy | C184: Pn
A185: 2017-05-02 | B185: Dzień Flagi Rzeczypospolitej Polskiej | C185: Wt
A186: 2017-05-03 | B186: Święto Narodowe Trzeciego Maja | C186: Śr
A187: 2017-06-15 | B187: Boże Ciało | C187: Cz
A188: 2017-08-15 | B188: Wniebowzięcie N.M. Panny | C188: Wt
A189: 2017-11-01 | B189: Wszystkich Świętych | C189: Śr
A190: 2017-11-11 | B190: Narodowe Święto Niepodległości | C190: So
A191: 2017-12-25 | B191: pierwszy dzień Świąt Bożego Narodzenia | C191: Pn
A192: 2017-12-26 | B192: drugi dzień Świąt Bożego Narodzenia | C192: Wt
A193: 2018-01-01 | B193: Nowy Rok | C193: Pn
A194: 2018-04-01 | B194: Wielkanoc | C194: N
A195: 2018-04-02 | B195: Poniedziałek Wielkanocny | C195: Pn
A196: 2018-05-01 | B196: Święto Pracy | C196: Wt
A197: 2018-05-02 | B197: Dzień Flagi Rzeczypospolitej Polskiej | C197: Śr
A198: 2018-05-03 | B198: Święto Narodowe Trzeciego Maja | C198: Cz
A199: 2018-05-31 | B199: Boże Ciało | C199: Cz
A200: 2018-08-15 | B200: Wniebowzięcie N.M. Panny | C200: Śr
... 124 more rows
